{"text_format":"1","workbook":"xlsx","n_sheets":2,"sheets":["SuperSearchSuperZoo2016","Sheet1"],"not_rendered":{"charts":0,"images":4,"macros":1,"external_links":0,"defined_names":4,"comments":0,"pivot_tables":0},"unopened":[],"bounds":{"document_bytes":16777216,"sheet_cells":100000,"rows_first":2000,"rows_last":500,"rows_between":2000,"halvings":0,"cell_chars":16384,"cell_head_chars":4096},"cells_cut":0,"cells_raw":0,"read":"whole","date_system":"1900"}

{"sheet":"SuperSearchSuperZoo2016","index":0,"n_rows":1214,"n_cols":55,"rows_kept":1214,"cut":false,"hidden":false,"merged":[[2,0,2,1],[0,10,0,20],[0,21,0,52],[1,0,1,1],[0,4,0,9],[0,0,0,3],[7,21,7,52],[3,0,3,1],[4,0,4,1],[5,0,5,1],[6,0,6,1],[7,10,7,20],[7,0,7,3],[7,4,7,9]]}
["SEARCH EXHIBITORS",null,null,null,"SUPERZOO SECTION",null,null,null,null,null,"ANIMAL/EXHIBITOR TYPE",null,null,null,null,null,null,null,null,null,null,"DOG and/or CAT PRODUCT CATEGORIES"]
["EXHIBITOR SEARCH  ALL RESULTS ARE COMBINED",null,"EXHIBITOR SEARCH","<< \"U Pick 'Em\" LIST","Natural","Rodeo Drive","Critter Alley/Aquatic","Groomers","Equine","1st Time","Media, Org","Distributor","Bus Services Rtl/Mfg","Gift/Gen Mdse","Fish","Reptile","Bird","Sm Animal","Horse","Cat","Dog","Books, Mags","Clothes, Costumes","C&L Harn Acc ","ID Tags","Food","Feeding Acc","Treats ","Rawhide","Toys","Exercise. Agility","Catnip","Scratching","Furniture","Tie Out & Contain ","Beds Mats","Doors/Gates","Carriers Crates","Car Safety, Acc","Houses, Kennels","Litter","Litter Acc","Dental","Meds, Supp","Flea & Tick","Groom Tool","Shampoo","Stain & Odor, Clean","Wipes","Train pads, diapers ","Waste Pickup","Electronic","Track, Monitor"]
["Must have \"Y\" to activate; Then enter \"1\" in column>>",null,"Y"]
["To Add on Chge \"N\" to \"Y\"; Then enter \"1\" in column>>",null,"N"]
[" Note: An \"N\" even with \"1's\" will generate no results",null,"N"]
["Note: Multiple \"1's\" in a row mean AND - Must have all",null,"N"]
["Note: A \"Y\" with no \"1\"s brings up the whole list",null,"N"]
["SEARCH RESULTS",null,null,null,"SUPERZOO SECTION",null,null,null,null,null,"ANIMAL/EXHIBITOR TYPE",null,null,null,null,null,null,null,null,null,null,"DOG and/or CAT PRODUCT CATEGORIES"]
["SuperZoo Booth #","EXHIBITOR LIST","EXHIBITOR SEARCH","<< \"U Pick 'Em\" LIST","Natural","Rodeo Drive","Critter Alley/Aquatic","Groomers","Equine","1st Time","Media, Org","Distributor","Bus Services Rtl/Mfg","Gift/Gen Mdse","Fish","Reptile","Bird","Sm Animal","Horse","Cat","Dog","Books, Mags","Clothes, Costumes","C&L Harn Acc ","ID Tags","Food","Feeding Acc","Treats ","Rawhide","Toys","Exercise. Agility","Catnip","Scratching","Furniture","Tie Out & Contain ","Beds Mats","Doors/Gates","Carriers Crates","Car Safety, Acc","Houses, Kennels","Litter","Litter Acc","Dental","Meds, Supp","Flea & Tick","Groom Tool","Shampoo","Stain & Odor, Clean","Wipes","Train pads, diapers ","Waste Pickup","Electronic","Track, Monitor"]
[10256,"2 Hounds Design ","Y",null,null,null,null,null,null,null,0,0,null,0,0,0,0,0,0,0,1,0,0,1,0,0,0,0,0,0,0,0,0,0,0,0,0,0,0,0,0,0,0,0,0,0,0,0,0,0,0,0,0]
[2119,"21st Century Animal HealthCare","Y",null,null,null,null,null,null,null,null,null,null,null,null,null,null,null,null,1,1,null,null,null,null,null,null,null,null,null,null,null,null,null,null,null,null,null,null,null,null,null,null,1]
[12278,"26 Bars & a Band, Inc. ","Y",null,null,1,null,null,null,null,0,0,null,1,0,0,0,0,0,1,1,0,null,1,null,0,1,1,0,null,0,0,1,null,0,1,0,0,0,0,0,0,0,0,0,0,0,0,0,0,1,1,0]
[2262,"4 Paws Tech by Man's Best Friend Technologies","Y",null,null,null,null,null,null,null,null,null,null,null,null,null,null,null,null,null,1,null,1,1,null,null,null,null,null,1]
[1209,"4BF","Y",null,null,null,null,null,null,null,null,null,null,null,null,null,null,null,null,null,1,null,null,null,null,null,null,null,null,1]
[12304,"4Legs4Pets","Y",null,null,1,null,null,null,null,null,null,null,null,null,null,null,null,null,null,1,null,null,null,null,null,null,null,null,null,null,null,null,null,null,1]
[13197,"7Pets","Y",null,null,null,null,null,null,null,null,null,null,null,null,null,null,null,null,1,null,null,null,null,null,null,null,null,null,null,null,null,null,null,null,null,null,null,null,null,1]
[4151,"7Pets ","Y",null,null,null,null,null,null,1,null,null,null,null,null,null,null,null,null,1,null,null,null,null,null,null,null,null,null,null,null,null,null,null,null,null,null,null,null,null,1]
[6257,"8-in-1","Y",null,null,null,null,null,null,null,null,null,null,null,null,null,1,1,null,1,1,null,null,null,null,null,null,1,1,null,null,1,null,null,null,null,null,null,null,null,1,null,1,1,1,null,1,1,1]
[6282,"A PET with PAWS","Y",null,null,1,null,null,null,null,null,null,null,null,null,null,null,null,null,1,1,null,null,null,null,null,null,null,null,null,null,null,null,null,null,null,null,1,null,null,null,null,null,null,null,null,null,null,null,null,1]
[9287,"A Tail We Could Wag ","Y",null,null,1,null,null,null,null,0,0,null,0,0,0,0,0,0,0,1,0,0,1,0,0,0,0,0,0,0,0,0,0,0,0,0,0,0,0,0,0,0,0,0,0,0,0,0,0,0,0,0]
[13083,"Absorbine","Y",null,null,null,null,null,null,null,0,0,null,0,0,0,0,0,1,0,0,0,0,0,0,0,0,0,0,0,0,0,0,0,0,0,0,0,0,0,0,0,0,0,0,0,0,0,0,0,0,0,0]
[7011,"Addiction Foods","Y",null,1,null,null,null,null,null,null,null,null,null,null,null,null,null,null,1,1,null,null,null,null,null,null,1]
[4043,"Adored Beast Apothecary","Y",null,1,null,null,null,null,null,null,null,null,null,null,null,null,null,null,null,1,null,null,null,null,null,null,null,null,null,null,null,null,null,null,null,null,null,null,null,null,null,null,1]
[11189,"Advance Pet Products ","Y",null,null,null,null,null,null,null,0,0,null,0,0,0,0,0,0,1,1,0,1,0,0,0,1,0,0,1,0,0,0,0,0,1,0,0,0,0,0,0,0,0,0,0,0,0,0,0,0,0,0]
[10067,"Advantek Marketing","Y",null,1,null,null,null,null,null,0,0,0,0,0,0,0,1,1,0,1,0,0,0,0,0,0,0,0,0,0,0,0,0,0,0,0,1,0,1,0,0,0,0,0,0]
[11006,"Aeolus Pet","Y",null,null,null,null,1,null,null,null,null,null,null,null,null,null,null,null,1,1,null,null,null,null,null,null,null,null,null,null,null,null,null,null,null,null,null,null,null,null,null,null,null,null,1]
[2097,"Ag Service Seeds","Y",null,null,null,null,null,null,null,null,null,"?",null,null,null,1]
[1163,"AirBuggy For Dog","Y",null,null,null,null,null,null,null,null,null,null,null,null,null,null,null,null,null,1,null,null,null,null,null,null,null,null,null,null,null,null,null,null,null,null,1]
[12017,"AK Express","Y",null,null,null,null,1,null,null,null,null,1]
[10021,"Aker BioMarine Antarctic AS","Y",null,1,null,null,null,null,null,null,null,1,null,null,null,null,null,null,1,1,null,null,null,null,null,null,1,null,null,null,null,null,null,null,null,null,null,null,null,null,null,null,1]
[6290,"Akoma Dog Products","Y",null,null,1,null,null,null,null,null,null,null,1,null,null,null,null,null,null,1,null,null,null,null,null,null,null,null,null,null,null,null,null,null,null,1,null,null,1]
[2049,"Alaska Naturals Pet Products ","Y",null,1,null,null,null,null,null,0,0,null,0,0,0,0,0,0,1,1,0,0,0,0,0,0,1,0,0,0,0,0,0,0,0,0,0,0,0,0,0,0,1,0,0,0,0,0,0,0,0,0]
[3239,"Alfalfa King ","Y",null,null,null,null,null,null,null,0,0,null,0,0,1,0,1,0,0,0,0,0,0,0,0,0,0,0,0,0,0,0,0,0,0,0,0,0,0,0,0,0,0,0,0,0,0,0,0,0,0,0]
[5116,"All Four Paws ","Y",null,null,null,null,null,null,null,0,0,null,0,0,0,0,0,0,1,1,0,0,1,0,0,0,0,0,0,0,0,0,0,0,0,0,0,0,0,0,0,0,0,0,0,0,0,0,0,0,0,0]
[3188,"All Paws Pet Wash","Y",null,null,null,1,null,null,null,null,null,1,null,null,null,null,null,null,null,1,null,null,null,null,null,null,null,null,null,null,null,null,null,null,null,null,null,null,null,null,null,null,null,null,1,1]
[10296,"All Star Dogs Inc. ","Y",null,null,1,null,null,null,null,null,null,null,1,null,null,null,null,null,null,1,null,1,1,null,null,null,null,null,null,null,null,null,null,null,1]
[1183,"Allied Aerofoam Products","Y",null,null,null,null,null,null,null,null,null,null,null,null,null,null,null,null,null,1,null,null,null,null,null,null,null,null,null,null,null,null,null,null,1]
[12286,"Alpen Schatz","Y",null,null,1,null,null,null,null,null,null,null,1,null,null,null,null,null,null,1,null,null,1,1,null,null,null,null,null,null,null,null,null,null,null,null,null,null,null,null,null,null,null,null,null,1]
[4273,"Alpine Outfitters","Y",null,null,null,null,null,null,null,null,null,null,null,null,null,null,null,null,null,1,null,null,1,null,null,1,null,null,null,null,null,null,null,null,null,null,null,1]
[9176,"Amazing Pet Products ","Y",null,null,null,null,null,null,null,0,0,null,0,1,1,1,1,0,1,1,0,1,1,1,0,null,1,1,1,0,null,0,0,1,null,0,0,0,0,1,1,null,null,0,1,0,0,0,0,0,0,0]
[3009,"Amber Crown","Y",null,1,null,null,null,null,null,null,null,null,null,null,null,null,null,null,1,1,null,null,1,null,null,null,null,null,null,null,null,null,null,null,null,null,null,null,null,null,null,null,null,1]
[3045,"Amber Technology","Y",null,1,null,null,null,null,null,null,null,null,null,null,1,1,1,null,1,1,null,null,null,null,null,null,null,null,null,null,null,null,null,null,null,null,null,null,null,null,null,null,1]
[8250,"American Colloid Company","Y",null,null,null,null,null,null,null,null,null,null,null,null,null,null,null,null,1,null,null,null,null,null,null,null,null,null,null,null,null,null,null,null,null,null,null,null,null,1]
[13054,"American Express OPEN","Y",null,null,null,null,1,null,null,null,null,1]
[4076,"American Pet Diner Inc","Y",null,1,null,null,null,null,null,null,null,null,null,null,null,null,1]
[4082,"American Pet Nutrition (2074)","Y",null,null,null,null,null,null,null,null,null,null,null,null,null,null,null,null,1,1,null,null,null,null,1,null,1]
[2074,"American Pet Nutrition (4082)","Y",null,1,null,null,null,null,null,null,null,null,null,null,null,null,null,null,1,1,null,null,null,null,1,null,1]
[5189,"American Pet Products Association (APPA)","Y",null,null,null,null,null,null,null,1,0,null,1,0,0,0,0,0,0,0,0,0,0,0,0,0,0,0,0,0,0,0,0,0,0,0,0,0,0,0,0,0,0,0,0,0,0,0,0,0,0,0]
[3179,"American Wood Fibers, Inc.","Y",null,null,null,null,null,null,null,null,null,null,null,null,1,null,1,1,1,null,null,null,null,null,null,null,null,null,null,null,null,null,null,null,null,null,null,null,null,1]
[13052,"Amoros0 Enterprise","Y",null,null,null,null,1,null,null,null,null,null,null,null,null,null,null,null,1,1,null,null,1,null,null,null,null,null,null,null,null,null,null,null,1,null,1]
[12019,"Andis Company ","Y",null,null,null,null,1,null,null,0,0,null,0,0,0,0,1,1,1,1,0,0,0,0,0,0,0,0,0,0,0,0,0,0,0,0,0,0,0,0,0,0,0,0,1,0,0,0,0,0,0,0]
[4282,"Andrea's","Y",null,null,1,null,null,null,null,null,null,null,1]
[10280,"Angel Pet Supplies Inc. ","Y",null,null,1,null,null,null,null,0,0,null,0,0,0,0,0,0,1,1,0,0,1,0,0,0,0,0,0,0,0,0,0,0,0,0,0,0,0,0,0,0,0,0,0,0,0,0,0,0,0,0]
[7291,"Angels' Eyes ","Y",null,null,1,null,null,null,null,0,0,null,0,0,0,0,0,0,1,1,0,0,0,0,0,0,1,0,0,0,0,0,0,0,1,0,0,0,0,0,0,0,1,0,0,0,0,1,0,0,0,0]
[12049,"Angels Grooming Apparel","Y",null,null,null,null,1,null,null,null,null,null,1,null,null,null,null,null,null,null,null,null,null,null,null,null,null,null,null,null,null,null,null,null,null,null,null,null,null,null,null,null,null,null,1]
[12161,"Anhui Jumei Biological Technology Co.,Ltd.","Y",null,null,null,null,null,null,null,null,null,1,1,null,null,null,null,null,null,1,null,null,null,null,null,null,null,null,null,null,null,null,null,null,null,null,null,null,null,null,null,null,null,null,null,null,null,null,null,1]
[2163,"Ani Mate","Y",null,null,null,null,null,null,null,null,null,null,null,1,null,null,null,null,1,1,null,null,1,1,null,1,null,null,1,null,null,null,null,null,null,1,null,null,null,null,null,null,null,null,null,null,null,null,null,null,1]
[13290,"Anima International Corp. ","Y",null,null,1,null,null,null,null,0,0,null,1,0,0,0,0,0,0,1,0,1,1,0,0,0,0,0,1,0,0,0,0,0,1,0,1,0,0,0,0,0,0,0,0,0,0,0,0,0,0,0]
[6005,"Animaganza","Y",null,1,null,null,null,null,null,null,null,null,null,null,null,null,null,null,1,1,null,null,null,null,null,null,1,null,1,null,null,null,1]
[6042,"Animal Essentials Inc. ","Y",null,1,null,null,null,null,null,0,0,null,0,0,0,0,0,null,1,1,0,0,0,0,0,0,0,0,0,0,0,0,0,0,0,0,0,0,0,0,0,0,1,0,0,0,0,0,0,0,0,0]
[6245,"Animal Health Solutions Inc","Y",null,null,null,null,null,null,null,null,null,null,null,null,null,null,null,1,1,1,null,null,null,null,null,null,null,null,null,null,null,null,null,null,null,null,null,null,null,null,null,null,1]
[4268,"Animal Necessity","Y",null,null,null,null,null,null,null,null,null,null,null,null,null,1,null,null,1,1,null,null,null,null,null,null,null,null,null,null,null,null,null,null,null,null,null,null,null,null,null,null,1]
[14050,"Animal Photography","Y",null,null,null,null,1,null,null,null,null,1,1]
[1200,"Animal Supplies International","Y",null,null,null,null,null,null,null,null,null,1,null,null,null,null,null,1,null,1,null,null,null,null,null,null,null,null,null,null,null,null,null,null,null,null,1,null,1]
[8217,"Animal Supply Company","Y",null,null,null,null,null,null,null,null,1,null,null,1,1,1,1,1,1,1,null,1,1,1,1,1,1,1,1,1,1,1,1,1,1,1,1,1,1,1,1,1,1,1,1,1,1,1,1,1,1]
[7027,"Annamaet Petfoods Inc. ","Y",null,1,null,null,null,null,null,0,0,null,0,0,0,0,0,0,1,1,0,0,0,0,1,0,0,0,0,0,0,0,0,0,0,0,0,0,0,0,0,0,1,0,0,0,0,0,0,0,0,0]
[6284,"Any Pet International","Y",null,null,1,null,null,null,null,null,null,null,null,null,null,null,null,null,1,1,null,1,1,null,1,1,1,null,1,null,null,null,null,null,1,null,1,null,1,null,null,1,null,null,1,1,null,1,1,1]
[14283,"AP Lazer","Y",null,null,1,null,null,null,null,null,null,1,1,null,null,null,null,null,1,1]
[3037,"Applaws Natural Cat & Dog Food","Y",null,1,null,null,null,null,null,null,null,null,null,null,null,null,null,null,1,1,null,null,null,null,1,null,1,null,null,null,null,null,null,null,null,null,null,null,null,null,null,null,null,null,null,0,0,0,0,0,0,0]
[2222,"Aquatop","Y",null,null,null,1,null,null,null,0,0,0,0,1,0,0,0,0,0,0,0,0,0,0,0,0,0,0,0,0,0,0,0,0,0,0,0,0,0,0,0,0,0,0,0,0,0,0,0,0,0,0]
[9173,"Aqueon","Y",null,null,null,null,null,null,null,null,null,null,null,1]
[9061,"Arctic Paws","Y",null,1,null,null,null,null,null,0,0,0,0,0,0,0,0,0,1,1,0,0,0,0,0,0,1,0,0,0,0,0,0,0,0,0,0,0,0,0,0,0,1,0,0]
[3149,"ARF Pets / C&A Marketing","Y",null,null,null,null,null,null,1,null,null,null,null,null,null,null,null,null,1,1,null,null,1,null,null,1,null,null,1,null,null,null,null,null,1,null,1,1,null,null,null,null,null,null,null,null,null,null,null,null,1]
[11004,"Aripack, Inc.","Y",null,null,null,null,1,null,null,null,null,1]
[2071,"Ark Naturals Products for Pets","Y",null,1,null,null,null,null,null,0,0,null,0,0,0,null,null,0,1,1,0,0,0,0,0,0,1,0,0,0,0,0,0,0,0,0,0,0,0,0,0,1,1,1,0,1,0,0,0,0,0,0]
[6266,"Arlee Pet Products","Y",null,null,null,null,null,null,null,null,null,null,null,null,null,null,null,null,null,1,null,null,null,null,null,1,null,null,null,null,null,null,null,null,1,null,null,1]
[3230,"Armstrong's Cricket Farm ","Y",null,null,null,null,null,null,null,0,0,null,0,0,1,1,0,0,0,0,0,0,0,0,0,0,0,0,0,0,0,0,0,0,0,0,0,0,0,0,0,0,0,0,0,0,0,0,0,0,0,0]
[10063,"Aroma Paws ","Y",null,1,null,null,null,null,null,0,0,null,1,0,0,0,0,0,0,1,0,0,0,0,0,0,0,0,0,0,0,0,0,0,0,0,0,0,0,0,0,0,0,1,0,1,1,0,0,0,0,0]
[1257,"Arrent Enterprises LLC","Y",null,null,null,null,null,null,null,null,null,null,1,null,null,null,null,1,null,1,null,1]
[4060,"Artemis Pet Foods ","Y",null,1,null,null,null,null,null,0,0,null,0,0,0,0,0,0,1,1,0,0,0,0,1,0,0,0,0,0,0,0,0,0,0,0,0,0,0,0,0,0,0,0,0,0,0,0,0,0,0,0]
[11015,"Artero USA","Y",null,null,null,null,1,null,null,null,null,null,null,null,null,null,null,null,1,1,null,null,null,null,null,null,null,null,null,null,null,null,null,null,null,null,null,null,null,null,null,null,1,null,1,1]
[9053,"Arthur Pet Products","Y",null,1,null,null,null,null,null,0,0,0,0,0,0,0,0,0,0,1,0,0,0,0,0,0,1,0,0,0,0,0,0,0,0,0,0,0,0,0,0,0,0,0,0]
[8033,"Artvark Pet Products ","Y",null,1,null,null,null,null,null,0,1,null,0,0,0,0,0,0,1,1,0,0,1,0,0,1,1,1,0,0,0,0,0,0,0,0,0,0,0,0,0,0,0,1,1,0,0,0,1,1,0,0]
[1237,"Asder Electronic Co., LTD.","Y",null,null,null,null,null,null,null,null,null,null,null,null,null,null,null,null,null,1,null,null,null,null,null,null,null,null,1,null,null,null,null,null,null,null,null,null,null,null,null,null,null,null,null,null,null,null,null,null,1]
[11049,"Ashley Craig Pet Products Inc.","Y",null,null,null,null,1,null,null,null,null,null,1,null,null,null,null,null,1,1,null,null,1,null,null,null,null,null,null,null,null,null,null,null,null,null,null,null,null,null,null,null,1,null,1,1]
[6009,"Astro Frequent Buyer","Y",null,1,null,null,null,null,null,null,null,1]
[5260,"ATTITUDE Furry Friends","Y",null,null,null,null,null,null,null,null,null,null,null,null,null,null,1,null,1,1,null,null,null,null,null,null,null,null,null,null,null,null,null,null,null,null,null,null,null,null,null,null,null,null,null,1,1,1]
[9291,"Auburn Leathercrafters","Y",null,null,1,null,null,null,null,0,0,null,0,0,0,0,0,0,null,1,0,1,1,0,0,0,0,0,1,0,null,0,0,0,0,0,0,0,0,0,0,0,0,0,0,0,0,0,0,0,0,0]
[11048,"Aussie Dog","Y",null,null,null,null,1,null,null,null,null,null,null,null,null,null,null,null,null,1,null,null,null,null,null,null,null,null,null,null,null,null,null,null,null,null,null,null,null,null,null,null,null,null,1]
[3089,"Aussie Naturals by ABO Gear","Y",null,null,null,null,null,null,null,0,0,null,0,0,0,0,0,0,1,1,0,1,1,0,0,0,1,0,1,0,0,1,1,0,1,0,1,1,1,0,0,0,0,0,1,0,0,0,0,0,0,0]
[1230,"AutoPets","Y",null,null,null,null,null,null,null,null,null,null,null,null,null,null,null,null,1,1,null,null,null,null,null,1,null,null,null,null,null,null,1,null,null,null,null,null,null,null,1,null,null,null,null,null,null,null,null,null,1]
[3023,"Avafina Commodities Inc.","Y",null,1,null,null,null,null,null,null,null,1]
[4032,"Azmira","Y",null,1,null,null,null,null,null,null,null,null,null,null,null,null,null,null,1,1,null,null,null,null,1,null,null,null,null,null,null,null,null,null,null,null,null,null,null,null,null,null,1]
[3280,"B & G Martin","Y",null,null,null,null,null,null,null,null,null,null,null,null,null,null,null,null,null,1,null,null,null,null,null,1,null,null,null,null,null,null,null,null,1]
[5161,"B&B Kustom Kennels","Y",null,null,null,null,null,null,1,null,null,null,null,null,null,null,null,null,null,1,null,null,null,null,null,null,null,null,null,null,null,null,1,null,null,null,null,null,1]
[2153,"BabelBark","Y",null,null,null,null,null,null,null,null,null,null,null,null,null,null,null,null,null,1,null,null,null,null,null,null,null,null,null,null,null,null,null,null,null,null,null,null,null,null,null,null,null,null,null,null,null,null,null,null,1,1]
[3148,"Back On Track USA Inc","Y",null,null,null,null,null,null,1,null,null,null,null,null,null,null,null,1,null,1,null,1,null,null,null,null,null,null,null,null,null,null,null,null,1,null,null,null,null,null,null,null,1]
[3171,"Bailey & Bailey","Y",null,null,null,null,null,null,1,null,null,null,1]
[10023,"B-Air Dryers-Intertex Inc. ","Y",null,1,null,null,null,null,null,0,0,null,0,0,0,0,0,0,0,1,0,0,0,0,0,0,0,0,0,0,0,0,0,0,0,0,0,0,0,0,0,0,0,0,1,0,0,0,0,0,0,0]
[6291,"Balcony Pets Inc","Y",null,null,1,null,null,null,null,null,null,null,null,null,null,null,null,null,1,1,null,null,null,null,null,null,null,null,null,null,null,null,null,null,null,1]
[9285,"Bare Bites","Y",null,null,1,null,null,null,null,null,null,null,null,null,null,null,null,1,1,1,null,null,null,null,null,null,1]
[4169,"BareItAll Petfoods","Y",null,null,null,null,null,null,1,null,null,null,null,null,null,null,null,null,null,1,null,null,null,null,null,null,1]
[7273,"Bark Appeal, Inc.","Y",null,null,null,null,null,null,null,null,null,null,null,null,null,null,null,null,null,1,null,null,1]
[5281,"Bark Beads","Y",null,null,1,null,null,null,null,null,null,null,1]
[8286,"Bark Boutique","Y",null,null,1,null,null,null,null,null,null,null,null,null,null,null,null,null,1,1,null,null,1]
[4083,"Bark Busters North America LLC","Y",null,null,null,null,null,null,null,null,null,1,null,null,null,null,null,null,null,1]
[3119,"Bark Potty","Y",null,null,null,null,null,null,null,null,null,null,null,null,null,null,null,null,null,1,null,null,null,null,null,null,null,null,null,null,null,null,null,null,null,null,null,null,null,null,null,null,null,null,null,null,null,null,null,1]
[13053,"Barkleigh Productions","Y",null,null,null,null,1,null,null,1,null,1,1,null,null,null,null,null,1,1,1,null,null,null,null,null,null,null,null,null,null,null,null,null,null,null,null,null,null,null,null,null,null,null,1]
[10276,"Bark-N-Bag","Y",null,null,1,null,null,null,null,null,null,null,null,null,null,null,null,null,1,1,null,null,null,null,null,1,null,null,null,null,null,null,null,null,1,null,1]
[11067,"Barkworthies  ","Y",null,null,null,null,null,null,null,0,0,null,0,0,0,0,0,0,0,1,0,0,0,0,0,0,1,0,0,0,0,0,0,0,0,0,0,0,0,0,0,0,0,0,0,0,0,0,0,0,0,0]
[8166,"BASS Brush Company","Y",null,null,null,null,null,null,null,null,null,null,null,null,null,null,null,null,1,1,null,null,null,null,null,null,null,null,null,null,null,null,null,null,null,null,null,null,null,null,null,null,null,null,1]
[3170,"Bavarian Cat Toys","Y",null,null,null,null,null,null,1,null,null,null,null,null,null,null,null,null,1,null,null,null,null,null,null,null,null,null,1]
[14292,"BaxterBoo","Y",null,null,1,null,null,null,null,null,null,null,null,null,null,null,null,null,1,1,null,1,1]
[11245,"Bayer HealthCare ","Y",null,null,null,null,null,null,null,0,0,null,0,0,0,0,0,0,1,1,0,0,0,0,0,0,0,0,0,0,0,0,0,0,0,0,0,0,0,0,0,0,0,1,0,0,0,0,0,0,0,0]
[12295,"Baylee Nasco ","Y",null,null,1,null,null,null,null,0,0,null,0,0,0,0,0,0,0,1,0,0,0,0,0,0,0,0,0,0,0,0,null,0,1,0,0,0,0,0,0,0,0,0,0,0,0,0,0,0,0,0]
[5166,"Bear Bottom Candles","Y",null,null,null,null,null,null,1,null,null,null,1]
[7177,"Beaumont Products, Inc.","Y",null,null,null,null,null,null,null,null,null,null,null,null,null,null,null,null,1,1,null,null,null,null,null,null,null,null,null,null,null,null,null,null,null,null,null,null,null,null,null,null,null,null,null,null,1]
[7064,"Bell Rock Growers","Y",null,1,null,null,null,null,null,0,0,null,1,1,1,1,1,0,1,1,0,0,0,0,0,0,1,0,null,0,1,0,0,0,0,0,0,0,0,0,0,0,1,0,0,0,0,0,0,0,0,0]
[12302,"Bella Bean Couture & Finnegan's Standard Goods","Y",null,null,1,null,null,null,null,null,null,null,null,null,null,null,null,null,null,1,null,null,1,null,null,null,null,null,null,null,null,null,null,null,1]
[4285,"Belted Cow Company","Y",null,null,1,null,null,null,null,null,null,null,null,null,null,null,null,null,null,1,null,null,1]
[7178,"Bentonite Performance Minerals, LLC","Y",null,null,null,null,null,null,null,null,null,null,null,null,null,null,null,null,1,null,null,null,null,null,null,null,null,null,null,null,null,null,null,null,null,null,null,null,null,1]
[1159,"BeOneBreed","Y",null,null,null,null,null,null,null,null,null,null,null,null,null,null,null,null,1,1,null,null,null,null,null,1,null,null,1,null,null,null,null,null,1,null,1]
[3284,"bessie + barnie","Y",null,null,null,null,null,null,null,0,0,null,0,0,0,0,0,0,0,1,0,0,1,0,0,0,0,0,0,0,0,0,0,0,1,0,0,0,0,0,0,0,0,0,0,0,0,0,0,0,0,0]
[8060,"Best Buy Bones ","Y",null,1,null,null,null,null,null,0,0,null,0,0,0,0,0,0,0,1,0,0,0,0,0,0,1,0,0,0,0,0,0,0,0,0,0,0,0,0,0,0,0,0,0,0,0,0,0,0,0,0]
[12299,"Best Friends By Ruth Maystead","Y",null,null,1,null,null,null,null,null,null,null,1]
[3113,"Best Pet Supplies Inc. ","Y",null,null,null,null,null,null,null,0,0,null,0,0,0,0,0,0,1,1,0,0,1,0,0,1,1,0,1,0,1,0,1,0,1,0,1,null,1,0,0,0,0,0,0,0,null,1,1,1,0,0]
[11039,"Best Shot Pet Products ","Y",null,null,null,null,1,null,null,0,0,null,0,0,0,0,0,1,1,1,0,0,0,0,0,0,0,0,0,0,0,0,0,0,0,0,0,0,0,0,0,0,1,0,0,1,0,0,0,0,0,0]
[13158,"BH Pet Gear","Y",null,null,null,null,null,null,null,null,null,null,null,null,null,null,null,null,null,1,null,1,null,null,null,null,1,null,null,null,null,null,null,null,null,null,null,null,null,null,null,null,1,null,1]
[10248,"BHD Information Systems-Retail Pro","Y",null,null,null,null,null,null,null,null,null,1]
[6269,"Big Boi and Bobbi","Y",null,null,null,null,null,null,null,null,null,null,null,null,null,null,null,null,1,1,null,null,null,null,null,null,null,null,null,null,null,null,null,null,null,null,null,null,null,null,null,null,null,null,null,1]
[8073,"Big Heart Pet Brands ","Y",null,1,null,null,null,null,null,0,0,null,0,0,0,0,0,0,1,1,0,0,0,0,1,0,1,0,0,0,0,0,0,0,0,0,0,0,0,0,0,0,0,0,0,0,0,0,0,0,0,0]
[13305,"Bihlerflex","Y",null,null,1,null,null,null,null,null,null,null,null,null,null,null,null,null,null,1,null,null,1,null,null,null,null,null,1]
[13107,"Bil-Jac Foods","Y",null,null,null,null,null,null,null,null,null,null,null,null,null,null,null,null,null,1,null,null,null,null,1,null,1]
[9245,"Bio Groom","Y",null,null,null,null,null,null,null,0,0,null,0,0,0,0,1,1,1,1,0,0,0,0,0,0,0,0,0,0,0,0,0,0,0,0,0,0,0,0,0,0,1,1,0,1,0,0,0,0,0,0]
[3152,"BioDOGradable Bags","Y",null,null,null,null,null,null,1,null,null,null,null,null,null,null,null,null,null,1,null,null,null,null,null,null,null,null,null,null,null,null,null,null,null,null,null,null,null,null,null,null,null,null,null,null,null,null,null,1]
[5219,"Biokleen","Y",null,null,null,null,null,null,null,null,null,null,null,null,null,null,null,null,1,1,null,null,null,null,null,null,null,null,null,null,null,null,null,null,null,null,null,null,null,null,null,null,null,null,null,null,1]
[3082,"Bio-Rep Animal Health","Y",null,null,null,null,null,null,null,null,null,null,null,null,null,null,null,null,null,1,null,null,null,null,null,null,null,null,null,null,null,null,null,null,null,null,null,null,null,null,null,null,1]
[4155,"BioUrn 4 Pets","Y",null,null,null,null,null,null,1,null,null,null,1]
[9049,"Biscuit Bob's Gourmet Dog Treats","Y",null,1,null,null,null,null,null,null,null,null,null,null,null,null,null,null,null,1,null,null,null,null,null,null,1]
[5055,"BIXBI Pet ","Y",null,1,null,null,null,null,null,0,0,null,0,0,0,0,0,0,null,1,0,0,0,0,0,0,1,0,0,0,0,0,0,0,0,0,0,0,0,0,0,0,1,0,0,0,0,0,0,0,0,0]
[3040,"Blackwood Pet Food ","Y",null,1,null,null,null,null,null,0,0,null,0,0,0,0,null,null,1,1,0,0,0,0,1,0,null,0,0,0,0,0,0,0,0,0,0,0,0,0,0,0,0,0,0,0,0,0,0,0,0,0]
[10127,"Blue Buffalo Co.","Y",null,null,null,null,null,null,null,0,0,null,0,0,0,0,0,0,1,1,0,0,0,0,1,0,1,0,0,0,0,0,0,0,0,0,0,0,0,1,0,0,0,0,0,0,0,0,0,0,0,0]
[7055,"Blue Dog Bakery ","Y",null,1,null,null,null,null,null,0,0,null,0,0,0,0,0,0,0,1,0,0,0,0,0,0,1,0,0,0,0,0,0,0,0,0,0,0,0,0,0,0,0,0,0,0,0,0,0,0,0,0]
[12256,"Blue Ribbon Pet Products","Y",null,null,null,null,null,null,null,0,0,null,0,1,1,1,1,0,0,1,0,0,0,0,0,0,0,0,1,0,0,0,0,0,0,0,0,0,0,0,0,0,0,0,0,0,0,0,0,0,0,0]
[4281,"Blue-9 Pet Products","Y",null,null,1,null,null,null,null,null,null,null,null,null,null,null,null,null,null,1,null,null,1,null,null,null,null,null,null,1]
[7166,"Bluestem Oral Care","Y",null,null,null,null,null,null,null,null,null,null,null,null,null,null,null,null,1,1,null,null,null,null,null,null,null,null,null,null,null,null,null,null,null,null,null,null,null,null,null,1,1]
[6271,"Bobbi Panter Pet Products ","Y",null,null,null,null,null,null,null,0,0,null,0,0,0,0,0,0,1,1,0,0,0,0,0,0,0,0,0,0,0,0,0,0,0,0,0,0,0,0,0,0,0,0,0,1,0,0,0,0,0,0]
[6035,"Bocce's Bakery ","Y",null,1,null,null,null,null,null,0,0,null,0,0,0,0,0,0,0,1,0,0,0,0,0,0,1,0,0,0,0,0,0,0,0,0,0,0,0,0,0,0,0,0,0,0,0,0,0,0,0,0]
[2067,"Bon Secour Valley Ingredients","Y",null,1,null,null,null,null,null,null,null,1,null,null,null,null,null,null,null,1,null,null,null,null,null,null,1]
[14290,"Bone Vivant","Y",null,null,1,null,null,null,null,null,null,null,null,null,null,null,null,null,null,1,null,1,1,null,null,null,null,null,null,null,null,null,null,null,null,null,1]
[4149,"Boo Boo's Best","Y",null,null,null,null,null,null,1,null,null,null,null,null,null,null,null,null,null,1,null,null,null,null,null,null,1,null,null,null,null,null,null,null,null,null,null,null,null,null,null,null,1]
[14276,"Bosco and Roxy's Inc. ","Y",null,null,1,null,null,null,null,null,null,null,null,null,null,null,null,null,null,1,null,null,null,null,null,null,1]
[3182,"Boss Pet Products","Y",null,null,null,null,null,null,null,0,0,null,0,0,0,0,0,0,1,1,0,1,1,0,0,1,1,1,1,0,0,null,0,1,null,0,0,null,0,0,1,0,1,null,1,1,null,0,null,1,0,0]
[5168,"Boston Treat House","Y",null,null,null,null,null,null,1,null,null,null,null,null,null,null,null,null,null,1,null,null,null,null,null,null,1]
[14052,"Bottle Blasters","Y",null,null,null,null,1,null,null,null,null,null,null,null,null,null,null,null,null,1,null,null,null,null,null,1]
[3281,"Bow Wow Dog Houses","Y",null,null,1,null,null,null,null,null,null,null,null,null,null,null,null,null,null,1,null,null,null,null,null,null,null,null,null,null,null,null,null,null,null,null,null,null,1]
[14288,"Bowser Beer / 3 Busy Dogs,Inc.","Y",null,null,1,null,null,null,null,null,null,null,null,null,null,null,null,null,null,1,null,null,null,null,null,null,1,null,null,null,null,null,null,null,null,null,null,null,null,null,null,null,1]
[9279,"Bowsers Pet Products ","Y",null,null,1,null,null,null,null,0,0,null,0,0,0,0,0,0,1,1,0,1,1,0,0,1,0,0,0,0,0,0,0,0,1,0,0,1,0,0,0,0,0,0,0,0,0,0,0,0,0,0]
[13113,"Bow-Wow Pet (European Home Design)","Y",null,null,null,null,null,null,null,0,0,null,0,0,0,0,null,0,null,1,0,null,1,0,0,0,0,0,1,0,0,null,0,0,1,0,1,1,null,0,0,0,0,0,null,0,0,0,1,1,0,0]
[5171,"Boxiecat LLC","Y",null,null,null,null,null,null,1,null,null,null,null,null,null,null,null,null,1,null,null,null,null,null,null,null,null,null,null,null,null,null,null,null,null,null,null,null,null,1,null,null,null,null,null,null,1]
[5208,"Boyd Enterprises ","Y",null,null,null,1,null,null,null,0,0,null,0,1,0,0,0,0,0,0,0,0,0,0,0,0,0,0,0,0,0,0,0,0,0,0,0,0,0,0,0,0,0,0,0,0,0,0,0,0,0,0]
[4112,"BPV Environmental/Fresh News Pet Prod","Y",null,null,null,null,null,null,null,0,0,null,0,0,0,null,1,0,1,null,0,0,0,0,0,0,0,0,0,0,0,0,0,0,0,0,0,0,0,1,0,0,0,0,0,0,0,0,0,0,0,0]
[12189,"Bramton Company LLC","Y",null,null,null,null,null,null,null,0,0,null,0,0,0,0,0,0,1,1,0,0,null,0,0,0,0,0,0,0,0,0,0,0,0,0,0,0,0,1,0,1,1,1,0,1,1,0,1,1,0,0]
[10066,"Bravo! Pet Foods","Y",null,1,null,null,null,null,null,0,0,null,0,0,0,0,0,0,1,1,0,0,0,0,1,0,1,0,0,0,0,0,0,0,0,0,0,0,0,0,0,0,1,0,0,0,0,0,0,0,0,0]
[2249,"BrazilianMat","Y",null,null,null,null,null,null,null,null,null,null,null,null,null,null,null,null,1,1,null,null,null,null,null,null,null,null,null,null,null,null,null,null,null,null,null,null,null,null,null,null,null,null,null,null,1]
[4238,"Browning Pet Products","Y",null,null,null,null,null,null,null,null,null,null,null,null,null,null,null,null,null,1,null,1,1,null,null,1,null,null,1,null,null,null,null,null,1,null,null,1]
[14267,"BrownTrout Publishers","Y",null,null,null,null,null,null,null,null,null,null,1]
[2057,"Bubba Rose Biscuit Co","Y",null,1,null,null,null,null,null,null,null,null,null,null,null,null,null,null,null,1,null,null,null,null,null,null,1]
[3277,"Buckle-Down Inc.","Y",null,null,1,null,null,null,null,0,0,null,0,0,0,0,0,0,0,1,0,0,1,0,0,0,0,0,0,0,0,0,0,0,0,0,0,0,0,0,0,0,0,0,0,0,0,0,0,0,0,0]
[4008,"Buckley Pet","Y",null,1,null,null,null,null,null,null,null,null,null,null,null,null,null,null,null,1,null,null,null,null,null,null,1]
[3257,"Buddy Belts & Multi Collars","Y",null,null,null,null,null,null,null,0,0,null,0,0,0,0,0,0,0,1,0,0,1,0,0,0,0,0,0,0,0,0,0,0,0,0,0,0,0,0,0,0,0,0,0,0,0,0,0,0,0,0]
[5269,"Buddy's Line - Royal Trade USA, Inc.","Y",null,null,null,null,null,null,null,0,0,null,0,0,0,0,0,0,1,1,0,0,0,0,0,1,0,0,0,0,0,0,0,0,0,0,0,0,0,0,0,0,0,0,0,0,0,0,0,0,0,0]
[6198,"Bump It Off by Goddess of Gadgets","Y",null,null,null,null,null,null,null,0,0,null,0,0,0,0,0,0,1,1,0,0,0,0,null,0,null,0,0,0,0,0,0,0,0,0,0,0,0,0,0,0,0,0,1,0,0,0,0,0,0,0]
[14299,"Business Control Systems Corp.","Y",null,null,1,null,null,null,null,null,null,1]
[7113,"Busy Buddy","Y",null,null,null,null,null,null,null,null,null,null,null,null,null,null,null,null,1,1,null,null,null,null,null,null,1,null,1]
[2266,"Butchers Block Pet Treats dba Heartland Premium","Y",null,null,null,null,null,null,null,0,0,null,0,0,0,0,0,0,0,1,0,0,0,0,0,0,1,0,0,0,0,0,0,0,0,0,0,0,0,0,0,0,0,0,0,0,0,0,0,0,0,0]
[7249,"Butcher's Bones","Y",null,null,null,null,null,null,null,null,null,null,null,null,null,null,null,null,null,1,null,null,null,null,null,null,1]
[11028,"Butler Home Products","Y",null,null,null,null,1,null,null,null,null,null,null,null,null,null,null,null,1,1,null,null,null,null,null,null,null,null,null,null,null,null,null,null,null,null,null,null,null,null,null,null,null,null,1,null,1]
[5267,"C & C Nylon","Y",null,null,null,null,null,null,null,null,null,null,null,null,null,null,null,null,null,1,null,null,1]
[3190,"C & S Products Company Inc","Y",null,null,null,1,null,null,null,null,null,null,null,null,null,1]
[9032,"CA K9 CO LLC","Y",null,1,null,null,null,null,null,null,null,null,1]
[13077,"Caitec Corp","Y",null,null,null,null,null,null,null,0,0,null,0,1,0,1,1,0,0,1,0,0,0,0,0,null,0,0,1,0,0,0,0,0,0,0,null,0,0,0,0,0,0,0,0,0,0,0,0,0,0,0]
[3066,"Calm My Pet","Y",null,1,null,null,null,null,null,null,null,null,null,null,null,null,null,null,1,1,null,null,null,null,null,null,null,null,null,null,null,null,null,null,null,null,null,null,null,null,null,null,1]
[9121,"Canada Pooch","Y",null,null,null,null,null,null,null,0,0,null,0,0,0,0,0,0,0,1,0,1,1,0,0,0,0,0,0,0,0,0,0,0,1,0,0,0,0,0,0,0,0,0,0,0,0,0,0,0,0,0]
[6119,"Canagan Pet Foods LLC","Y",null,null,null,null,null,null,null,null,null,null,null,null,null,null,null,null,null,1,null,null,null,null,1]
[8097,"Canidae Natural Pet Food Co.","Y",null,null,null,null,null,null,null,0,0,null,0,0,0,0,0,0,1,1,0,0,0,0,1,0,1,0,0,0,0,0,0,0,0,0,0,0,0,0,0,0,0,0,0,0,0,0,0,0,0,0]
[6283,"Canine Brands Worldwide","Y",null,null,1,null,null,null,null,null,null,null,null,null,null,null,null,null,null,1,null,1,1,null,null,1,null,null,null,null,null,null,null,null,1]
[6077,"Canine Caviar Pet Foods Inc. ","Y",null,1,null,null,null,null,null,0,0,null,0,0,0,0,0,0,1,1,0,0,0,0,1,0,1,0,0,0,0,0,0,0,0,0,0,0,0,0,0,0,1,0,0,0,0,0,0,0,0,0]
[3067,"Canna-Pet LLC","Y",null,1,null,null,null,null,null,null,null,null,null,null,null,null,null,1,1,1,null,null,null,null,null,null,null,null,null,null,null,null,null,null,null,null,null,null,null,null,null,null,1]
[14291,"Capital One Spark Business Card","Y",null,null,1,null,null,null,null,null,null,1]
[13306,"Caravan Canopy Int'l","Y",null,null,1,null,null,null,null,null,null,null,1,null,null,null,null,null,null,1,null,null,null,null,null,null,null,null,null,null,null,null,null,null,1]
[6101,"Cardinal Gates Inc.","Y",null,null,null,null,null,null,null,null,null,null,null,null,null,null,null,null,null,1,null,null,null,null,null,null,null,null,null,null,null,null,null,null,null,1]
[8199,"Cardinal Pet Care","Y",null,null,null,null,null,null,null,0,0,null,null,0,0,0,0,0,1,1,0,0,1,null,null,null,1,null,1,0,null,0,0,0,null,0,null,0,0,0,0,1,1,1,0,1,null,1,0,0,0,0]
[2062,"Cargill ","Y",null,1,null,null,null,null,null,null,null,null,null,null,null,null,null,null,null,1,null,null,null,null,null,null,1,1]
[2028,"Cargill/Regenasure Glucosamine","Y",null,1,null,null,null,null,null,null,null,1,null,null,null,null,null,null,null,1,null,null,null,null,1,null,null,null,null,null,null,null,null,null,null,null,null,null,null,null,null,null,1]
[2223,"CaribSea Inc","Y",null,null,null,1,null,null,null,null,null,null,null,1,1]
[10141,"Carlson Pet Products","Y",null,null,null,null,null,null,null,0,0,null,0,0,0,0,0,0,1,1,0,0,0,0,0,0,0,0,0,0,0,0,0,0,1,1,1,0,0,0,0,0,0,0,0,0,0,0,0,0,0,0]
[5042,"Carna4 Hand Crafted Pet Food ","Y",null,1,null,null,null,null,null,null,null,null,null,null,null,null,null,null,null,1,null,null,null,null,1,null,1]
[1245,"Carolina Pet Company LLC","Y",null,null,null,null,null,null,null,null,null,null,null,null,null,null,null,null,1,1,null,null,null,null,null,null,null,null,null,null,null,null,null,null,1,null,null,1]
[12271,"Carolina Prime Pet Inc. ","Y",null,null,null,null,null,null,null,0,0,null,0,0,0,0,0,0,0,1,0,0,0,0,0,0,1,null,0,null,0,0,0,0,null,0,0,null,0,0,0,0,0,0,0,0,0,0,0,0,0,0]
[6011,"CARU Pet Food Company ","Y",null,1,null,null,null,null,null,0,0,null,0,0,0,0,0,0,0,1,0,0,0,0,1,0,1,0,0,0,0,0,0,0,0,0,0,0,0,0,0,0,0,0,0,0,0,0,0,0,0,0]
[4270,"Cat Crib","Y",null,null,null,null,null,null,null,null,null,null,null,null,null,null,null,null,1,null,null,null,null,null,null,null,null,null,null,null,null,null,null,null,1]
[7216,"Cat Dancer Products Inc.","Y",null,null,null,null,null,null,null,0,0,null,0,0,0,0,0,0,1,0,0,0,0,0,0,0,null,0,1,0,0,1,0,0,0,0,0,0,0,0,0,0,0,0,0,0,0,0,0,0,0,0]
[7212,"Cats Rule Dogs Rock","Y",null,null,null,null,null,null,null,0,0,0,1,0,0,0,0,0,1,1,0,0,0,0,0,1,null,0,1,0,null,null,null,0,1,0,0,null,0,0,1,0,0,0]
[4219,"Cedar Hill Birds (4218)","Y",null,null,null,1,null,null,null,null,1,null,null,null,null,1]
[10029,"CedarCide","Y",null,1,null,null,null,null,null,null,null,null,null,null,null,null,null,1,1,1,null,null,null,null,null,null,null,null,null,null,null,null,null,null,null,null,null,null,null,null,null,null,null,1,null,1]
[2177,"Celebrity Pet Toys Company Ltd.","Y",null,null,null,null,null,null,null,null,null,null,null,null,null,null,null,null,null,1,null,null,null,null,null,null,null,null,1,null,null,null,null,null,null,null,null,null,null,null,null,null,null,null,null,0,0,0,0,0,0,0]
[9173,"Central Garden & Pet (11173)","Y",null,null,null,null,null,null,null,0,0,null,null,1,1,1,1,1,1,1,1,1,1,1,1,1,1,1,1,1,1,0,0,1,1,1,1,1,1,1,1,1,1,1,1,1,1,1,1,1,0,0]
[8257,"Central Pet Distribution ","Y",null,null,null,null,null,null,null,0,1,null,0,1,1,1,1,1,1,1,1,1,1,1,1,1,1,1,1,1,1,1,1,1,1,1,1,1,1,1,1,1,1,1,1,1,1,1,1,1,1,0]
[3199,"CerMedia LLC","Y",null,null,null,1,null,null,null,null,null,null,null,1]
[3271,"Chala Handbags","Y",null,null,null,null,null,null,null,null,null,null,1]
[12057,"Chammyz","Y",null,null,null,null,1,null,null,null,null,null,null,null,null,null,null,null,null,1,null,null,null,null,null,null,null,null,null,null,null,null,null,null,null,null,null,null,null,null,null,null,null,null,1]
[7001,"Champion Petfoods ","Y",null,1,null,null,null,null,null,0,0,null,0,0,0,0,0,0,1,1,0,0,0,0,1,0,1,0,0,0,0,0,0,0,0,0,0,0,0,0,0,0,0,0,0,0,0,0,0,0,0,0]
[13258,"Changshu Double Peace Pet Products ","Y",null,null,null,null,null,null,null,null,null,null,null,null,null,null,null,null,1,1,null,null,1,null,null,null,null,null,null,null,null,null,null,null,null,null,null,1]
[5286,"Changzhou Phoenixtree Sporting Goods Co., Ltd.","Y",null,null,1,null,null,null,null,null,null,null,1]
[7172,"Charming Pet Products ","Y",null,null,null,null,null,null,null,0,0,null,0,0,0,0,0,0,0,1,0,0,1,0,0,0,0,0,1,0,0,0,0,0,0,0,0,0,0,0,0,0,0,0,0,0,0,0,0,0,0,0]
[11293,"Chewish Pet Toys","Y",null,null,1,null,null,null,null,null,null,null,null,null,null,null,null,null,1,1,null,null,null,null,null,null,null,null,1,null,null,1]
[1277,"Chews Happiness","Y",null,null,null,null,null,null,null,null,null,null,null,null,null,null,null,null,null,1,null,1,1,null,null,null,1,null,1]
[4027,"Chicken Soup for the Soul Pet Food","Y",null,1,null,null,null,null,null,0,0,null,0,0,0,0,0,0,1,1,0,0,0,0,1,0,0,0,0,0,0,0,0,0,0,0,0,0,0,0,0,0,0,0,0,0,0,0,0,0,0,0]
[1249,"Chillspot.LLC","Y",null,null,null,null,null,null,null,null,null,null,null,null,null,null,null,null,null,1,null,null,null,null,null,null,null,null,null,null,null,null,null,null,1]
[7283,"Chilly Dog ","Y",null,null,1,null,null,null,null,0,0,null,0,0,0,0,0,0,null,1,0,1,null,0,0,0,0,0,null,0,0,0,0,0,0,0,0,0,0,0,0,0,0,0,0,0,0,0,0,0,0,0]
[6151,"Choco Nose","Y",null,null,null,null,null,null,1,null,null,null,null,null,null,null,1,null,1,1,null,null,null,null,null,1,null,null,null,null,null,null,null,null,null,null,1]
[4066,"Choice Wise Antler Pet Chews","Y",null,1,null,null,null,null,null,null,null,null,null,null,null,null,null,null,null,1,null,null,null,null,null,null,1,null,null,null,null,null,null,null,null,null,null,null,null,null,null,null,null,null,null,0,0,0,0,0,0,0]
[13049,"Chona Shears by C & J's Sharp Edge","Y",null,null,null,null,1,null,null,null,null,null,null,null,null,null,null,null,null,1,null,null,null,null,null,null,null,null,null,null,null,null,null,null,null,null,null,null,null,null,null,null,null,null,1]
[1195,"Claudia's Canine Bakery","Y",null,null,null,null,null,null,null,null,null,null,null,null,null,null,null,null,null,1,null,null,null,null,null,null,1]
[2212,"Cleair Aquatics Ltd","Y",null,null,null,1,null,null,null,null,null,null,null,1]
[10030,"Clear Conscience Pet","Y",null,1,null,null,null,null,null,null,null,null,null,null,null,null,null,null,null,1,null,null,null,null,null,null,1,null,null,null,null,null,null,null,null,null,null,null,null,null,null,null,1]
[5249,"ClearBags","Y",null,null,null,null,null,null,null,null,null,1]
[3164,"Clever Dog Products LLC","Y",null,null,null,null,null,null,1,null,null,null,1,null,null,null,null,null,null,1,null,1,null,null,null,null,null,null,1]
[3205,"Clifford W. Estes Co., Inc.","Y",null,null,null,1,null,null,null,0,0,0,0,1,1,0,1,0,0,0,0,0,0,0,0,0,0,0,0,0,0,0,0,0,0,0,0,0,0,0,0,0,0,0,0,0,0,0,0,0,0,0]
[6165,"Close 2UR Heart","Y",null,null,null,null,null,null,1,null,null,null,1]
[7156,"ClotIt/Protege Biomedical","Y",null,null,null,null,null,null,null,null,null,null,null,null,null,null,null,null,1,1,null,null,null,null,null,null,null,null,null,null,null,null,null,null,null,null,null,null,null,null,null,null,1]
[12003,"cmcreatives","Y",null,null,null,null,1,null,null,null,null,null,null,null,null,null,null,null,null,1,null,null,null,null,null,null,null,null,null,null,null,null,null,null,null,null,null,null,null,null,null,null,null,null,1]
[4223,"Coast Tropicals (4222)","Y",null,null,null,1,null,null,null,null,1,null,null,1]
[8231,"Coastal Pet Products","Y",null,null,null,null,null,null,null,0,0,null,0,0,null,0,null,1,1,1,0,0,1,1,0,1,1,0,1,0,1,1,0,1,0,0,1,1,0,0,null,0,null,0,1,0,0,0,1,1,0,0]
[5157,"Coastline Global Inc","Y",null,null,null,null,null,null,1,null,null,null,null,null,null,null,null,null,1,1,null,null,null,null,null,null,null,null,null,null,null,null,null,null,null,null,null,null,null,null,null,null,1]
[5222,"Cobalt Aquatics","Y",null,null,null,1,null,null,null,0,0,null,0,1,0,0,0,0,0,0,0,0,0,0,0,0,0,0,0,0,0,0,0,0,0,0,0,0,0,0,0,0,0,0,0,0,0,0,0,0,0,0]
[9067,"CocoTherapy","Y",null,1,null,null,null,null,null,null,null,null,null,null,null,null,null,null,null,1,null,null,null,null,null,null,1,null,null,null,null,null,null,null,null,null,null,null,null,null,null,null,1]
[3183,"Colorado Pet Treats, LLC","Y",null,null,null,null,null,null,null,null,null,null,null,null,null,null,null,null,null,1,null,null,null,null,null,null,1]
[13271,"Colormasters LLC","Y",null,null,null,null,null,null,null,null,null,1]
[11019,"Comfy n' Easy","Y",null,null,null,null,1,null,null,null,null,null,null,null,null,null,null,null,null,1,null,null,null,null,null,null,null,null,null,null,null,null,null,null,null,null,null,null,null,null,null,null,null,null,1]
[2083,"Command Pet","Y",null,null,null,null,null,null,null,null,null,null,null,null,null,null,null,null,null,1,null,null,null,null,null,null,null,null,null,null,null,null,null,null,null,1]
[13119,"Company of Animals (The)","Y",null,null,null,null,null,null,null,0,0,null,0,0,0,0,0,0,1,1,0,0,1,0,0,1,1,0,1,0,0,0,0,0,0,0,0,1,0,0,0,0,0,0,0,0,0,0,0,0,1,0]
[7004,"Complete Natural Nutrition","Y",null,1,null,null,null,null,null,0,0,null,0,0,0,0,0,0,1,1,0,0,0,0,0,0,1,0,0,0,0,0,0,0,0,0,0,0,0,0,0,0,1,0,0,0,0,0,0,0,0,0]
[12260,"Comp-Ware Systems, Inc. ","Y",null,null,null,null,null,null,null,null,null,1]
[11061,"ConairPro Pet ","Y",null,null,null,null,null,null,null,0,0,null,0,0,0,0,0,1,1,1,0,0,1,0,0,0,0,0,0,0,0,0,0,0,0,0,0,0,0,0,0,0,0,0,1,1,0,0,0,0,0,0]
[5158,"CongreTek Inc.","Y",null,null,null,null,null,null,1,null,null,null,null,null,null,null,null,null,null,1,null,null,null,null,null,null,null,null,null,null,null,null,null,null,null,null,null,null,null,null,null,null,null,null,null,null,null,null,null,1]
[4157,"Coolaid, LLC","Y",null,null,null,null,null,null,1,null,null,null,null,null,null,null,null,1,null,1,null,1,null,null,null,null,null,null,null,null,null,null,null,null,null,null,null,null,null,null,null,null,1]
[5212,"Coral Restoration Foundation","Y",null,null,null,1,null,null,null,1,null,null,null,1]
[9173,"Coralife","Y",null,null,null,null,null,null,null,null,null,null,null,1]
[2278,"Cordero Media Strategies, LLC","Y",null,null,null,null,null,null,null,null,null,1]
[14280,"Corky's Reflective Wear","Y",null,null,1,null,null,null,null,null,null,null,null,null,null,null,null,null,null,1,null,1,1,null,null,null,null,null,null,null,null,null,null,null,null,null,null,null,null,null,null,null,null,null,null,0,0,0,0,0,0,0]
[3260,"Couch Defender, Inc.","Y",null,null,null,null,null,null,null,0,0,0,0,0,0,0,0,0,0,1,0,0,0,0,0,0,0,0,0,0,0,0,1,0,0,0,0,0,0,0,0,0,0,0,0,0,0,0,0,0,0,0]
[3069,"CountryPet Naturals","Y",null,1,null,null,null,null,null,null,null,null,null,null,null,null,null,null,1,1,null,null,null,null,1,null,1]
[2251,"Coveris","Y",null,null,null,null,null,null,null,null,null,1]
[2272,"CPA Systems, Inc (PupLight)","Y",null,null,null,null,null,null,null,null,null,null,null,null,null,null,null,null,null,1,null,null,1,null,null,1,null,null,null,null,null,null,null,null,null,null,null,null,null,null,null,null,null,null,1]
[1256,"Creata","Y",null,null,null,null,null,null,null,null,null,1]
[3155,"Creative Pet Group LLC","Y",null,null,null,null,null,null,1,null,null,null,null,null,null,null,null,null,null,null,null,null,null,null,null,null,null,null,null,null,1,null,null,null,1,null,null,null,null,null,1,null,null,null,null,1,1,1,1,1]
[10289,"Creature Comforts","Y",null,null,1,null,null,null,null,null,null,null,1,null,null,null,null,null,1,1,null,null,null,null,null,1,1,null,1]
[5248,"Critter Creed by Sage","Y",null,null,null,null,null,null,null,null,null,null,1]
[12004,"Crossover by Wascomat","Y",null,null,null,null,1,null,null,null,null,1,null,null,null,null,null,null,null,null,null,null,null,null,null,null,null,null,null,null,null,null,null,null,null,null,null,null,null,null,null,null,null,null,1]
[5194,"Crystal Dynamic Aquarium Mfg","Y",null,null,null,1,null,null,null,null,null,null,null,1]
[12048,"Crystal Works","Y",null,null,null,null,1,null,null,null,null,null,1]
[3150,"Crystalotions LLC","Y",null,null,null,null,null,null,1,null,null,null,null,null,null,null,null,1,null,1,null,null,null,null,null,null,null,null,null,null,null,null,null,null,null,null,null,null,null,null,null,null,1]
[4265,"C-United Group Corp","Y",null,null,null,null,null,null,null,null,null,1,null,null,null,null,null,null,1,1,null,1,null,null,null,null,null,null,1,null,null,null,null,null,1,null,1]
[3273,"Curli","Y",null,null,null,null,null,null,null,null,null,null,null,null,null,null,null,null,null,1,null,null,1,null,null,1]
[2213,"Current USA ","Y",null,null,null,1,null,null,null,0,0,null,0,1,0,0,0,0,0,0,0,0,0,0,0,0,0,0,0,0,0,0,0,0,0,0,0,0,0,0,0,0,0,0,0,0,0,0,0,0,0,0]
[5172,"Curtis Wagner Plastics Corp","Y",null,null,null,null,null,null,null,null,null,null,null,null,null,null,null,null,1,1,null,null,null,null,null,1,null,null,null,null,null,null,null,null,null,null,null,null,null,null,1]
[8172,"Cycle Dog-Earth Friendly Pet Co. ","Y",null,null,null,null,null,null,null,0,0,null,0,0,0,0,0,0,0,1,0,null,1,0,0,1,1,0,1,0,0,0,0,0,0,0,0,0,0,0,0,0,0,0,0,0,0,0,0,1,0,0]
[6116,"D.T. Systems","Y",null,null,null,null,null,null,null,0,0,null,0,0,0,0,0,0,0,1,0,0,1,0,0,0,0,0,0,0,0,0,0,1,0,0,0,0,0,0,0,0,0,0,0,0,0,0,0,0,1,1]
[3210,"Dainichi Fish Food (3211)","Y",null,null,null,1,null,null,null,null,null,null,null,1]
[11173,"Dallas Manufacturing Co. ","Y",null,null,null,null,null,null,null,0,0,null,0,0,0,0,0,0,1,1,0,1,1,0,0,0,null,0,1,0,null,null,null,0,1,0,1,null,0,0,0,0,0,0,0,0,0,0,null,0,0,0]
[9244,"Darford Industries, Ltd.","Y",null,null,null,null,null,null,null,0,0,null,0,0,0,0,0,0,0,1,0,0,0,0,0,0,1,0,0,0,0,0,0,0,0,0,0,0,0,0,0,0,0,0,0,0,0,0,0,0,0,0]
[10120,"Dave's Pet Food ","Y",null,null,null,null,null,null,null,0,0,null,0,0,null,null,0,0,1,1,0,0,0,0,1,0,0,0,0,0,0,0,0,0,0,0,0,0,0,0,0,0,0,0,0,0,0,0,0,0,0,0]
[13008,"Day of Show/Chris Christensen","Y",null,null,null,null,1,null,null,null,null,null,1,null,null,null,null,null,1,1,null,null,null,null,null,null,null,null,null,null,null,null,null,null,null,null,null,null,null,null,null,null,1,null,1,1,1]
[3245,"Day to Day Imports, Inc.","Y",null,null,null,null,null,null,null,null,null,null,null,null,null,null,null,null,1,1,null,null,1,null,null,1,null,null,null,null,null,null,1,null,1,null,1,1,1,null,null,null,null,null,1,null,0,0,0,1,0,0]
[10288,"Dazzle Pet","Y",null,null,1,null,null,null,null,null,null,null,null,null,null,null,null,null,1,1,null,null,1]
[8268,"Dazzling Paws Jewelry LLC","Y",null,null,null,null,null,null,null,null,null,null,1]
[4287,"Designspirit USA","Y",null,null,1,null,null,null,null,null,null,null,1]
[13147,"Dexas International","Y",null,null,null,null,null,null,null,0,0,null,0,0,0,0,0,0,0,1,0,0,0,0,0,1,0,0,0,0,0,0,0,0,0,0,0,0,0,0,0,0,0,0,0,0,0,0,0,0,0,0]
[6160,"Dharma Dog Karma Cat","Y",null,null,null,null,null,null,1,null,null,null,null,null,null,null,null,null,1,1,null,null,null,null,null,null,null,null,1,null,null,null,null,null,1]
[7173,"Diamond Pet Foods","Y",null,null,null,null,null,null,null,null,null,null,null,null,null,null,null,null,1,1,null,null,null,null,1]
[3061,"Diggin' Your Dog","Y",null,1,null,null,null,null,null,null,null,null,null,null,null,null,null,1,1,1,null,null,null,null,null,null,1,null,null,null,null,null,null,null,null,null,null,null,null,null,null,null,1]
[6257,"Dingo","Y",null,null,null,null,null,null,null,null,null,null,null,null,null,null,null,null,null,1,null,null,null,null,null,null,1,1,null,null,null,null,null,null,null,null,null,null,null,null,null,1]
[11043,"Direct Animal Products","Y",null,null,null,null,1,null,null,null,null,1,null,null,null,null,null,null,1,1,null,null,null,null,null,null,null,null,null,null,null,null,null,null,null,1,1,null,1,null,null,null,null,null,1]
[6064,"Distinctive Dog ","Y",null,1,null,null,null,null,null,null,null,null,null,null,null,null,null,null,null,1,null,null,null,null,null,null,1]
[6278,"Doca Pet","Y",null,null,1,null,null,null,null,null,null,null,null,null,null,null,null,null,null,1,null,1,null,null,null,1,null,null,null,null,null,null,null,null,1]
[5282,"DOCO Pet LLC","Y",null,null,1,null,null,null,null,null,null,null,null,null,null,null,null,null,1,1,null,null,1]
[9034,"Dog Bark Naturals","Y",null,1,null,null,null,null,null,null,null,null,null,null,null,null,null,null,null,1,null,null,null,null,null,null,1]
[5273,"Dog Diggin Designs","Y",null,null,null,null,null,null,null,null,null,null,null,null,null,null,null,null,null,1,null,null,null,null,null,null,null,null,1,null,null,null,null,null,1]
[13257,"DOG for DOG ","Y",null,null,null,null,null,null,null,0,0,null,0,0,0,0,0,0,0,1,0,0,0,0,1,0,1,0,0,0,0,0,0,0,0,0,0,0,0,0,0,0,0,0,0,1,0,0,0,0,0,0]
[10121,"Dog Gone Smart Pet Products ","Y",null,null,null,null,null,null,null,0,0,null,0,0,0,0,0,null,1,1,0,1,1,0,0,0,0,0,0,0,0,0,0,0,1,0,0,0,0,0,1,0,0,0,0,0,0,0,0,0,0,0]
[13276,"Dog Is Good","Y",null,null,1,null,null,null,null,0,0,null,1,0,0,0,0,0,0,1,0,null,1,1,0,1,0,0,null,0,0,0,0,0,0,0,0,0,0,0,0,0,0,0,0,0,0,0,0,1,0,0]
[5167,"Dog Mocs","Y",null,null,null,null,null,null,1,null,null,null,null,null,null,null,null,null,null,1,null,1]
[10048,"Dog Not Gone","Y",null,1,null,null,null,null,null,0,0,0,0,0,0,0,0,1,0,1,0,1,1,0,0,0,0,0,0,0,0,0,0,0,0,0,0,0,0,0,0,0,0,0,0,0,0,0,0,0,0,0]
[4117,"Dog Rocks ","Y",null,null,null,null,null,null,null,0,0,null,0,0,0,0,0,0,0,1,0,0,0,0,0,0,0,0,0,0,0,0,0,0,0,0,0,0,0,0,0,0,1,0,0,0,1,0,0,0,0,0]
[10290,"Dog Speak ","Y",null,null,1,null,null,null,null,0,0,null,1,0,0,0,0,0,0,0,0,0,0,0,0,0,0,0,0,0,0,0,0,0,0,0,0,0,0,0,0,0,0,0,0,0,0,0,0,0,0,0]
[6040,"Dog Star Food","Y",null,1,null,null,null,null,null,null,null,null,null,null,null,null,null,null,null,1,null,null,null,null,null,null,1]
[14297,"Dogaholics","Y",null,null,1,null,null,null,null,null,null,null,1,null,null,null,null,null,null,1,null,null,null,null,null,null,null,null,1]
[2181,"Dog-e-Glow","Y",null,null,null,null,null,null,null,null,null,null,null,null,null,null,null,null,null,1,null,null,1]
[7287,"Doggie Design","Y",null,null,1,null,null,null,null,0,0,null,1,0,0,0,0,0,0,1,0,1,1,0,0,0,null,0,null,0,0,0,0,0,1,0,0,0,0,0,0,0,0,0,0,0,0,0,0,0,0,0]
[11267,"Doggie Walk Bags, Inc.","Y",null,null,null,null,null,null,null,null,null,null,null,null,null,null,null,null,1,1,null,null,null,null,null,null,null,null,null,null,null,null,null,null,null,null,null,null,null,null,null,null,null,null,null,null,null,null,null,1]
[10271,"Doggles","Y",null,null,null,null,null,null,null,0,0,null,1,0,0,0,0,0,1,1,0,1,1,0,0,1,0,0,1,0,1,0,0,0,1,0,1,0,0,0,0,0,1,0,0,0,0,0,0,0,0,0]
[12293,"Doggy Wrappers","Y",null,null,1,null,null,null,null,null,null,null,null,null,null,null,null,null,null,1,null,1]
[13294,"Dogla Inc","Y",null,null,1,null,null,null,null,null,null,null,null,null,null,null,null,null,null,1,null,null,1]
[4089,"Dogline ","Y",null,null,null,null,null,null,null,0,0,null,0,0,0,0,0,0,null,1,0,0,1,0,0,0,0,0,1,0,0,0,0,0,0,0,0,null,0,0,0,0,0,0,0,0,0,0,0,0,0,0]
[3064,"Dogs Love Kale","Y",null,1,null,null,null,null,null,null,null,null,null,null,null,null,null,null,null,1,null,null,null,null,null,null,1]
[3282,"Dogsport Inc.","Y",null,null,null,null,null,null,null,null,null,null,null,null,null,null,null,null,null,1,null,null,null,null,null,1]
[10035,"Dogswell ","Y",null,1,null,null,null,null,null,0,0,null,0,0,0,0,0,0,1,1,0,0,0,0,1,0,1,0,0,0,0,0,0,0,0,0,0,0,0,0,0,0,0,0,0,0,0,0,0,0,0,0]
[3174,"Doog","Y",null,null,null,null,null,null,null,null,null,null,null,null,null,null,null,null,null,1,null,null,1,null,null,1,null,null,1,null,null,null,null,null,null,null,null,null,null,null,null,null,null,null,null,null,null,1,null,1]
[4262,"Doo-n-go","Y",null,null,null,null,null,null,null,null,null,null,null,null,null,null,null,null,1,1,null,null,null,null,null,null,null,null,null,null,null,null,null,null,null,null,null,null,null,null,1,null,null,null,null,null,null,null,null,1]
[2055,"Dr Zoo","Y",null,1,null,null,null,null,null,null,null,null,null,null,null,null,null,null,1,1,null,null,null,null,null,null,null,null,null,null,null,null,null,null,null,null,null,null,null,null,null,null,1,null,1,1]
[4020,"Dr. Becker's Bites","Y",null,1,null,null,null,null,null,null,null,null,null,null,null,null,null,null,1,1,null,null,null,null,null,null,1,null,null,null,null,null,null,null,null,null,null,null,null,null,null,null,1]
[11244,"Dr. Elsey Precious Cat","Y",null,null,null,null,null,null,null,null,null,null,null,null,null,null,null,null,1,null,null,null,null,null,1,null,null,null,null,null,null,null,null,null,null,null,null,null,null,1]
[2018,"Drainbo","Y",null,1,null,null,null,null,null,null,null,null,null,null,null,null,null,null,1,1,null,null,null,null,null,null,null,null,null,null,null,null,null,null,null,null,null,null,null,null,null,null,null,null,null,null,1]
[7113,"Drinkwell","Y",null,null,null,null,null,null,null,null,null,null,null,null,null,null,null,null,1,1,null,null,null,null,null,1]
[9135,"DrTim’s Aquatics, LLC","Y",null,null,null,null,null,null,null,null,null,null,null,1]
[2183,"Drymate","Y",null,null,null,null,null,null,null,null,null,null,null,null,null,1,1,null,1,1,null,null,1,null,null,1,null,null,null,null,null,null,null,null,1,null,null,null,null,null,null,null,null,null,1,null,null,null,null,1]
[7162,"DuckyWorld Products Inc.","Y",null,null,null,null,null,null,null,0,0,null,0,0,0,0,0,0,1,0,0,0,0,0,0,0,1,0,1,0,1,0,0,0,0,0,0,0,0,0,0,0,0,0,0,0,0,0,0,0,0,0]
[2191,"Dura-Pack","Y",null,null,null,1,null,null,null,null,null,1]
[1199,"Durkha Dog Chew","Y",null,null,null,null,null,null,null,null,null,null,null,null,null,null,null,null,null,1,null,null,null,null,null,null,1]
[13287,"E & S Pets","Y",null,null,1,null,null,null,null,0,0,0,1,0,0,null,null,null,null,null,0,0,0,0,0,0,0,0,0,0,0,0,0,0,0,0,0,0,0,0,0,0,0,0,0]
[5001,"Earth Animal Ventures","Y",null,1,null,null,null,null,null,null,null,null,null,null,null,null,null,null,1,1,null,null,null,null,null,null,1,null,1,null,null,null,null,null,null,null,null,null,null,null,null,null,1,1,null,0,1,0,0,0,0,0]
[3241,"Earth Friendly Products","Y",null,null,null,null,null,null,null,null,null,null,null,null,null,1,null,null,1,1,null,null,null,null,null,null,null,null,null,null,null,null,null,null,null,null,null,null,null,null,null,null,null,null,null,1,1,1]
[13089,"Earth Rated ","Y",null,null,null,null,null,null,null,0,0,null,0,0,0,0,0,0,0,1,0,0,0,0,0,0,0,0,0,0,0,0,0,0,0,0,0,0,0,0,0,0,0,0,0,0,0,0,0,1,0,0]
[8271,"Earthbath /Sheapet","Y",null,null,null,null,null,null,null,0,0,null,0,0,0,0,0,0,1,1,0,0,0,0,0,0,0,0,0,0,0,0,0,0,0,0,0,0,0,0,0,0,0,0,0,1,0,1,0,0,0,0]
[2245,"Eastern Exports","Y",null,null,null,null,null,null,null,null,null,null,null,null,null,null,null,null,1,1,null,1,1,null,null,null,null,null,1]
[2197,"EasyTurf","Y",null,null,null,1,null,null,null,0,0,null,0,0,0,0,0,0,0,1,0,0,0,0,0,0,0,0,0,0,0,0,0,0,0,0,0,0,0,0,0,0,0,0,0,0,0,0,0,1,0,0]
[6169,"Eco Paper Products Mfg. Sdn Bhd","Y",null,null,null,null,null,null,1,null,null,null,null,null,null,null,1,null,1,null,null,null,null,null,null,null,null,null,null,null,null,null,null,null,null,null,null,null,null,1,1]
[7218,"E-Collar Technologies","Y",null,null,null,null,null,null,null,0,0,null,0,0,0,0,0,null,0,1,0,0,1,0,0,0,0,0,0,0,0,0,0,1,0,0,0,0,0,0,0,0,null,0,0,0,0,0,0,0,1,0]
[5263,"EcoPett","Y",null,null,null,null,null,null,null,null,null,null,null,null,null,null,1,1,1,null,null,null,null,null,null,null,null,null,null,null,null,null,null,null,null,null,null,null,null,1]
[6159,"EcoSmart Designs","Y",null,null,null,null,null,null,1,null,null,null,1]
[10019,"Einstein Pets","Y",null,1,null,null,null,null,null,null,null,null,null,null,null,null,null,null,null,1,null,null,null,null,null,null,1]
[5244,"ElastiTag - Bedford Industries","Y",null,null,null,null,null,null,null,null,null,1]
[3268,"Elegant Home Fashions","Y",null,null,null,null,null,null,null,null,null,null,null,null,null,null,null,null,null,1,null,null,null,null,null,null,null,null,null,null,null,null,1,null,null,1,1]
[8256,"Elive LLC ","Y",null,null,null,null,null,null,null,0,0,null,0,1,0,0,0,0,0,1,0,0,0,0,0,0,1,0,1,0,0,0,0,0,0,0,0,0,0,0,0,0,0,0,0,0,0,0,0,0,0,0]
[4041,"Ello Pet Supply","Y",null,1,null,null,null,null,null,null,1,null,null,null,null,null,null,null,1,1,null,1,1,null,null,null,1,null,1,null,null,null,null,null,null,null,null,null,null,null,null,null,1,null,null,null,1]
[7282,"Elmo's Closet ","Y",null,null,1,null,null,null,null,0,0,null,0,0,0,0,0,0,1,1,0,0,1,0,0,0,0,0,0,0,0,0,0,0,0,0,0,0,0,0,0,0,0,0,0,0,0,0,0,0,0,0]
[3077,"Emerald Pet Products ","Y",null,1,null,null,null,null,null,0,0,null,0,0,0,0,0,0,1,1,0,0,0,0,0,0,1,0,1,0,0,0,0,0,0,0,0,0,0,0,0,0,0,0,0,0,0,0,0,0,0,0]
[3112,"Emmerson Packaging (PolyCello)","Y",null,null,null,null,null,null,null,null,null,1]
[13282,"Enchante Accessories/ Precious Tails","Y",null,null,1,null,null,null,null,null,null,null,null,null,null,null,null,null,null,1,null,null,null,null,null,null,null,null,1,null,null,null,null,null,1,null,1,1]
[6066,"Endless Mt. Oil Blends for Pets","Y",null,1,null,null,null,null,null,null,null,null,null,null,null,null,null,1,1,1,null,null,null,null,null,null,null,null,null,null,null,null,null,null,null,null,null,null,null,null,null,null,1]
[3175,"Endura Flap Pet Doors","Y",null,null,null,null,null,null,null,null,null,null,null,null,null,null,null,null,1,1,null,null,null,null,null,null,null,null,null,null,null,null,null,null,null,1]
[3198,"Enduring Images, Inc.","Y",null,null,null,1,null,null,null,null,null,null,1]
[3162,"EnjoyLife Inc","Y",null,null,null,null,null,null,1,null,null,null,1]
[11044,"Envirogroom Professional Pet Products","Y",null,null,null,null,1,null,null,null,null,null,null,null,null,null,null,null,1,1,null,null,null,null,null,null,null,null,null,null,null,null,null,null,null,null,null,null,null,null,null,null,null,null,null,1,1]
[6197,"EQyss Grooming Products Inc.","Y",null,null,null,null,null,null,null,null,null,null,null,null,null,null,null,null,1,1,null,null,null,null,null,null,null,null,null,null,null,null,null,null,null,null,null,null,null,null,null,null,1,null,null,1,0,0,0,0,0,0]
[2211,"Eshopps, Inc.","Y",null,null,null,1,null,null,null,0,0,0,0,1,0,0,0,0,0,null,0,0,0,0,0,0,0,0,null,0,0,0,0,0,0,0,0,0,0,0,0,0,0,0,0]
[9017,"Espree Animal Products","Y",null,1,null,null,null,null,null,0,0,null,0,0,0,0,0,1,1,1,0,0,0,0,0,0,0,0,0,0,0,0,0,0,0,0,0,0,0,0,0,0,1,1,0,1,1,1,0,0,0,0]
[8245,"Ethical Products (8244)","Y",null,null,null,null,null,null,null,0,0,null,0,null,0,null,null,0,1,1,0,1,null,0,0,1,1,1,1,0,1,1,0,1,0,0,1,1,0,0,1,0,0,0,1,0,0,0,1,1,0,0]
[10194,"Evanger's Dog & Cat Food Co. ","Y",null,null,null,null,null,null,null,0,0,null,0,0,0,0,1,0,1,1,0,0,0,0,1,0,1,0,0,0,0,0,0,0,0,0,0,0,0,0,0,0,0,0,0,0,0,0,0,0,0,0]
[13286,"Evans Collars","Y",null,null,1,null,null,null,null,null,null,null,null,null,null,null,null,null,1,1,null,null,1]
[4158,"Evolution Dog Treats","Y",null,null,null,null,null,null,1,null,null,null,null,null,null,null,null,null,null,1,null,null,null,null,null,null,1]
[10189,"Evolution Dog Wash","Y",null,null,null,null,null,null,null,null,null,1,null,null,null,null,null,null,null,1,null,null,null,null,null,null,null,null,null,null,null,null,null,null,null,null,null,null,null,null,null,null,null,null,1]
[11014,"Evolution Shears","Y",null,null,null,null,1,null,null,null,null,1,null,null,null,null,null,null,1,1,null,null,null,null,null,null,null,null,null,null,null,null,null,null,null,null,null,null,null,null,null,null,null,null,1]
[5155,"Ewegurt,LLC","Y",null,null,null,null,null,null,1,null,null,null,null,null,null,null,null,null,null,1,null,null,null,null,null,null,1,null,null,null,null,null,null,null,null,null,null,null,null,null,null,null,1,null,null,1]
[6257,"Excel","Y",null,null,null,null,null,null,null,null,null,null,null,null,null,null,null,null,1,1,null,null,null,null,null,null,null,null,null,null,null,null,null,null,null,null,null,null,null,null,null,1,1]
[9147,"Exclusively Pet, Inc.","Y",null,null,null,null,null,null,null,0,0,0,0,0,0,0,0,0,0,1,0,0,0,0,0,0,1,0,0,0,0,0,0,0,0,0,0,0,0,0,0,0,0,0,0]
[1278,"Exotic Pet Foods","Y",null,null,null,null,null,null,null,null,null,null,null,null,null,1,null,null,1,1,null,null,null,null,1]
[11050,"Expo Enterprises","Y",null,null,null,null,1,null,null,null,null,1]
[11276,"Eye Envy, Inc.","Y",null,null,1,null,null,null,null,null,null,null,null,null,null,null,null,null,1,1,null,null,null,null,null,null,null,null,null,null,null,null,null,null,null,null,null,null,null,null,null,null,1,null,null,1]
[8164,"Eyenimal, Inc.","Y",null,null,null,null,null,null,null,null,null,null,null,null,null,null,null,null,1,1,null,null,1,null,null,1,null,null,null,null,null,null,null,1,null,null,null,null,null,null,null,null,null,1,null,null,null,null,null,null,1,1]
[9183,"EzyDog ","Y",null,null,null,null,null,null,null,0,0,null,0,0,0,0,0,0,0,1,0,1,1,0,0,1,0,0,1,0,0,0,0,0,0,0,0,1,0,0,0,0,0,0,0,0,0,0,0,1,0,0]
[9276,"Fab Dog Inc. ","Y",null,null,1,null,null,null,null,0,0,null,0,0,0,0,0,0,1,1,0,1,1,0,0,null,0,0,1,0,0,0,0,0,null,0,0,0,0,0,0,0,0,0,0,null,0,0,0,0,0,0]
[10277,"Fabuleash ","Y",null,null,1,null,null,null,null,0,0,null,0,0,0,0,0,0,0,1,0,1,1,0,0,null,0,0,0,0,0,0,0,0,0,0,1,0,0,0,0,0,0,0,0,0,0,0,0,0,0,0]
[9053,"Family Owned Spot Farms","Y",null,1,null,null,null,null,null,null,null,null,null,null,null,null,null,null,null,1,null,null,null,null,1,null,1]
[10251,"Farmina Pet Food","Y",null,null,null,null,null,null,null,null,null,null,null,null,null,null,null,null,1,1,null,null,null,null,1]
[9173,"Farnam","Y",null,null,null,null,null,null,null,null,null,null,null,null,null,null,null,1,1,1,null,null,1,null,null,null,null,null,null,null,null,null,null,null,null,null,null,null,null,null,null,1,1,1,null,1]
[12121,"Fetch...For Pets! ","Y",null,null,null,null,null,null,null,0,0,null,0,1,null,0,1,0,1,1,0,1,null,0,0,0,1,0,1,0,0,0,0,0,null,0,0,0,0,0,0,1,0,0,0,1,1,0,null,null,0,0]
[5154,"FetchFuel","Y",null,null,null,null,null,null,1,null,null,null,null,null,null,null,null,null,null,1,null,null,null,null,null,null,null,null,null,null,null,null,null,null,null,null,null,null,null,null,null,null,1]
[6120,"Fibercore","Y",null,null,null,null,null,null,null,0,0,null,0,0,0,1,1,0,null,null,0,null,null,null,null,null,null,null,null,null,null,null,null,null,null,null,null,null,null,null,null,null,null,0,0,0,0,0,0,0,0,0]
[7169,"Fido Inc.","Y",null,null,null,null,null,null,null,0,0,null,0,0,0,0,0,0,null,1,0,0,0,0,0,0,1,0,1,0,0,0,0,0,0,0,0,0,0,0,0,0,0,0,0,0,0,0,0,0,0,0]
[14257,"Fido Pet Products","Y",null,null,null,null,null,null,null,null,null,null,null,null,null,null,null,null,null,1,null,null,1,null,null,null,1,null,1,null,null,null,null,null,1,null,1,1,null,null,null,null,null,null,null,0,0,0,0,0,0,0]
[3048,"Fidobiotics ","Y",null,1,null,null,null,null,null,0,0,null,0,0,0,0,0,0,0,1,0,0,0,0,0,0,0,0,0,0,0,0,0,0,0,0,0,0,0,0,0,0,1,0,0,0,0,0,0,0,0,0]
[5220,"Finnex","Y",null,null,null,1,null,null,null,0,0,0,0,1,0,0,0,0,0,0,0,0,0,0,0,0,0,0,0,0,0,0,0,0,0,0,0,0,0,0,0,0,0,0,0]
[5252,"Five Star Pet","Y",null,null,null,null,null,null,null,null,null,null,null,null,null,null,null,null,null,1,null,null,null,null,null,null,null,null,null,null,null,null,null,null,null,null,null,null,null,null,null,null,null,null,null,null,null,null,null,1]
[6201,"Fizzion","Y",null,null,null,null,null,null,null,null,null,null,null,null,null,null,null,null,1,1,null,null,null,null,null,null,null,null,null,null,null,null,null,null,null,null,null,null,null,null,null,null,null,null,null,null,1]
[10183,"flexi North America LLC","Y",null,null,null,null,null,null,null,0,0,null,0,0,0,0,0,0,0,1,0,0,1,0,0,0,0,0,0,0,0,0,0,0,0,0,0,0,0,0,0,0,0,0,0,0,0,0,0,0,0,0]
[5246,"Flexrake Corp. ","Y",null,null,null,null,null,null,null,0,0,null,0,0,0,0,0,null,null,1,0,0,0,0,0,0,null,0,null,0,null,null,0,0,0,0,0,0,null,0,0,0,0,0,0,0,0,0,0,1,0,0]
[3231,"Florida Marine Research","Y",null,null,null,null,null,null,null,null,null,null,null,1]
[8212,"Fluff & Tuff","Y",null,null,null,null,null,null,null,0,0,null,0,0,0,0,0,0,0,1,0,0,0,0,0,0,0,0,1,0,0,0,0,0,0,0,0,0,0,0,0,0,0,0,0,0,0,0,0,0,0,0]
[11238,"Flush Puppies & Clean Paws","Y",null,null,null,null,null,null,null,0,0,null,0,0,0,0,0,0,0,1,0,0,0,0,0,0,0,0,0,0,0,0,0,0,0,0,0,0,0,0,0,0,0,0,0,0,0,0,0,1,0,0]
[13189,"FoodScience Corporation","Y",null,null,null,null,null,null,null,null,null,null,null,null,null,null,null,null,1,1,0,0,0,0,0,0,1,0,0,0,0,0,0,0,0,0,0,0,0,0,0,0,1,0,0]
[4289,"For Your Dogs Only/ BuddhaBag","Y",null,null,1,null,null,null,null,null,null,null,null,null,null,null,null,null,null,1,null,null,1,null,null,null,null,null,null,null,null,null,null,null,1]
[11052,"Forever Stainless Steel ","Y",null,null,null,null,1,null,null,0,0,null,0,0,0,0,0,0,0,1,0,0,0,0,0,null,0,0,0,0,0,0,0,0,0,0,0,0,0,0,0,0,0,0,1,0,0,0,0,0,0,0]
[5217,"Forever Yours","Y",null,null,null,null,null,null,null,null,null,null,null,null,null,null,null,null,1,1,null,null,null,1,null,null,null,null,null,null,null,null,null,null,null,null,null,null,null,null,null,null,null,null,null,null,null,null,null,null,null,1]
[9083,"FouFou Brands","Y",null,null,null,null,null,null,null,0,0,null,1,0,0,0,0,0,1,1,0,1,1,0,null,1,1,0,1,0,null,0,0,0,1,0,1,0,0,0,0,0,1,null,1,null,0,1,0,null,0,0]
[6286,"Found My Animal, LLC","Y",null,null,1,null,null,null,null,null,null,null,null,null,null,null,null,null,1,1,null,1,null,null,null,1]
[9173,"Four Paws","Y",null,null,null,null,null,null,null,null,null,null,null,null,null,null,null,null,1,1,null,null,1,null,null,null,null,null,null,null,null,null,null,1,1,1,1,null,1,null,null,null,1,null,1,1,1,null,1,1]
[5176,"FreezeTag","Y",null,null,null,null,null,null,null,null,null,null,null,null,null,null,null,null,null,1,null,null,1]
[10136,"Freightquote","Y",null,null,null,null,null,null,null,null,null,1]
[6060,"Frenchie's Kitchen LLC ","Y",null,1,null,null,null,null,null,0,0,null,0,0,0,0,0,0,0,1,0,0,0,0,1,0,0,0,0,0,0,0,0,0,0,0,0,0,0,0,0,0,0,0,0,0,0,0,0,0,0,0]
[12279,"Fringe Studio","Y",null,null,1,null,null,null,null,null,null,null,1]
[2221,"Fritz/Mardel","Y",null,null,null,1,null,null,null,null,null,null,null,1]
[7113,"FroliCat","Y",null,null,null,null,null,null,null,null,null,null,null,null,null,null,null,null,1,null,null,null,null,null,null,null,null,null,1]
[5073,"From The Field LLC","Y",null,1,null,null,null,null,null,null,null,null,null,null,null,null,null,null,1,1,null,null,null,null,null,null,null,null,1,null,1]
[9041,"Fromm Family Foods","Y",null,1,null,null,null,null,null,0,0,null,0,0,0,0,0,0,1,1,0,0,0,0,1,0,1,0,0,0,0,0,0,0,0,0,0,0,0,0,0,0,0,0,0,0,0,0,0,0,0,0]
[5075,"Fruitables Pet Food","Y",null,1,null,null,null,null,null,0,0,null,0,0,0,0,0,0,null,1,0,0,0,0,null,0,1,0,0,0,0,0,0,0,0,0,0,0,0,0,0,0,1,0,0,0,0,0,0,0,0,0]
[9053,"Full Moon","Y",null,1,null,null,null,null,null,null,null,null,null,null,null,null,null,null,null,1,null,null,null,null,null,null,1]
[10057,"Functional Nutriments","Y",null,1,null,null,null,null,null,0,0,null,0,0,0,0,0,0,0,1,0,0,0,0,0,0,0,0,0,0,0,0,0,0,0,0,0,0,0,0,0,0,1,0,0,0,0,0,0,0,0,0]
[14282,"FunDog Bandanas","Y",null,null,1,null,null,null,null,null,null,null,null,null,null,null,null,null,null,1,null,1]
[4245,"FurHaven Pet Products ","Y",null,null,null,null,null,null,null,0,0,null,0,0,0,0,0,0,1,1,0,0,1,0,0,0,0,0,0,0,0,1,1,0,1,1,null,1,0,0,0,0,0,0,0,0,0,0,0,0,0,0]
[6257,"FURminator","Y",null,null,null,null,null,null,null,null,null,null,null,null,null,null,1,1,1,1,null,null,null,null,null,null,null,null,null,null,null,null,null,null,null,null,null,null,null,null,null,null,null,null,1]
[12055,"Furtile Ground","Y",null,null,null,null,1,null,null,null,null,null,1]
[4049,"Fussie Cat","Y",null,1,null,null,null,null,null,null,null,null,null,null,null,null,null,null,1,null,null,null,null,null,1]
[5216,"Galapagos Reptile Gear","Y",null,null,null,1,null,null,null,null,null,null,null,null,1,1]
[4231,"Gamma2","Y",null,null,null,null,null,null,null,0,0,null,0,0,null,1,0,1,1,1,0,0,0,0,0,1,0,0,0,0,0,0,0,0,0,0,0,0,0,0,0,0,0,0,0,0,0,0,0,0,0,0]
[1177,"Gardner Pet Group, Inc.","Y",null,null,null,null,null,null,null,null,null,1,null,null,null,1,null,null,1,1,null,null,null,null,null,1,null,null,null,null,null,null,null,null,null,null,1,null,null,null,1,null,null,null,null,null,null,null,1]
[2279,"Gata Tech","Y",null,null,null,null,null,null,null,null,null,1]
[13032,"Geib Handmade Shears","Y",null,null,null,null,1,null,null,0,0,1,0,0,0,0,0,0,0,1,0,0,0,0,0,0,0,0,0,0,0,0,0,0,0,0,0,0,0,0,0,0,0,0,1,0,0,0,0,0,0,0]
[10085,"Gen7Pets","Y",null,null,null,null,null,null,null,0,0,null,0,0,0,0,0,0,1,1,0,0,0,0,0,0,0,0,0,0,0,0,0,0,1,0,1,1,1,0,0,0,0,0,0,0,0,0,0,0,0,0]
[11147,"General Distributing & Sales Co.","Y",null,null,null,null,null,null,null,null,null,null,null,null,null,null,null,null,1,1,null,null,null,null,null,null,null,null,null,null,null,null,null,null,null,null,null,null,null,null,null,null,null,1]
[13273,"Giftworks Plus ","Y",null,null,null,null,null,null,null,0,0,null,1,0,0,null,null,null,null,null,0,0,0,0,0,0,0,0,0,0,0,0,0,0,0,0,0,0,0,0,0,0,0,0,0,0,0,0,0,0,0,0]
[5197,"Gigwi (HK) Trading Co., Ltd.","Y",null,null,null,null,null,null,null,null,null,null,null,null,null,null,null,null,1,1,null,null,null,null,null,null,null,null,1]
[4172,"GingerLead ","Y",null,null,null,null,null,null,null,null,null,null,null,null,null,null,null,null,null,1,null,null,1,null,null,null,null,null,null,null,null,null,null,null,null,null,null,null,null,null,null,null,1]
[14054,"Ginsey Home Solutions","Y",null,null,null,null,1,null,null,null,null,null,null,null,null,null,null,null,null,1,null,null,null,null,null,null,null,null,null,null,null,null,null,null,null,null,null,null,null,null,null,null,null,null,1]
[10049,"Glandex","Y",null,1,null,null,null,null,null,null,null,null,null,null,null,null,null,null,1,1,null,null,null,null,null,null,null,null,null,null,null,null,null,null,null,null,null,null,null,null,null,null,1]
[11262,"Global Amici","Y",null,null,null,null,null,null,null,null,null,null,null,null,null,null,1,null,1,1,null,null,null,null,null,1]
[5189,"Global Pet Expo","Y",null,null,null,null,null,null,null,1]
[11020,"Globo-Sa Inc.","Y",null,null,null,null,1,null,null,null,null,1,null,null,null,null,null,null,null,null,null,null,null,null,null,null,null,null,null,null,null,null,null,null,null,null,null,null,null,null,null,null,null,null,1]
[9290,"Glo-Marr Products","Y",null,null,1,null,null,null,null,0,0,null,0,0,0,0,null,0,1,1,0,0,0,0,0,0,0,0,0,0,0,0,0,0,0,0,0,0,0,0,0,0,1,1,0,1,0,0,0,0,0,0]
[6251,"Go Fresh Pet","Y",null,null,null,null,null,null,null,null,null,null,null,null,null,null,null,null,1,1,null,1,1,null,null,1,null,null,null,null,null,null,null,null,1,null,1]
[3071,"Go Green Environmental","Y",null,1,null,null,null,null,null,null,null,null,null,null,null,null,null,null,1,1,null,null,null,null,null,null,null,null,null,null,null,null,null,null,null,null,null,null,null,null,null,null,null,null,null,null,1]
[9151,"goDog","Y",null,null,null,null,null,null,null,null,null,null,null,null,null,null,null,null,null,1,null,null,null,null,null,null,null,null,1]
[8031,"GoGo Pet Products","Y",null,1,null,null,null,null,null,null,null,null,null,null,null,null,null,null,null,1,0,null,0,0,0,0,1,0,0,0,0,0,0,0,0,0,0,0,0,0,0,0,0,0,0,0,0,0]
[6112,"Gold Paw Series ","Y",null,null,null,null,null,null,null,0,0,null,0,0,0,0,0,0,1,1,0,1,1,0,0,0,0,0,0,0,0,0,0,0,0,0,0,0,0,0,0,0,0,0,0,0,0,0,0,0,0,0]
[4283,"Golden Doodle","Y",null,null,1,null,null,null,null,null,null,null,1]
[2231,"Golden Mile Home Products Co., Ltd","Y",null,null,null,null,null,null,null,null,null,null,null,null,null,null,null,null,null,1,null,null,null,null,null,null,null,null,1,null,null,null,1,null,null,1,null,null,1]
[10284,"Gooby","Y",null,null,1,null,null,null,null,0,0,null,0,0,0,0,0,0,0,1,0,1,1,0,0,0,0,0,0,0,0,0,0,0,null,0,0,0,0,0,0,0,0,0,0,0,0,0,0,0,0,0]
[3203,"Good L Corp ","Y",null,null,null,1,null,null,null,0,0,1,0,0,0,0,0,0,0,null,0,0,0,0,0,0,0,0,0,0,0,0,0,0,0,0,null,0,0,0,0,0,0,0,0,0,0,0,0,0,0,0]
[12014,"Got Pee by Health Technology","Y",null,null,null,null,1,null,null,null,null,1,null,null,null,null,null,null,1,1,null,null,null,null,null,null,null,null,null,null,null,null,null,null,null,null,null,null,null,null,null,null,null,null,1,1,1]
[10278,"GoToRovers.com","Y",null,null,1,null,null,null,null,null,1,null,1,null,null,1,null,1,1,1,1,1,1,1,1,1,1,1,1,1,1,1,1,1,1,1,1,1,1,1,1,1,1,1,1,1,1,1,1,1,1,1]
[2155,"GottaPotty","Y",null,null,null,null,null,null,null,null,null,null,null,null,null,null,null,null,null,1,null,null,null,null,null,null,null,null,null,null,null,null,null,null,null,null,null,null,null,null,null,null,null,null,null,null,null,null,1,null,1,1]
[4253,"GoughNuts LLC","Y",null,null,null,null,null,null,null,null,null,null,null,null,null,null,null,null,null,1,null,null,null,null,null,null,null,null,1]
[5264,"Gralen Company, The","Y",null,null,null,null,null,null,null,null,1,null,null,null,null,null,null,null,1,1,null,null,1,null,null,1,1,null,1,null,null,1,1,null,1,null,1,null,null,null,null,null,1,null,1,null,1,null,1,1]
[8016,"Grandma Lucy's ","Y",null,1,null,null,null,null,null,0,0,null,0,0,0,0,0,0,1,1,0,0,0,0,1,0,1,0,0,0,0,0,0,0,0,0,0,0,0,0,0,0,0,0,0,0,0,0,0,0,0,0]
[7159,"Grandma Mae's Country Naturals","Y",null,null,null,null,null,null,null,0,0,null,0,0,0,0,0,0,1,1,0,0,0,0,1,0,0,0,0,0,0,0,0,0,0,0,0,0,0,0,0,0,0,0,0,0,0,0,0,0,0,0]
[2053,"Grandpa's Diatomaceous Earth","Y",null,1,null,null,null,null,null,null,null,null,null,null,null,null,null,null,1,1,null,null,null,null,null,null,null,null,null,null,null,null,null,null,null,null,null,null,null,null,null,null,1,1,null,null,1]
[2065,"Green Future Pets Inc","Y",null,1,null,null,null,null,null,null,null,null,null,null,null,null,null,1,1,null,null,null,null,null,null,null,null,null,null,null,null,null,null,null,null,null,null,null,null,1]
[11051,"Greyhound","Y",null,null,null,null,1,null,null,null,null,null,null,null,null,null,null,null,null,1,null,null,null,null,null,null,null,null,null,null,null,null,null,null,null,null,null,null,null,null,null,null,null,null,1]
[8209,"Grizzly Pet Products","Y",null,null,null,null,null,null,null,0,0,null,0,0,0,0,0,1,1,1,0,0,0,0,1,0,1,0,0,0,0,0,0,0,0,0,0,0,0,0,0,0,1,0,0,0,0,0,0,0,0,0]
[6161,"Groom Ninja","Y",null,null,null,null,null,null,1,null,null,null,null,null,null,null,null,1,null,1,null,null,null,null,null,null,null,null,null,null,null,null,null,null,null,null,null,null,null,null,null,null,null,null,1]
[11032,"Groomer's Best","Y",null,null,null,null,1,null,null,null,null,1,null,null,null,null,null,null,1,1,null,null,null,null,null,null,null,null,null,null,null,null,null,null,null,null,1,null,1,null,null,null,null,null,1]
[12051,"Groomer's Goop","Y",null,null,null,null,1,null,null,0,0,null,0,0,0,0,0,0,1,1,0,0,0,0,0,0,0,0,0,0,0,0,0,0,0,0,null,0,0,0,0,0,0,0,1,1,1,1,0,0,0,0]
[13048,"Groomers Helper","Y",null,null,null,null,1,null,null,null,null,1,null,null,null,null,null,null,1,1,null,null,null,null,null,null,null,null,null,null,null,null,null,null,null,null,null,null,null,null,null,null,null,null,1]
[3165,"Growl Towels","Y",null,null,null,null,null,null,1,null,null,null,1,null,null,null,null,null,null,1,null,null,null,null,null,null,null,null,null,null,null,null,null,null,null,null,null,null,null,null,null,null,null,null,1]
[7220,"H&C Animal Health","Y",null,null,null,null,null,null,null,null,null,null,null,null,null,null,null,null,null,1,null,null,null,null,null,null,1,null,null,null,null,null,null,null,null,null,null,null,null,null,null,null,1]
[8019,"Halo Purely For Pets","Y",null,1,null,null,null,null,null,0,0,null,null,0,null,null,null,0,1,1,null,0,0,0,1,0,1,0,null,0,null,0,0,0,0,0,0,0,0,0,0,0,1,null,0,1,0,0,0,0,0,0]
[5278,"Hand and Paw Project™","Y",null,null,1,null,null,null,null,null,null,null,1,null,null,null,null,null,null,1,null,null,1]
[1239,"HandicappedPets.Com","Y",null,null,null,null,null,null,null,null,null,null,1,null,null,null,null,null,1,1,null,1,1,null,null,1,1,null,null,null,null,null,null,null,1,null,1,1,null,null,null,null,1,null,null,null,null,null,1]
[11002,"HandsOn Bathing/Grooming/Shedding Gloves","Y",null,null,null,null,1,null,null,null,null,null,null,null,null,null,null,1,null,1,null,null,null,null,null,null,null,null,null,null,null,null,null,null,null,null,null,null,null,null,null,null,null,null,1]
[12151,"Hangzhou Guardson Hardware Co., Ltd.","Y",null,null,null,null,null,null,null,null,null,null,null,null,null,null,null,null,null,1,null,null,null,null,null,null,null,null,null,null,null,null,null,null,null,1,1]
[3154,"Hanks Dog Stuff","Y",null,null,null,null,null,null,1,null,null,null,null,null,null,null,null,null,null,1,null,null,null,null,null,null,null,null,null,null,null,null,null,null,null,null,null,null,null,null,null,null,null,null,null,null,null,null,null,1]
[3121,"Hankscraft","Y",null,null,null,null,null,null,null,null,null,1]
[4261,"Happy Hen Treats","Y",null,null,null,null,null,null,null,null,null,null,null,null,null,1]
[6001,"Happy Howie's, Inc.","Y",null,1,null,null,null,null,null,null,null,null,null,null,null,null,null,null,null,1,null,null,null,null,null,null,1]
[13073,"Happy Tails ","Y",null,null,null,null,null,null,null,0,0,null,0,0,0,0,0,0,null,1,0,0,0,0,0,0,1,null,1,0,0,0,0,0,1,0,0,0,0,0,0,null,0,0,0,0,0,0,0,0,0,0]
[11291,"Haute Diggity Dog LLC","Y",null,null,1,null,null,null,null,null,null,null,null,null,null,null,null,null,null,1,null,null,null,null,null,null,null,null,1,null,null,null,null,null,1]
[13285,"Heads Up For Tails","Y",null,null,1,null,null,null,null,null,null,null,1,null,null,null,null,null,null,1,null,1,1,null,null,null,null,null,null,null,null,null,null,null,1]
[4120,"Healers Petcare","Y",null,null,null,null,null,null,null,null,null,null,null,null,null,null,null,null,null,1,null,null,null,null,null,null,null,null,null,null,null,null,null,null,null,null,null,null,null,null,null,null,1]
[10043,"Healthy Essentials LLC","Y",null,1,null,null,null,null,null,0,0,null,0,0,0,0,0,0,0,1,0,0,0,0,0,0,0,0,0,0,0,0,0,0,0,0,0,0,0,0,0,0,1,0,0,0,0,0,0,0,0,0]
[3035,"Healthy Hemp Pet Company","Y",null,1,null,null,null,null,null,null,null,null,null,null,null,null,null,null,null,1,null,null,null,null,null,null,1,null,null,null,null,null,null,null,null,null,null,null,null,null,null,null,1]
[7012,"Healthy Partner Pet Snacks","Y",null,1,null,null,null,null,null,0,0,null,0,0,0,0,0,0,0,1,0,0,0,0,0,0,1,0,0,0,0,0,0,0,0,0,0,0,0,0,0,0,0,0,0,0,0,0,0,0,0,0]
[11075,"Healthy Pet ","Y",null,null,null,null,null,null,null,0,0,null,0,0,0,null,1,0,1,1,0,0,0,0,0,0,0,0,0,0,0,0,0,0,0,0,0,0,0,1,null,0,0,0,0,0,0,0,0,0,0,0]
[10003,"HealthyCoat","Y",null,1,null,null,null,null,null,null,null,null,null,null,null,null,null,1,1,1,null,null,null,null,null,null,null,null,null,null,null,null,null,null,null,null,null,null,null,null,null,null,1]
[9151,"Hear Doggy!","Y",null,null,null,null,null,null,null,null,null,null,null,null,null,null,null,null,null,1,null,null,null,null,null,null,null,null,1]
[10285,"Hello Doggie","Y",null,null,1,null,null,null,null,null,null,null,null,null,null,null,null,null,null,1,0,1,0,0,0,0,0,0,1,0,0,0,null,0,1,null,1]
[4079,"Herbsmith Inc. ","Y",null,1,null,null,null,null,null,0,0,null,0,0,0,0,0,1,1,1,0,0,0,0,0,0,1,0,0,0,0,0,0,0,0,0,0,0,0,0,0,0,1,0,0,0,0,0,0,0,0,0]
[2165,"Hexbug (Innovation First Labs)","Y",null,null,null,null,null,null,null,null,null,null,null,null,null,null,null,null,1,null,null,null,null,null,null,null,null,null,1]
[5201,"Heyrex Ltd.","Y",null,null,null,null,null,null,null,null,null,null,null,null,null,null,null,null,1,1,null,null,null,null,null,1,null,null,null,null,null,null,null,null,null,null,null,null,null,null,null,null,1,null,null,null,null,null,null,null,1,1]
[2260,"Heze Jianuojia Pet Products Co. Ltd.","Y",null,null,null,null,null,null,null,null,null,null,null,1,null,1,null,null,1,1,null,null,null,null,1]
[2019,"High Hopes For Pets","Y",null,1,null,null,null,null,null,null,null,null,null,null,null,null,null,null,null,1,null,null,null,null,1,null,1]
[7179,"High Tech Pet Products","Y",null,null,null,null,null,null,null,null,null,null,null,null,null,null,null,null,1,1,0,0,1,0,0,0,0,0,0,0,0,0,0,1,0,1,null,0,0,0,0,0,0,0,0,0,0,0,0,0,1]
[1197,"Highly Favored Creations","Y",null,null,null,null,null,null,null,null,null,null,null,null,null,null,null,null,null,1,null,null,1,null,null,null,null,null,null,null,null,null,null,null,null,null,null,null,null,null,null,null,1,null,null,null,null,null,1]
[4161,"Highwave","Y",null,null,null,null,null,null,1,null,null,null,null,null,null,null,null,null,null,1,null,null,null,null,null,1]
[9097,"Hikari Sales U.S.A. Inc. ","Y",null,null,null,null,null,null,null,0,0,null,0,1,1,0,0,0,0,0,0,0,0,0,0,0,0,0,0,0,0,0,0,0,0,0,0,0,0,0,0,0,0,0,0,0,0,0,0,0,0,0]
[5083,"Hill's Pet Nutrition","Y",null,null,null,null,null,null,null,0,0,null,0,0,0,0,0,0,1,1,0,0,0,0,1,0,1,0,0,0,0,0,0,0,0,0,0,0,0,0,0,0,0,0,0,0,0,0,0,0,0,0]
[8049,"Hillside Farms by Globalinx Pet LLC.","Y",null,1,null,null,null,null,null,0,0,null,0,0,0,0,0,0,0,1,0,0,0,0,0,0,1,0,0,0,0,0,0,0,0,0,0,0,0,0,0,0,0,0,0,0,0,0,0,0,0,0]
[5037,"Hilton Herbs, Ltd.","Y",null,1,null,null,null,null,null,0,0,0,0,0,0,1,null,1,1,1,0,0,0,0,0,0,1,0,0,0,0,0,0,0,0,0,0,0,0,0,0,0,1,0,0,1]
[4009,"Himal Dog Treat","Y",null,1,null,null,null,null,null,null,null,null,null,null,null,null,null,null,null,1,null,null,null,null,null,null,1]
[7049,"Himalayan Corporation","Y",null,1,null,null,null,null,null,0,0,null,0,0,0,0,0,0,0,1,0,0,0,0,0,0,1,0,1,0,0,0,0,0,0,0,0,0,0,0,0,0,0,0,0,0,0,0,0,0,0,0]
[8285,"Hip Doggie Inc. ","Y",null,null,1,null,null,null,null,null,null,null,null,null,null,null,null,null,null,1,null,1,1,null,null,null,null,null,1,null,null,null,null,null,1]
[2256,"Home Dynamix LLC","Y",null,null,null,null,null,null,null,null,null,null,null,null,null,null,null,null,1,1,null,null,null,null,null,1,null,null,null,null,null,null,null,null,1]
[10250,"HomeoPet LLC / Verde","Y",null,null,null,null,null,null,null,0,0,null,0,0,0,null,null,1,1,1,0,0,0,0,0,0,0,0,0,0,0,0,0,0,0,0,0,0,0,0,0,0,1,0,0,0,0,0,0,0,0,0]
[6152,"Honest Pet Products LLC","Y",null,null,null,null,null,null,1,null,null,null,null,null,null,null,null,null,1,1,null,null,null,null,null,null,null,null,1,null,null,null,null,null,null,null,null,null,null,null,null,null,null,null,1,1]
[14266,"Hong Kong City Toys","Y",null,null,null,null,null,null,null,null,null,null,null,null,null,null,null,null,null,1,0,1,1,0,0,0,0,0,1]
[7151,"HORN Animal Wellness","Y",null,null,null,null,null,null,null,null,null,1,null,null,null,null,null,1,1,1,null,null,null,null,1,null,null,null,null,null,null,null,null,null,null,null,null,null,null,null,null,null,1]
[11282,"Hot Bows","Y",null,null,1,null,null,null,null,null,null,null,null,null,null,null,null,null,null,1,null,1]
[1212,"HQ Pet Group Inc.","Y",null,null,null,null,null,null,null,null,null,null,1]
[3250,"Hueter Toledo","Y",null,null,null,null,null,null,null,0,0,null,null,0,0,0,null,null,null,1,0,0,0,0,0,0,0,0,1,0,0,0,0,0,0,0,0,0,0,0,0,0,0,0,0,0,1,0,0,1,0,0]
[9209,"Hugglehounds (dba Allure Pet Products)","Y",null,null,null,null,null,null,null,0,0,null,0,0,0,0,0,0,0,1,0,0,0,0,0,0,0,0,1,0,0,0,0,0,1,0,null,0,0,0,0,0,0,0,0,0,0,0,0,0,0,0]
[10260,"HUNTER International GmbH ","Y",null,null,null,null,null,null,null,0,0,null,0,0,0,0,0,1,1,1,0,1,1,1,0,1,1,0,0,0,1,null,0,0,1,0,1,1,0,0,0,1,1,1,1,1,0,0,1,0,0,0]
[3151,"HurriK9 Ring Launcher","Y",null,null,null,null,null,null,1,null,null,null,null,null,null,null,null,null,null,1,null,null,null,null,null,null,null,null,1]
[7198,"Hurtta - ACK","Y",null,null,null,null,null,null,null,0,0,0,0,0,0,0,0,0,1,1,0,1,1,0,0,1,0,0,0,0,0,0,0,0,0,0,0,0,0,0,0,0,0,0,0]
[9257,"Hydor USA ","Y",null,null,null,null,null,null,null,0,0,null,0,1,0,0,0,0,0,0,0,0,0,0,0,0,0,0,0,0,0,0,0,0,0,0,0,0,0,0,0,0,0,0,0,0,0,0,0,0,0,0]
[4103,"Hyper Pet ","Y",null,null,null,null,null,null,null,0,0,null,0,0,0,0,0,0,null,1,0,0,1,0,0,0,0,0,1,0,0,0,0,0,0,0,0,0,0,0,0,0,0,0,0,0,0,0,0,0,0,0]
[6061,"Iceland Pure Inc","Y",null,1,null,null,null,null,null,null,null,null,null,null,null,null,null,1,1,1,null,null,null,null,null,null,1,null,null,null,null,null,null,null,null,null,null,null,null,null,null,null,1]
[1216,"iClean Carwash Technologies BV","Y",null,null,null,null,null,null,null,null,null,1,null,null,null,null,null,null,null,1,null,null,null,null,null,null,null,null,null,null,null,null,null,null,null,null,null,null,null,null,null,null,null,null,1]
[9263,"Ideal Pet Products","Y",null,null,null,null,null,null,null,null,null,null,null,null,null,null,null,null,1,1,null,null,null,null,null,null,null,null,null,null,null,null,null,null,null,1]
[3178,"iFetch ","Y",null,null,null,null,null,null,null,0,0,null,0,0,0,0,0,0,0,1,0,0,0,0,0,0,0,0,1,0,0,0,0,0,0,0,0,0,0,0,0,0,0,0,0,0,0,0,0,0,0,0]
[4244,"Imagine This Company ","Y",null,null,null,null,null,null,null,0,0,null,1,0,0,0,0,0,null,null,0,0,0,0,0,0,0,0,0,0,0,0,0,0,0,0,0,0,0,0,0,0,0,0,0,null,0,0,0,0,0,0]
[7196,"iMARC Pet Tag Engraving Systems ","Y",null,null,null,null,null,null,null,0,0,1,1,0,0,0,0,1,1,1,0,0,1,1,0,0,0,0,0,0,0,0,0,0,0,0,0,0,0,0,0,0,0,0,0,0,0,0,0,0,0,0]
[2238,"IMPAK Corporation","Y",null,null,null,null,null,null,null,null,null,1]
[12146,"Imperial Cat ","Y",null,null,null,null,null,null,null,0,0,null,null,0,0,0,1,0,1,0,0,0,0,0,null,1,1,0,1,0,1,1,1,0,0,0,0,0,0,0,1,0,1,0,0,0,1,1,0,0,0,0]
[9001,"In Clover Pet Supplements","Y",null,1,null,null,null,null,null,0,0,null,0,0,0,0,0,0,1,1,0,0,0,0,0,0,1,0,0,0,0,0,0,0,0,0,0,0,0,0,0,0,1,0,0,0,0,0,0,0,0,0]
[9082,"Inaba Foods (USA) Inc.","Y",null,null,null,null,null,null,null,null,null,null,null,null,null,null,null,null,1,null,null,null,null,null,null,null,1]
[7113,"Indigo","Y",null,null,null,null,null,null,null,null,null,null,null,null,null,null,null,null,null,1,null,null,null,null,null,null,1,null,null,null,null,null,null,null,null,null,null,null,null,null,null,1,1]
[9195,"Indipets Inc","Y",null,null,null,null,null,null,null,null,null,null,null,null,null,1,null,null,1,1,null,null,null,null,null,1]
[2193,"Inject N Clean","Y",null,null,null,1,null,null,null,null,null,null,null,null,null,null,null,null,1,1,null,null,null,null,null,null,null,null,null,null,null,null,null,null,null,null,null,null,null,null,null,null,null,null,null,null,1]
[6248,"Innovation Pet, Inc.","Y",null,null,null,null,null,null,null,null,null,null,null,null,null,1,null,null,1,1,null,null,null,null,null,null,null,null,1,null,null,1,1,null,null,null,null,null,1]
[6257,"Instant Ocean","Y",null,null,null,null,null,null,null,null,null,null,null,1]
[3043,"International Himalayan Pet Products LLC","Y",null,1,null,null,null,null,null,null,null,null,null,null,null,null,null,null,null,1,null,null,null,null,null,null,1]
[13195,"International Pet Group","Y",null,null,null,null,null,null,null,null,null,null,null,null,null,null,null,null,null,1,null,null,null,null,null,null,null,null,null,null,null,null,null,null,1]
[11001,"International Professional Groomers","Y",null,null,null,null,1,null,null,1]
[12006,"International Society of Canine Cosmetologists","Y",null,null,null,null,1,null,null,1]
[5115,"International Veterinary Sciences","Y",null,null,null,null,null,null,null,null,null,null,null,null,null,null,null,null,1,1,null,null,null,null,null,null,null,null,null,null,null,null,null,null,null,null,null,null,null,null,null,null,1,null,null,1,null,1]
[7113,"Invisible Fence","Y",null,null,null,null,null,null,null,null,null,null,null,null,null,null,null,null,1,1,null,null,1,null,null,null,null,null,null,null,null,null,null,1,null,null,null,null,null,null,null,null,null,null,null,null,null,null,null,null,1]
[13165,"IRIS USA","Y",null,null,null,null,null,null,null,0,0,null,0,0,0,0,1,0,1,1,0,0,0,0,0,1,0,0,0,0,0,0,0,0,0,0,1,0,1,0,1,0,0,0,0,0,0,0,1,0,0,0]
[6107,"Isle Of Dogs ","Y",null,null,null,null,null,null,null,0,0,null,0,0,0,0,0,0,0,1,0,0,1,0,0,0,1,0,0,0,0,0,0,0,0,0,0,0,0,0,0,null,1,0,0,1,1,0,0,0,0,0]
[13014,"Isle Of Dogs ","Y",null,null,null,null,1,null,null,null,null,null,null,null,null,null,null,null,null,1,0,0,1,0,0,0,1,0,0,0,0,0,0,0,0,0,0,0,0,0,0,null,1,0,0,1,1]
[12044,"IZU Korea Co., Ltd.","Y",null,null,null,null,1,null,null,null,null,1,null,null,null,null,null,null,1,1,null,null,null,null,null,null,null,null,null,null,null,null,null,null,null,null,null,null,null,null,null,null,null,null,1,0,null,0,0,0,0,0]
[1190,"J&Q Pet Supplies LLC","Y",null,null,null,null,null,null,null,null,null,null,null,null,null,null,null,null,1,null,null,null,null,null,null,null,null,null,1,null,null,1,1,null,1]
[10158,"Jakks Pets, Inc.","Y",null,null,null,null,null,null,null,0,0,null,0,0,0,0,0,0,1,1,0,0,0,0,0,0,1,0,1,0,0,0,0,0,0,0,0,0,0,0,0,0,0,0,0,0,0,0,0,0,0,0]
[10293,"Jax And Bones","Y",null,null,1,null,null,null,null,0,0,null,0,0,0,0,0,0,1,1,0,0,0,0,0,0,0,0,1,0,0,0,0,0,1,0,0,0,0,0,0,0,0,0,0,0,0,0,0,0,0,0]
[4011,"JBS-USA","Y",null,1,null,null,null,null,null,null,null,null,null,null,null,null,null,null,null,1,null,null,null,null,null,null,1]
[11281,"JCLA INC","Y",null,null,1,null,null,null,null,0,0,null,1,0,0,0,0,0,0,1,0,1,1,0,0,1,1,0,1,0,0,0,0,0,1,0,1,0,0,0,0,0,0,0,0,1,0,0,0,0,0,0]
[14294,"Jellybean by Home Comfort","Y",null,null,1,null,null,null,null,null,null,null,1,null,null,null,null,null,1,1,null,null,null,null,null,null,null,null,null,null,null,null,null,null,1]
[2110,"Jewett Cameron Company","Y",null,null,null,null,null,null,null,null,null,null,null,null,null,null,null,null,null,1,null,null,null,null,null,1,null,null,null,null,null,null,null,null,1,null,1,null,1]
[13262,"Jiangsu Ouk Packaging Technology Co.","Y",null,null,null,null,null,null,null,null,null,1,1,null,null,null,null,null,1,1,null,null,null,null,1]
[12155,"Jiangxi SenCen Hygienic Products Co., Ltd.","Y",null,null,null,null,null,null,null,null,null,null,null,null,null,null,null,null,1,1,null,null,null,null,null,null,null,null,null,null,null,null,null,null,null,null,null,null,null,null,null,1,1,null,null,1,1,1,1]
[13266,"Jinan Darin Machinery Co., Ltd.","Y",null,null,null,null,null,null,null,null,null,1,null,null,null,null,null,null,1,1,null,null,null,null,1,null,1]
[3218,"JM Cages & Reptiles (3219)","Y",null,null,null,1,null,null,null,null,null,null,null,null,1]
[10027,"John Paul Pet","Y",null,1,null,null,null,null,null,null,null,null,null,null,null,null,null,null,null,1,null,null,null,null,null,null,null,null,null,null,null,null,null,null,null,null,null,null,null,null,null,null,null,null,null,1,null,1]
[9249,"Jolly Pets","Y",null,null,null,null,null,null,null,0,0,null,0,0,0,null,null,null,0,1,0,0,0,0,0,0,0,0,1,0,0,0,0,0,0,0,0,0,0,0,0,0,0,0,0,0,0,0,0,0,0,0]
[6069,"Jones Natural Chews ","Y",null,1,null,null,null,null,null,0,0,null,0,0,0,0,0,0,0,1,0,0,0,0,0,0,1,0,0,0,0,0,0,0,0,0,0,0,0,0,0,0,0,0,0,0,0,0,0,0,0,0]
[5245,"Julius-K9 LLC","Y",null,null,null,null,null,null,null,null,null,null,1,null,null,null,null,null,null,1,null,null,1,null,null,null,null,null,1]
[6257,"Jungle","Y",null,null,null,null,null,null,null,null,null,null,null,1]
[2070,"JustFoodForDogs","Y",null,1,null,null,null,null,null,null,null,null,null,null,null,null,null,null,1,1,null,null,null,null,1,null,1,null,null,null,null,null,null,null,null,null,null,null,null,null,null,null,1]
[9231,"K & H Manufacturing, LLC","Y",null,null,null,null,null,null,null,0,0,null,0,0,0,1,1,null,1,1,0,0,0,0,0,1,0,0,0,0,0,0,1,0,1,0,1,1,null,0,0,0,0,0,0,0,0,0,0,0,0,0]
[13159,"K-10+","Y",null,null,null,null,null,null,null,0,0,null,0,0,0,0,0,0,null,1,0,0,0,0,0,0,1,0,0,0,0,0,0,0,0,0,0,0,0,0,0,0,1,null,0,null,null,0,0,0,0,0]
[2038,"K-9 and Feline Balancer","Y",null,1,null,null,null,null,null,null,null,null,null,null,null,null,null,null,1,1,null,null,null,null,null,null,null,null,null,null,null,null,null,null,null,null,null,null,null,null,null,null,1]
[12020,"K9 Competition","Y",null,null,null,null,1,null,null,null,null,1,null,null,null,null,null,null,1,1,null,null,null,null,null,null,null,null,null,null,null,null,null,null,null,null,null,null,null,null,null,null,1,null,null,1]
[5041,"K9 Granola Factory ","Y",null,1,null,null,null,null,null,0,0,null,0,0,0,0,0,0,null,1,0,0,0,0,0,0,1,0,0,0,0,0,0,0,0,0,0,0,0,0,0,1,1,null,0,1,1,0,0,0,0,0]
[4015,"K9 Natural Foods Ltd. ","Y",null,1,null,null,null,null,null,0,0,null,0,0,0,0,0,0,1,1,0,0,0,0,1,null,1,0,0,0,0,0,0,0,0,0,0,0,0,0,0,0,1,0,0,0,0,0,0,0,0,0]
[4272,"K9 Sport Sack","Y",null,null,null,null,null,null,null,null,null,null,null,null,null,null,null,null,null,1,null,null,null,null,null,null,null,null,null,null,null,null,null,null,null,null,1]
[11036,"Kashi Shears","Y",null,null,null,null,1,null,null,null,null,1,null,null,null,null,null,null,1,1,null,null,null,null,null,null,null,null,null,null,null,null,null,null,null,null,null,null,null,null,null,null,null,null,1]
[4026,"Katie's Pet Products","Y",null,1,null,null,null,null,null,null,null,null,null,null,null,null,null,1,1,1,null,null,null,null,null,null,null,null,1,null,null,null,null,null,null,null,null,null,null,null,null,null,1]
[6155,"Katris","Y",null,null,null,null,null,null,1,null,null,null,null,null,null,null,null,null,1,null,null,null,null,null,null,null,null,null,null,null,null,1,1]
[8200,"Kaylor Of Colorado ","Y",null,null,null,null,null,null,null,0,0,null,0,0,0,1,1,0,0,0,0,0,0,0,0,0,0,0,0,0,0,0,0,0,0,0,0,0,0,0,0,0,0,0,0,0,0,0,0,0,0,0]
[9173,"Kaytee / Super Pet","Y",null,null,null,null,null,null,null,null,null,null,null,null,null,1,1]
[4248,"Keet","Y",null,null,null,null,null,null,null,null,null,null,null,null,null,null,null,null,1,1,null,null,null,null,null,null,null,null,null,null,null,null,1,null,1]
[8208,"Kellytoy Worldwide, Inc (7209)","Y",null,null,null,null,null,null,null,null,null,null,1,null,null,null,null,null,null,1,null,null,null,null,null,null,null,null,1]
[12038,"Kenchii Professional Grooming","Y",null,null,null,null,1,null,null,null,null,1,null,null,null,null,null,null,null,1,null,null,null,null,null,null,null,null,null,null,null,null,null,null,null,null,null,null,null,null,null,null,null,null,1]
[14272,"KennelMaster Foods, Inc.","Y",null,null,null,null,null,null,null,null,null,null,null,null,null,null,null,null,null,1,null,null,null,null,null,null,1]
[10209,"Kent Pet Group ","Y",null,null,null,null,null,null,null,0,0,null,0,0,0,null,null,null,1,1,0,0,0,0,1,0,1,0,0,0,0,0,0,0,0,0,0,0,0,1,null,0,0,0,0,0,0,0,0,0,0,0]
[4171,"Kept Pets","Y",null,null,null,null,null,null,1,null,null,null,null,null,null,null,null,null,null,1,null,null,null,null,null,null,1]
[12018,"Kim Laube Co","Y",null,null,null,null,1,null,null,null,null,1,null,null,null,null,null,1,1,1,null,null,null,null,null,null,null,null,null,null,null,null,null,null,null,null,null,null,null,null,null,null,null,null,1,1]
[6162,"kin+kind / To Doggy With Love","Y",null,null,null,null,null,null,1,null,null,null,null,null,null,null,null,null,null,1,null,null,null,null,null,null,1,null,null,null,null,null,null,null,null,null,null,null,null,null,null,null,1,1,null,1,1]
[1279,"Kinn Inc.","Y",null,null,null,null,null,null,null,null,null,null,null,null,1,null,null,null,1,1,null,null,1,null,null,1,null,null,null,null,null,null,null,null,null,null,null,null,null,null,null,null,1]
[3261,"Kitangle, LLC","Y",null,null,null,null,null,null,null,null,null,null,null,null,null,null,null,null,1,null,null,null,null,null,null,null,null,null,null,null,null,null,null,null,null,null,null,null,null,null,1]
[4167,"Kittrich Corporation","Y",null,null,null,null,null,null,1,null,null,null,null,null,null,null,null,null,null,1,null,null,null,null,null,null,null,null,null,null,null,null,null,null,1]
[4257,"Kitty Cat Condos","Y",null,null,null,null,null,null,null,null,null,null,null,null,null,null,null,null,1,null,null,null,null,null,null,null,null,null,null,null,null,null,1]
[2230,"Kitty Kasas","Y",null,null,null,null,null,null,null,null,null,null,null,null,null,null,null,null,1,null,null,null,null,null,null,null,null,null,1,null,null,1,1,null,1]
[12011,"Klein Cutlery LLC","Y",null,null,null,null,1,null,null,null,null,1,null,null,null,null,null,null,1,1,null,null,null,null,null,null,null,null,null,null,null,null,null,null,null,null,null,null,null,null,null,null,null,null,1]
[12292,"Klippo Pet Inc.","Y",null,null,1,null,null,null,null,null,null,null,null,null,null,null,null,null,null,1,null,1,1]
[4064,"Kona's Chips","Y",null,1,null,null,null,null,null,null,null,null,null,null,null,null,null,null,1,1,null,null,null,null,null,null,1,null,null,null,null,null,null,null,null,null,null,null,null,null,null,null,1]
[8107,"Kong Company","Y",null,null,null,null,null,null,null,0,0,null,0,0,0,null,null,0,1,1,0,0,1,0,0,0,1,0,1,0,1,null,0,0,0,0,0,0,0,0,0,1,0,0,1,0,0,0,0,0,0,0]
[3173,"Kool Tees","Y",null,null,null,null,null,null,null,0,0,0,1,0,0,0,0,0,0,1,0,1,1,0,0,null,0,0,1,0,0,0,0,0,1,0,0,0,0,0,0,0,0,0,0]
[13311,"Koolcams Pty Ltd","Y",null,null,1,null,null,null,null,null,null,null,null,null,null,null,null,null,null,1,null,null,1]
[5265,"Kooper+Co","Y",null,null,null,null,null,null,null,null,null,null,null,null,null,null,null,null,1,1,null,null,null,null,null,1,null,null,null,null,null,null,null,null,null,null,null,null,null,null,null,null,null,null,null,null,1]
[3195,"Kordon Aquarium Products","Y",null,null,null,1,null,null,null,0,0,null,0,1,null,null,null,null,null,null,0,0,0,0,0,null,0,0,0,0,0,0,0,0,0,0,null,0,0,0,0,0,null,0,0,0,null,0,0,0,0,0]
[1244,"KP Pet Supplies","Y",null,null,null,null,null,null,null,null,null,1,null,null,null,null,null,null,null,null,null,null,null,null,null,null,null,null,null,null,null,null,null,null,null,null,null,null,null,null,null,null,null,null,1]
[2267,"Krauser Pet Products","Y",null,null,null,null,null,null,null,null,null,null,null,null,null,null,null,null,null,1,null,null,1,1]
[5203,"Kruuse A/S","Y",null,null,null,null,null,null,null,null,null,null,null,null,null,null,null,null,1,1,null,1,1,1,null,1,null,null,1,null,null,null,null,null,null,null,null,null,null,1,null,null,1,null,null,null,null,null,1,1]
[10165,"Kurgo Products ","Y",null,null,null,null,null,null,null,0,0,null,0,0,0,0,0,0,0,1,0,1,1,0,0,1,0,0,1,0,0,0,0,0,null,0,1,1,0,0,0,0,0,0,0,0,0,0,0,0,0,0]
[13057,"Ladybird Line","Y",null,null,null,null,1,null,null,null,null,1,null,null,null,null,null,null,null,null,null,null,null,null,null,null,null,null,null,null,null,null,null,null,null,null,null,null,null,null,null,null,null,null,1]
[6194,"Lafeber Company ","Y",null,null,null,null,null,null,null,0,0,0,0,0,0,1,null,0,0,0,0,0,0,0,0,0,0,0,0,0,0,0,0,0,0,0,0,0,0,0,0,0,0,0,0,0,0,0,0,0,0,0]
[2199,"Landaal Packaging Systems","Y",null,null,null,1,null,null,null,null,null,1]
[13293,"Lavish Pets","Y",null,null,1,null,null,null,null,null,null,null,null,null,null,null,null,null,1,1,null,1,null,null,null,null,null,null,null,null,null,null,null,null,null,null,1]
[6068,"Layfield Flexible Packaging","Y",null,1,null,null,null,null,null,null,null,1]
[10061,"Le Sharma","Y",null,1,null,null,null,null,null,null,null,null,null,null,null,null,null,null,1,1,null,null,1,null,null,null,1,null,1,null,null,null,1,null,1,null,1,null,null,null,null,null,null,null,null,0,0,0,0,null,0,0]
[13006,"Learn2GroomDogs.com","Y",null,null,null,null,1,null,null,null,null,1,1,null,null,null,null,null,1,1,null,null,null,null,null,null,null,null,null,null,null,null,null,null,null,null,null,null,null,null,null,null,null,null,1]
[3285,"Leash Gear by Redeemer","Y",null,null,1,null,null,null,null,null,null,null,null,null,null,null,null,null,null,1,null,null,1]
[5184,"Leashes By Liz","Y",null,null,null,null,null,null,null,null,null,null,null,null,null,null,null,null,null,1,null,null,1]
[11188,"Leather Brothers Inc./Omnipet","Y",null,null,null,null,null,null,null,0,0,null,0,0,0,0,null,0,1,1,0,0,1,1,0,1,null,1,1,0,1,1,0,1,0,0,1,1,null,0,0,0,0,null,1,0,0,0,0,0,null,0]
[6070,"Leclerc Pet Care","Y",null,1,null,null,null,null,null,null,null,1,null,null,null,null,null,null,null,1,null,null,null,null,null,null,1]
[5165,"Leeds Dog Supply","Y",null,null,null,null,null,null,1,null,null,null,null,null,null,null,null,null,null,1,null,null,1]
[3269,"Lennypads, LLC","Y",null,null,null,null,null,null,null,null,null,null,null,null,null,null,null,null,null,1,null,null,null,null,null,null,null,null,null,null,null,null,null,null,null,null,null,null,null,null,null,null,null,null,null,null,null,null,1]
[7061,"Life Line Pet Nutrition, Inc.","Y",null,1,null,null,null,null,null,null,null,null,null,null,null,null,null,null,null,1,null,null,null,null,null,null,1,null,null,null,null,null,null,null,null,null,null,null,null,null,null,null,1]
[4200,"Lifegard Aquatics ","Y",null,null,null,1,null,null,null,0,0,null,0,1,0,0,0,0,0,0,0,0,0,0,0,0,0,0,0,0,0,0,0,0,0,0,0,0,0,0,0,0,0,0,0,0,0,0,0,0,0,0]
[6177,"LightSpeed POS Inc","Y",null,null,null,null,null,null,null,null,null,1]
[5250,"Lilly Brush Co. LLC ","Y",null,null,null,null,null,null,null,0,0,null,0,0,0,0,0,0,1,1,0,0,0,0,0,0,0,0,0,0,0,0,0,0,0,0,0,0,0,0,0,0,0,0,1,0,0,0,0,0,0,0]
[4077,"Lindy’s Bakery","Y",null,1,null,null,null,null,null,null,null,null,null,null,null,null,null,null,1,1,null,null,null,null,null,null,1]
[9282,"Lisa Welch Designs","Y",null,null,1,null,null,null,null,null,null,null,1]
[5239,"Litter-Lifter","Y",null,null,null,null,null,null,null,null,null,null,null,null,null,null,null,null,1,null,null,null,null,null,null,null,null,null,null,null,null,null,null,null,null,null,null,null,null,null,1]
[6257,"LitterMaid","Y",null,null,null,null,null,null,null,null,null,null,null,null,null,null,null,null,1,null,null,null,null,null,null,null,null,null,null,null,null,null,null,null,null,null,null,null,null,1,1]
[3065,"Little Piggies","Y",null,1,null,null,null,null,null,null,null,null,null,null,null,null,null,null,null,1,null,null,null,null,null,null,1]
[7251,"Lixit Corporation ","Y",null,null,null,null,null,null,null,0,0,null,0,0,1,1,1,null,1,1,0,0,1,null,0,1,0,0,1,1,0,0,0,1,0,0,1,0,0,0,null,0,1,0,0,0,0,1,0,0,0,0]
[2194,"LM Farms/Wardley/Delectables","Y",null,null,null,1,null,null,null,null,null,null,null,1,1,1,1,null,1,1,null,null,1,null,null,1,1,1,1,null,1,null,null,1,null,null,null,null,null,1,1,1,1,1,1,1,1,1,1,1]
[2149,"Log 6ix","Y",null,null,null,null,null,null,null,null,null,null,null,null,null,null,null,null,1,1,null,null,null,null,null,null,null,null,null,null,null,null,null,null,null,null,null,null,null,null,null,null,null,null,null,null,1]
[10168,"Loki Pet Company","Y",null,null,null,null,null,null,null,null,null,null,null,null,null,null,null,null,null,1,null,1,1,null,null,1,1,null,1,null,null,null,null,null,1]
[5283,"Lone Wolf Pet Products","Y",null,null,1,null,null,null,null,null,null,null,null,null,null,null,null,null,null,1,null,null,1]
[11109,"Look Who's Happy","Y",null,null,null,null,null,null,null,null,null,null,null,null,null,null,null,null,null,1,null,null,null,null,null,null,1]
[5113,"Loopies Toys","Y",null,null,null,null,null,null,null,null,null,null,null,null,null,null,null,null,1,1,null,null,null,null,null,null,null,null,1]
[8028,"Lotus Pet Foods ","Y",null,1,null,null,null,null,null,0,0,null,0,0,0,0,0,0,1,1,0,0,0,0,1,0,0,0,0,0,0,0,0,0,0,0,0,0,0,0,0,0,0,0,0,0,0,0,0,0,0,0]
[6280,"LoveThyBeast","Y",null,null,1,null,null,null,null,null,null,null,null,null,null,null,null,null,1,1,null,1,1,null,null,null,1,null,1,null,null,null,null,null,1,null,1]
[5231,"Loving Pets ","Y",null,null,null,null,null,null,null,0,0,null,0,null,0,0,0,0,1,1,0,0,0,0,0,1,1,0,0,0,0,0,0,0,0,0,0,0,0,0,0,0,0,0,0,0,0,0,0,0,0,0]
[4286,"Loyal Friend","Y",null,null,1,null,null,null,null,null,null,null,null,null,null,null,null,null,null,1,null,null,null,null,null,null,null,null,null,null,null,null,null,null,null,null,null,null,null,null,null,null,null,null,null,null,null,null,null,1]
[2263,"LubriSynHA Family of Products/Re-Borne","Y",null,null,null,null,null,null,null,null,null,null,null,null,null,null,null,1,null,1,null,null,null,null,null,null,null,null,null,null,null,null,null,null,null,null,null,null,null,null,null,null,1]
[8297,"Luca For Dogs","Y",null,null,1,null,null,null,null,null,null,null,null,null,null,null,null,null,null,1,null,null,1,null,null,null,null,null,null,null,null,null,null,null,1]
[8061,"Lucky Pet Brands ","Y",null,1,null,null,null,null,null,0,0,null,0,0,0,null,null,0,null,1,0,0,0,0,0,0,1,0,0,0,0,0,0,0,0,0,0,0,0,0,0,0,0,0,0,0,0,0,0,0,0,0]
[2257,"Lucky Premium Treats","Y",null,null,null,null,null,null,null,null,null,null,null,null,null,null,null,null,null,1,null,null,null,null,null,null,1,1]
[7219,"Lucy Pet Products, Inc.","Y",null,null,null,null,null,null,null,null,null,null,null,null,null,null,null,null,1,1,null,null,null,null,null,null,null,null,null,null,null,null,null,null,null,null,null,null,null,1,null,null,null,null,null,1]
[2209,"Lugarti, Inc","Y",null,null,null,1,null,null,null,null,null,null,null,null,1]
[2190,"Lumina Media","Y",null,null,null,null,null,null,null,1]
[11279,"Luna Blue","Y",null,null,1,null,null,null,null,0,0,null,0,0,0,0,0,0,0,1,0,1,1,0,0,0,0,0,0,0,0,0,0,0,1,0,0,0,0,0,0,0,0,0,0,0,0,0,0,0,0,0]
[8151,"LupinePet","Y",null,null,null,null,null,null,null,0,0,null,null,0,0,0,0,0,1,1,0,0,1,null,0,0,0,0,0,0,0,0,0,0,0,0,0,0,0,0,0,0,0,0,0,0,0,0,0,0,0,0]
[3166,"Lyn Dorf","Y",null,null,null,null,null,null,1,null,null,null,1]
[13264,"M&M Industries Co., Ltd.","Y",null,null,null,null,null,null,null,null,null,null,null,null,null,null,null,null,null,1,null,null,null,null,null,null,null,null,null,null,null,null,null,null,null,null,1]
[2036,"MacKnight Food Group, Inc.","Y",null,1,null,null,null,null,null,null,null,null,null,null,null,null,null,null,null,1,null,null,null,null,null,null,1]
[1234,"Macro International","Y",null,null,null,null,null,null,null,null,null,1]
[6199,"Madcow","Y",null,null,null,null,null,null,null,null,null,null,null,null,null,null,null,1,null,1,null,null,1]
[10053,"Madra Mor Canine Spa Treatments","Y",null,1,null,null,null,null,null,null,null,null,null,null,null,null,null,null,null,1,null,null,null,null,null,null,null,null,null,null,null,null,null,null,null,null,null,null,null,null,null,null,1]
[1273,"Magnet and Steel/HandiPOD","Y",null,null,null,null,null,null,null,null,null,null,1,null,null,null,null,null,null,null,1,null,null,null,null,null,null,null,null,null,null,null,null,null,null,null,null,null,null,null,null,null,null,null,null,null,null,null,null,1]
[3235,"Main Street Hub","Y",null,null,null,null,null,null,null,null,null,1]
[2032,"Majesty's Animal Nutrition","Y",null,1,null,null,null,null,null,null,null,null,null,null,null,null,null,1,null,1,null,null,null,null,null,null,1,null,null,null,null,null,null,null,null,null,null,null,null,null,null,null,1]
[11115,"Mammoth Pet Products ","Y",null,null,null,null,null,null,null,0,0,null,null,0,0,null,null,null,null,1,0,0,0,0,0,0,null,0,1,0,0,0,0,0,0,0,0,0,0,0,0,null,0,0,0,0,0,0,0,0,0,0]
[8189,"Marchioro USA","Y",null,null,null,null,null,null,null,0,0,null,0,1,1,1,1,0,1,1,0,0,0,0,0,1,0,0,0,0,0,0,0,0,1,0,1,null,1,0,1,0,0,0,0,0,0,0,0,0,0,0]
[6257,"Marineland","Y",null,null,null,null,null,null,null,null,null,null,null,1]
[1211,"Mars Fishcare North America","Y",null,null,null,null,null,null,null,null,null,null,null,1,1]
[11231,"Mars Petcare","Y",null,null,null,null,null,null,null,0,0,null,0,0,0,0,null,0,1,1,0,0,0,0,1,0,1,0,0,0,0,0,0,0,0,0,0,0,0,0,0,0,null,0,0,0,0,0,0,0,0,0]
[10240,"Marshall Pet Products ","Y",null,null,null,null,null,null,null,0,0,null,0,0,null,1,1,1,1,1,0,0,0,0,0,0,null,0,0,0,0,0,0,0,0,0,0,0,0,null,0,0,1,0,0,null,1,0,0,0,0,0]
[12301,"Mascot Pet Products Inc","Y",null,null,1,null,null,null,null,null,null,null,null,null,null,null,null,null,null,1,null,null,null,null,null,null,1]
[5005,"Matrix Healthwerks Inc","Y",null,1,null,null,null,null,null,null,null,null,null,null,null,null,null,null,null,1,null,null,null,null,null,null,null,null,null,null,null,null,null,null,null,null,null,null,null,null,null,null,1]
[2076,"Mauro Pet Care","Y",null,1,null,null,null,null,null,0,0,null,0,0,0,0,0,null,0,1,0,0,0,0,0,0,0,0,0,0,0,0,0,0,0,0,0,0,0,0,0,0,1,1,0,1,0,0,0,0,0,0]
[7284,"Max's Closet LLC ","Y",null,null,1,null,null,null,null,0,0,null,0,0,0,0,0,0,0,1,0,1,0,0,0,0,0,0,0,0,0,0,0,0,0,0,null,0,0,0,0,0,0,0,0,0,0,0,1,0,0,0]
[12283,"MBS Greetings, LLC - Fetching Expressions","Y",null,null,1,null,null,null,null,null,null,null,1]
[12050,"MDC Romani Inc","Y",null,null,null,null,1,null,null,null,null,1,null,null,null,null,null,null,null,1,null,null,null,null,null,null,null,null,null,null,null,null,null,null,null,null,null,null,null,null,null,null,null,null,1]
[11016,"Megamazon USA LLC","Y",null,null,null,null,1,null,null,null,null,null,null,null,null,null,null,null,1,1,null,null,null,null,null,null,null,null,null,null,null,null,null,null,null,null,null,null,null,null,null,null,null,null,null,1]
[5251,"Mendota Products","Y",null,null,null,null,null,null,null,0,0,null,0,0,0,0,0,0,0,1,0,1,1,0,0,1,0,0,0,0,0,0,0,0,0,0,0,0,0,0,0,0,1,0,0,0,0,0,0,0,0,0]
[6017,"Merrick Pet Care","Y",null,1,null,null,null,null,null,0,0,null,0,0,0,0,0,0,1,1,0,0,0,0,1,0,1,null,null,0,0,0,0,0,0,0,0,0,0,0,0,0,0,0,0,0,0,0,0,0,0,0]
[5148,"Merry Jane & Thor","Y",null,null,null,null,null,null,1,null,null,null,null,null,null,null,null,null,null,1,null,null,1]
[2115,"Merry Products, Corp.","Y",null,null,null,null,null,null,null,null,null,null,null,null,null,1,1,null,1,1,null,null,null,null,null,null,null,null,null,null,null,null,1,null,1,null,1,null,1,null,1]
[3256,"Messy Mutts ","Y",null,null,null,null,null,null,null,null,null,null,null,null,null,null,null,null,null,1,null,null,null,null,null,1,null,null,1,null,null,null,null,null,null,null,null,null,null,null,1,null,null,null,1,null,null,null,null,1]
[7288,"Metro Paws LLC ","Y",null,null,1,null,null,null,null,0,0,null,0,0,0,0,0,0,0,1,0,0,0,0,0,0,0,0,0,0,0,0,0,0,0,0,0,0,0,0,0,0,0,0,0,0,0,0,1,1,0,0]
[11040,"Metrovac (Air Force)","Y",null,null,null,null,1,null,null,null,null,1,null,null,null,null,null,null,1,1,null,null,null,null,null,null,null,null,null,null,null,null,null,null,null,null,null,null,null,null,null,null,null,null,1]
[9113,"Midwest Homes For Pets","Y",null,null,null,null,null,null,null,0,0,null,0,0,0,1,1,0,1,1,0,0,0,0,0,0,0,0,0,0,0,0,1,0,1,1,1,1,1,0,0,0,0,0,0,0,0,0,0,1,0,0]
[3001,"Midwestern Pet Foods","Y",null,1,null,null,null,null,null,null,null,null,null,null,null,null,null,null,1,1,null,null,null,null,1,null,1]
[6202,"Miller Manufacturing","Y",null,null,null,null,null,null,null,null,null,null,null,null,null,1,1,1,1,1,null,null,null,null,null,1,null,null,null,null,null,null,1,null,1,null,1,1,1,null,null,null,null,null,null,null,null,null,null,1]
[2239,"Millers Forge","Y",null,null,null,null,null,null,null,0,0,null,null,0,0,0,0,0,1,1,0,0,0,0,0,null,0,0,0,0,0,0,0,0,0,0,0,0,0,0,0,1,0,0,1,0,1,0,0,0,0,0]
[1188,"MIND UP Corp","Y",null,null,null,null,null,null,null,null,null,null,1,null,null,null,null,null,1,1,null,null,null,null,null,null,null,null,null,null,null,null,null,null,null,null,null,null,null,null,null,1,1,null,1]
[1189,"Minerals 4 Pet Wellness","Y",null,null,null,null,null,null,null,null,null,null,1,null,null,null,null,null,1,1,null,null,1,null,null,null,null,null,null,null,null,null,null,null,null,null,null,null,null,null,null,null,1]
[13067,"Minus Forty Technologies ","Y",null,null,null,null,null,null,null,0,0,1,0,0,0,0,0,0,0,0,0,0,0,0,0,0,0,0,0,0,0,0,0,0,0,0,0,0,0,0,0,0,0,0,0,0,0,0,0,0,0,0]
[9189,"MiracleCorp Products ","Y",null,null,null,null,null,null,null,0,0,null,0,0,0,1,1,1,1,1,0,0,1,0,1,0,1,0,0,0,0,0,0,null,0,0,null,0,1,0,0,1,1,0,1,1,0,1,0,0,0,0]
[5279,"Miso Pup","Y",null,null,1,null,null,null,null,null,null,null,null,null,null,null,null,null,null,1,null,null,null,null,null,null,null,null,null,null,null,null,null,null,null,null,1]
[13083,"Missing Link","Y",null,null,null,null,null,null,null,null,null,null,null,null,null,1,1,1,1,1,null,null,null,null,null,null,null,null,null,null,null,null,null,null,null,null,null,null,null,null,null,null,1]
[5162,"MLA Inc. P. LTD.","Y",null,null,null,null,null,null,1,null,null,null,null,null,null,null,null,null,1,1,null,null,null,null,null,null,1,null,null,null,null,null,1]
[6239,"Mod Dawgs Inc.","Y",null,null,null,null,null,null,null,null,null,null,null,null,null,null,null,null,1,1,null,null,null,null,null,null,null,null,null,null,null,null,null,null,1]
[5287,"Modmong Pet Products","Y",null,null,1,null,null,null,null,null,null,null,null,null,null,null,null,null,1,1,null,null,null,null,null,null,null,null,1]
[10297,"Molly Mutt ","Y",null,null,1,null,null,null,null,0,0,null,0,0,0,0,0,0,0,1,0,0,1,0,0,0,0,0,0,0,0,0,0,0,1,0,0,0,0,0,0,0,0,0,0,null,1,0,0,0,0,0]
[2265,"Mondi","Y",null,null,null,null,null,null,null,null,null,1]
[11286,"Monmon Cats","Y",null,null,1,null,null,null,null,null,null,null,1,null,null,null,null,null,1]
[6273,"Moody Pet Inc","Y",null,null,null,null,null,null,null,null,null,null,1,null,null,null,null,null,1,1,null,null,null,null,null,null,null,null,1]
[2072,"Moore Outdoors","Y",null,1,null,null,null,null,null,null,null,null,1,null,null,null,null,null,null,1,null,null,null,null,null,null,null,null,1,null,null,null,null,null,1,null,null,null,null,null,null,null,1]
[13280,"Moose Pet Wear/ Strapworks","Y",null,null,1,null,null,null,null,0,0,0,1,0,0,0,0,0,2,1,0,0,1,0,0,0,0,0,0,0,0,0,0,0,0,0,0,1,0,0,0,0,0,0,0]
[3020,"Morris Packaging","Y",null,1,null,null,null,null,null,null,null,1]
[2061,"Mount Tibet Corporation","Y",null,1,null,null,null,null,null,null,null,null,null,null,null,null,null,null,null,1,null,null,null,null,null,null,1,null,null,null,null,null,null,null,null,null,null,null,null,null,null,null,null,null,null,0,0,0,0,0,0,0]
[6285,"Mountain Dog Products","Y",null,null,1,null,null,null,null,null,null,null,null,null,null,null,null,null,null,1,null,null,1]
[2101,"Mr. Miller Inc.","Y",null,null,null,null,null,null,null,null,null,null,null,null,null,null,null,null,null,1,null,null,null,null,null,null,1]
[3265,"Mr. Wags","Y",null,null,null,null,null,null,null,null,null,null,null,null,null,null,null,null,1,1,null,1,1,null,null,null,null,null,1,null,null,null,null,null,1]
[7017,"Muenster Milling Co","Y",null,1,null,null,null,null,null,null,null,null,null,1,null,null,null,1,1,1,null,null,null,null,1]
[3167,"Muffin's Halo For Blind Dogs","Y",null,null,null,null,null,null,1,null,null,null,null,null,null,null,null,null,null,1,null,null,1,null,null,null,null,null,null,null,null,null,null,null,null,null,null,null,null,null,null,null,1]
[1173,"Multipet International ","Y",null,null,null,null,null,null,null,0,0,null,0,null,0,1,1,null,1,1,0,0,0,0,0,0,1,null,1,0,1,1,0,0,null,0,0,0,0,0,0,0,0,0,1,0,0,0,0,0,0,0]
[3073,"Muntech Products","Y",null,1,null,null,null,null,null,null,null,null,null,null,1,1,null,null,1,1,null,null,null,null,null,null,null,null,null,null,null,null,null,null,null,null,null,null,null,null,null,1,1,1,null,1,1]
[12285,"Mutt Couture Inc.","Y",null,null,1,null,null,null,null,null,null,null,null,null,null,null,null,null,null,1,null,null,1]
[3158,"Mutt Nose Best","Y",null,null,null,null,null,null,1,null,null,null,null,null,null,null,null,null,null,1,null,null,null,null,null,null,null,null,null,null,null,null,null,null,null,null,null,null,null,null,null,null,1,1,null,1,null,1]
[10166,"My Canine Kids Inc","Y",null,null,null,null,null,null,null,null,null,null,null,null,null,null,null,null,null,1,null,1,1,null,null,null,null,null,null,null,null,null,null,null,null,null,1]
[7165,"My Dog Nose It!","Y",null,null,null,null,null,null,null,null,null,null,null,null,null,null,null,null,null,1,null,null,null,null,null,null,null,null,null,null,null,null,null,null,null,null,null,null,null,null,null,null,1,null,null,0,null,0,0,0,0,0]
[10028,"My Perfect Pet Food","Y",null,1,null,null,null,null,null,null,null,null,null,null,null,null,null,null,null,1,null,null,null,null,1]
[2236,"My Pet Designs","Y",null,null,null,null,null,null,null,null,null,null,null,null,null,null,null,null,1,null,null,null,null,null,null,1]
[11034,"MyTime","Y",null,null,null,null,1,null,null,null,null,1]
[12158,"Nandog Pet Gear","Y",null,null,null,null,null,null,null,null,null,null,1,null,null,null,null,null,1,1,null,1,1,null,null,null,null,null,1,null,null,1,null,null,1,null,null,null,null,null,null,null,null,null,1,null,null,null,null,1]
[11005,"National Animal Interest Alliance (NAIA)","Y",null,null,null,null,1,null,null,1]
[5174,"National Animal Supplement Council","Y",null,null,null,null,null,null,null,1,null,null,null,null,1,1,1,1,1,1,null,null,null,null,null,null,null,null,null,null,null,null,null,null,null,null,null,null,null,null,null,null,1]
[12009,"National Cat Groomers Institute","Y",null,null,null,null,1,null,null,null,null,1,null,null,null,null,null,null,1]
[9060,"Natura Petz Organics","Y",null,1,null,null,null,null,null,null,null,null,null,null,null,null,null,1,1,1,null,null,null,null,null,null,1,null,null,null,null,null,null,null,null,null,null,null,null,null,null,null,1]
[7069,"Natural Balance Pet Foods","Y",null,1,null,null,null,null,null,0,0,null,0,0,0,0,0,0,1,1,0,0,0,0,1,0,1,0,0,0,0,0,0,0,0,0,0,0,0,0,0,0,0,0,0,0,0,0,0,0,0,0]
[8026,"Nature Cure","Y",null,1,null,null,null,null,null,null,null,null,null,null,null,null,null,null,1,1,null,null,null,null,null,null,null,null,null,null,null,null,null,null,null,null,null,null,null,null,null,null,1]
[2021,"Nature's Finest Pet Products","Y",null,1,null,null,null,null,null,null,null,null,null,null,null,null,null,null,null,1,null,null,null,null,null,null,1]
[7035,"Nature's Logic ","Y",null,1,null,null,null,null,null,0,0,null,0,0,0,0,0,0,1,1,0,0,0,0,1,0,1,0,0,0,0,0,0,0,0,0,0,0,0,1,0,0,1,0,0,0,0,0,0,0,0,0]
[6257,"Nature's Miracle","Y",null,null,null,null,null,null,null,null,null,null,null,null,null,null,null,null,1,1,null,null,null,null,null,null,null,null,null,null,null,null,null,null,1,null,1,null,1,1,1,null,1,null,null,1,1,1,1,1]
[12033,"Nature's Specialties","Y",null,null,null,null,1,null,null,null,null,1,null,null,null,null,null,1,1,1,null,null,null,null,null,null,null,null,null,null,null,null,null,null,null,null,null,null,null,null,null,null,1,null,null,1,1]
[4061,"Nature's Variety ","Y",null,1,null,null,null,null,null,null,null,null,null,null,null,null,null,null,1,1,null,null,null,null,1,null,1]
[10159,"NaturVet-Garmon Corp.","Y",null,null,null,null,null,null,null,0,0,null,0,0,0,0,0,1,1,1,0,0,0,0,0,0,0,0,0,0,0,0,0,0,0,0,0,0,0,0,0,0,1,0,0,1,0,0,0,0,0,0]
[11207,"Neater Pet Brands ","Y",null,null,null,null,null,null,null,0,0,null,0,0,0,0,0,0,1,1,0,0,0,0,0,1,0,0,0,0,0,0,0,0,0,0,0,0,0,0,1,0,0,0,0,0,1,0,0,0,0,0]
[11083,"Nestle Purina Petcare Company ","Y",null,null,null,null,null,null,null,null,null,null,null,null,null,null,null,null,1,1,0,0,0,0,1,0,1,0,0,0,0,0,0,0,0,0,0,0,0,1]
[2094,"New Age Pet","Y",null,null,null,null,null,null,null,null,null,null,null,null,null,null,1,null,1,1,null,null,null,null,null,1,null,null,null,null,null,null,1,null,1,null,1,null,1,null,1]
[5256,"New Morning Imports DBA Tumbleweed","Y",null,null,null,null,null,null,null,null,null,null,1,null,null,null,null,null,null,null,null,null,null,null,null,null,null,null,null,null,null,null,null,null,null,null,null,null,null,null,null,null,null,null,null,0,null,0,0,0,0,0]
[3163,"New Zealand's Best","Y",null,null,null,null,null,null,1,null,null,null,null,null,null,null,null,1,1,1,null,null,null,null,null,null,null,null,null,null,null,null,null,null,null,null,null,null,null,null,null,null,1,null,null,1]
[8159,"Newco Distributors","Y",null,null,null,null,null,null,null,null,1,null,null,null,null,1,1,1,1,1,null,null,null,null,1,null,1,null,null,null,null,null,null,null,null,null,null,null,null,1,null,null,1,null,null,null,null,null,1,1]
[7161,"NexPet","Y",null,null,null,null,null,null,null,1,null,1]
[2043,"NextGen Pet Products","Y",null,1,null,null,null,null,null,0,0,null,0,0,0,0,0,0,1,1,0,0,0,0,null,0,1,0,0,0,0,0,0,0,0,0,0,0,0,1,null,0,0,0,0,0,0,0,0,0,0,0]
[12290,"Night 1 Pets","Y",null,null,1,null,null,null,null,null,null,null,null,null,null,null,null,null,null,1,null,null,1]
[3264,"Nimble Outdoors Supplies Inc","Y",null,null,null,null,null,null,null,null,null,null,null,null,null,null,null,1,null,1,null,1,1]
[12015,"Ningbo Chaoshun Electric (pet clipper)Appliance Co","Y",null,null,null,null,1,null,null,null,null,1,null,null,null,null,null,null,1,1,null,null,null,null,null,null,null,null,null,null,null,null,null,null,null,null,null,null,null,null,null,null,null,null,1]
[5198,"Nite Beam Products","Y",null,null,null,1,null,null,null,null,null,null,null,null,null,null,null,null,null,1,null,null,1]
[7154,"Nite Ize","Y",null,null,null,null,null,null,null,0,0,null,null,0,0,0,0,0,0,1,0,0,1,0,0,0,0,0,1,0,0,0,0,0,0,0,0,0,0,0,0,0,0,0,0,0,0,0,0,null,0,0]
[7010,"NoBowl Feeding System","Y",null,1,null,null,null,null,null,null,null,null,null,null,null,null,null,null,1,null,null,null,null,null,null,1]
[7150,"Nootie LLC ","Y",null,null,null,null,null,null,null,0,0,null,0,0,0,0,0,0,0,1,0,0,0,0,1,0,1,0,0,0,0,0,0,0,0,0,0,0,0,0,0,0,1,0,0,1,0,0,0,0,0,0]
[5065,"Nordic Naturals ","Y",null,1,null,null,null,null,null,0,0,null,0,0,0,0,0,0,1,1,0,0,0,0,0,0,0,0,0,0,0,0,0,0,0,0,0,0,0,0,0,0,1,0,0,0,0,0,0,0,0,0]
[12179,"North American Pet Products ","Y",null,null,null,null,null,null,null,0,0,1,0,1,1,1,1,0,1,1,0,0,0,0,0,0,null,0,1,0,null,1,1,0,0,0,0,0,0,0,0,0,0,0,0,0,0,0,0,0,0,0]
[7244,"North States","Y",null,null,null,null,null,null,null,0,0,null,0,0,0,1,0,0,0,1,0,0,0,0,0,0,0,0,0,0,0,0,0,0,0,1,null,0,1,0,0,0,0,0,0,0,0,0,0,0,0,0]
[3028,"NorthPaw Nutrition Inc.","Y",null,1,null,null,null,null,null,null,null,null,null,null,null,null,null,null,1,1,null,null,null,null,1,null,null,null,null,null,null,null,null,null,null,null,null,null,null,null,null,null,1]
[1198,"NorthStar Naturals LLC","Y",null,null,null,null,null,null,null,null,null,null,null,null,null,null,null,null,1,1,null,null,null,null,1,null,1]
[6036,"Northwest Naturals ","Y",null,1,null,null,null,null,null,0,0,null,0,0,0,0,0,0,1,1,0,0,0,0,1,0,1,0,0,0,0,0,0,0,0,0,0,0,0,0,0,0,0,0,0,0,0,0,0,0,0,0]
[11000,"Noscent Naturals Corp","Y",null,null,null,null,1,null,null,null,null,null,null,null,1,1,1,null,1,1,null,null,null,null,null,null,null,null,null,null,null,null,null,null,null,null,null,null,null,null,null,null,null,null,null,null,1]
[10001,"NOW Pets","Y",null,1,null,null,null,null,null,null,null,null,null,null,null,null,null,null,1,1,null,null,null,null,null,null,null,null,null,null,null,null,null,null,null,null,null,null,null,null,null,null,1]
[9027,"NPIC – Makers of Premium Natural Pet Treats","Y",null,1,null,null,null,null,null,null,null,null,null,null,null,null,1,null,1,1,null,null,null,null,null,null,1,null,null,null,null,null,null,null,null,null,null,null,null,null,null,null,1]
[2063,"NRG Dehydrated Dog Food","Y",null,1,null,null,null,null,null,null,null,null,null,null,null,null,null,null,null,1,null,null,null,null,1]
[7041,"Nulo Pet Foods ","Y",null,1,null,null,null,null,null,0,0,null,0,0,0,0,0,0,1,1,0,0,0,0,1,0,0,0,0,0,0,0,0,0,0,0,0,0,0,0,0,0,0,0,0,0,0,0,0,0,0,0]
[2017,"Nupro Supplements/Nutri-pet Research Inc","Y",null,1,null,null,null,null,null,0,0,null,0,0,0,0,1,0,1,1,0,0,0,0,0,0,0,0,0,0,0,0,0,0,0,0,0,0,0,0,0,0,1,0,0,0,0,0,0,0,0,0]
[7195,"Nutram Pet Products","Y",null,null,null,null,null,null,null,0,0,0,0,0,0,0,0,0,1,1,0,0,0,0,1,0,null,0,0,0,0,0,0,0,0,0,0,0,0,0,0,0,0,0,0,0,0,0,0,0,0,0]
[5183,"Nutramax Laboratories Veterinary Sciences, Inc.","Y",null,null,null,null,null,null,null,null,null,null,null,null,null,null,null,1,1,1,null,null,null,null,null,null,null,null,null,null,null,null,null,null,null,null,null,null,null,null,null,null,1]
[6209,"Nutramax Laboratories Veterinary Sciences, Inc.","Y",null,null,null,null,null,null,null,null,null,null,null,null,null,null,null,1,1,1,null,null,null,null,null,null,null,null,null,null,null,null,null,null,null,null,null,null,null,null,null,null,1]
[2039,"Nutreco Canada","Y",null,1,null,null,null,null,null,null,null,null,null,null,null,null,null,null,1,1,null,null,null,null,1]
[2066,"Nutritionship Inc","Y",null,1,null,null,null,null,null,null,null,null,null,null,null,null,null,null,null,1,null,null,null,null,null,null,null,1]
[2107,"Nutri-Vet Wellness LLC","Y",null,null,null,null,null,null,null,null,null,null,null,null,null,1,1,1,1,1,null,null,null,null,null,null,1,null,null,null,null,null,null,null,null,null,null,null,null,null,null,1,1]
[7070,"NV Pets Sales & Marketing","Y",null,1,null,null,null,null,null,null,null,null,null,null,null,null,null,null,1,1,null,null,1,null,1,null,1,null,1]
[2014,"NZYMES.COM - A Div. of Biopet Inc.","Y",null,1,null,null,null,null,null,null,null,null,null,null,null,null,null,1,1,1,null,null,null,null,null,null,null,null,null,null,null,null,null,null,null,null,null,null,null,null,null,null,1]
[3200,"Oasis International","Y",null,null,null,1,null,null,null,null,null,1,null,1]
[11060,"Oasis Pet Products","Y",null,null,null,null,null,null,null,0,0,null,0,1,1,1,1,null,1,1,0,0,0,0,0,1,0,0,1,0,0,0,0,0,0,0,1,0,0,0,0,0,1,0,0,0,null,0,0,0,0,0]
[8083,"OC Raw Dog","Y",null,null,null,null,null,null,null,null,null,null,null,null,null,null,null,null,1,1,null,null,null,null,1,null,1,null,null,null,null,null,null,null,null,null,null,null,null,null,null,null,1]
[8177,"Oculus Innovative Science","Y",null,null,null,null,null,null,null,null,null,null,null,null,null,1,null,1,1,1,null,null,null,null,null,null,null,null,null,null,null,null,null,null,null,null,null,null,null,null,null,null,1]
[13304,"OIC Advance","Y",null,null,1,null,null,null,null,null,null,1]
[9267,"OllyDog ","Y",null,null,null,null,null,null,null,0,0,null,0,0,0,0,0,0,0,1,0,null,1,0,0,1,0,0,1,0,0,0,0,0,1,0,0,0,0,0,0,0,0,0,0,0,null,0,0,0,0,0]
[7180,"Omega Paw Inc. ","Y",null,null,null,null,null,null,null,0,0,null,0,0,0,0,0,0,1,1,0,0,0,0,0,1,1,0,1,0,0,1,1,0,0,0,0,0,0,0,1,0,1,0,1,null,1,0,0,0,0,0]
[4189,"OmegaSea","Y",null,null,null,1,null,null,null,null,null,null,null,1,1]
[3041,"One Fur All","Y",null,1,null,null,null,null,null,null,null,null,1,null,null,null,1,null,1,1,null,null,null,null,null,null,null,null,null,null,null,null,null,null,null,null,null,null,null,null,null,null,null,null,null,null,1]
[9172,"One Pet Planet ","Y",null,null,null,null,null,null,null,0,0,null,0,1,1,1,1,0,1,1,0,1,1,1,0,null,1,1,1,0,null,0,0,1,null,0,0,0,0,1,1,null,null,0,1,0,0,0,0,null,0,0]
[11277,"Oomaloo","Y",null,null,1,null,null,null,null,null,null,null,null,null,null,null,null,null,1,1,null,null,null,null,null,null,null,null,1]
[7107,"Open Farm","Y",null,null,null,null,null,null,null,null,null,null,null,null,null,null,null,null,1,1,null,null,null,null,1]
[5276,"Ore Originals","Y",null,null,1,null,null,null,null,null,null,null,1,null,null,null,null,null,1,1,null,null,null,null,null,1,null,null,1,null,null,null,null,null,null,null,null,null,null,null,1,null,null,null,1]
[6067,"Organic and Nature Private Label","Y",null,1,null,null,null,null,null,null,null,null,null,null,null,null,null,null,null,1,null,null,null,null,null,null,null,null,null,null,null,null,null,null,null,null,null,null,null,null,null,null,null,null,null,1,1]
[9069,"Oscar Newman LLC","Y",null,1,null,null,null,null,null,0,0,null,0,0,0,0,0,0,0,1,0,1,0,0,0,0,null,0,1,0,0,0,0,0,0,0,0,0,0,0,0,0,null,0,0,0,0,0,0,0,0,0]
[11033,"Oster Professional Products","Y",null,null,null,null,1,null,null,null,null,1,null,null,null,null,null,1,1,1,null,null,null,null,null,null,null,null,null,null,null,null,null,null,null,null,null,null,null,null,null,null,null,null,1,1,1]
[13055,"Otto Trading Inc","Y",null,null,null,null,1,null,null,null,null,1]
[3160,"Our Pet Project LLC","Y",null,null,null,null,null,null,1,null,null,null,null,null,null,null,null,null,1,1,null,null,null,null,null,1]
[10219,"OurPet's Company","Y",null,null,null,null,null,null,null,0,0,null,0,0,0,null,0,0,1,1,0,0,1,0,0,1,1,0,1,0,1,1,0,0,0,0,0,0,0,1,1,0,1,0,0,0,0,0,0,1,0,1]
[9250,"Oxbow Animal Health","Y",null,null,null,null,null,null,null,0,0,null,0,0,1,0,1,0,0,0,0,0,0,0,0,0,0,0,0,0,0,0,0,0,0,0,0,0,0,0,0,0,0,0,0,0,0,0,0,0,0,0]
[6277,"P.L.A.Y Pet Lifestyle And You","Y",null,null,1,null,null,null,null,null,null,null,1,null,null,null,null,null,1,1,null,null,null,null,null,1,null,null,1,null,null,1,1,null,1]
[5195,"Pacific Bag, Inc.","Y",null,null,null,null,null,null,null,null,null,1]
[3027,"Pacific Bird and Supply Co. ","Y",null,1,null,null,null,null,null,0,0,null,1,0,0,1,0,0,0,0,0,0,0,0,0,0,0,0,0,0,0,0,0,0,0,0,0,0,0,0,0,0,0,0,0,0,0,0,0,0,0,0]
[5067,"Pampered Pets USA","Y",null,1,null,null,null,null,null,0,0,0,0,0,0,0,0,null,null,1,0,0,0,0,0,0,1,0,0,0,0,0,0,0,0,0,0,0,0,0,0,0,1,0,0]
[5103,"Paragon Pet Products ","Y",null,null,null,null,null,null,null,0,0,null,0,0,0,0,0,0,0,1,0,0,0,0,0,0,1,0,0,0,0,0,0,0,0,0,0,0,0,0,0,0,0,0,0,0,0,0,0,0,0,0]
[10281,"Parisian Pet ","Y",null,null,1,null,null,null,null,0,0,null,0,0,0,0,0,0,0,1,0,1,1,0,0,0,0,0,0,0,0,0,0,0,1,0,1,0,0,0,0,0,0,0,0,0,0,0,0,0,0,0]
[8010,"Party Animal Inc","Y",null,1,null,null,null,null,null,null,null,null,null,null,null,null,null,null,1,1,null,null,null,null,1]
[4175,"Patchwork Pet","Y",null,null,null,null,null,null,null,0,0,null,0,0,0,0,0,0,1,1,0,0,0,0,0,0,0,0,1,0,0,0,0,0,null,0,0,0,0,0,0,0,0,0,0,0,0,0,0,0,0,0]
[5258,"Paul Owens, The Original Dog Whisperer","Y",null,null,null,null,null,null,null,null,null,1,1,null,null,null,null,null,null,1,1]
[6113,"PAW - Pet Adventures Worldwide, Inc.","Y",null,null,null,null,null,null,null,null,1,null,null,null,null,null,null,null,null,1,null,1,1,null,null,1,1,null,1,null,null,null,null,null,1,null,null,null,null,null,null,null,1,null,null,0,0,null,0,1,0,0]
[1194,"Paw Inspired","Y",null,null,null,null,null,null,null,null,null,null,null,null,null,null,null,null,null,1,null,null,null,null,null,null,null,null,null,null,null,null,null,null,null,null,null,null,null,null,null,null,null,null,null,null,null,null,1]
[12289,"Paw Paws USA","Y",null,null,1,null,null,null,null,null,null,null,null,null,null,null,null,null,null,1,null,null,1,null,null,null,null,null,null,null,null,null,null,null,1]
[3083,"Paw Pods LLC","Y",null,null,null,null,null,null,null,0,0,0,1,0,1,0,0,0,1,1,0,0,0,0,0,0,0,0,0,0,0,0,0,0,0,0,0,0,0,0,0,0,0,0,0]
[3248,"Paw5","Y",null,null,null,null,null,null,null,null,null,null,null,null,null,null,null,null,null,1,null,null,null,null,null,1]
[3036,"PawFlex Inc","Y",null,1,null,null,null,null,null,null,null,null,null,null,null,null,null,1,null,1,null,null,null,null,null,null,null,null,1,null,null,null,null,null,null,null,null,null,null,null,null,null,1,null,null,1]
[10005,"Pawluxury","Y",null,1,null,null,null,null,null,null,null,null,null,null,null,null,null,null,null,1,null,null,null,null,null,null,1]
[5071,"PawNosh Recycled Glass Pet Bowls","Y",null,1,null,null,null,null,null,null,null,null,null,null,null,null,null,null,1,1,null,null,null,null,null,1]
[5285,"Pawpatu","Y",null,null,1,null,null,null,null,null,null,null,null,null,null,null,null,null,null,1,null,1]
[5150,"Paws Barkery","Y",null,null,null,null,null,null,1,null,null,null,null,null,null,null,null,null,null,1,null,null,null,null,null,null,1]
[4075,"Pawsitively Gourmet, Inc.","Y",null,1,null,null,null,null,null,0,0,0,0,0,0,0,0,0,0,1,0,0,0,0,0,0,1,0,0,0,0,0,0,0,0,0,0,0,0,0,0,0,0,0,0]
[8278,"Pawz Dog Boots ","Y",null,null,1,null,null,null,null,0,0,null,1,0,0,0,0,0,0,1,0,1,1,0,0,0,0,0,0,0,0,0,0,0,0,0,0,0,0,0,0,0,0,0,0,0,0,0,0,0,0,0]
[3177,"PBFY Flexible Packaging","Y",null,null,null,null,null,null,null,null,null,1]
[2261,"Pegasus Home Fashions","Y",null,null,null,null,null,null,null,null,null,null,null,null,null,null,null,null,null,1,null,null,null,null,null,null,null,null,null,null,null,null,null,null,1]
[11271,"Penn Plax Inc","Y",null,null,null,null,null,null,null,0,0,null,1,1,1,1,1,0,1,1,0,null,1,0,0,1,null,null,1,0,1,1,1,1,1,0,1,0,0,null,1,null,0,0,1,0,0,0,1,1,0,0]
[11183,"Perrigo Animal Health","Y",null,null,null,null,null,null,null,null,null,null,null,null,null,null,null,null,1,1,null,null,1,null,null,null,1,1,1,null,null,null,null,1,null,null,null,null,null,null,null,1,1,1,1,1,1,null,1,1]
[6065,"Pet | Tao","Y",null,1,null,null,null,null,null,null,null,null,null,null,null,null,null,null,1,1,null,null,null,null,1,null,1,null,null,null,null,null,null,null,null,null,null,null,null,null,null,null,null,null,null,0,0,0,0,0,0,0]
[8270,"Pet Age Magazine ","Y",null,null,null,null,null,null,null,1,0,null,0,0,0,0,0,0,0,0,0,0,0,0,0,0,0,0,0,0,0,0,0,0,0,0,0,0,0,0,0,0,0,0,0,0,0,0,0,0,0,0]
[4116,"Pet Brands","Y",null,null,null,null,null,null,null,null,null,null,null,null,null,null,null,null,null,1,null,null,null,null,null,null,1]
[2151,"Pet Buddies, Inc.","Y",null,null,null,null,null,null,null,null,null,null,null,null,null,null,null,null,1,1,null,null,null,null,null,1,null,null,1,null,null,null,null,null,null,null,null,null,null,null,1,null,null,null,1,null,null,0,0,1,0,0]
[12257,"Pet Business Magazine","Y",null,null,null,null,null,null,null,1,0,null,0,0,0,0,0,0,0,0,0,0,0,0,0,0,0,0,0,0,0,0,0,0,0,0,0,0,0,0,0,0,0,0,0,0,0,0,0,0,0,0]
[12262,"Pet Center, Inc. (PCI)","Y",null,null,null,null,null,null,null,0,0,null,0,0,0,null,0,0,0,1,0,0,0,0,0,0,1,0,0,0,0,0,0,0,0,0,0,0,0,0,0,0,0,0,0,0,0,0,0,0,0,0]
[9271,"Pet Factory","Y",null,null,null,null,null,null,null,0,0,null,0,0,0,0,0,0,0,1,0,0,0,0,0,0,0,1,null,0,0,0,0,0,0,0,0,0,0,0,0,0,0,0,0,0,0,0,0,0,0,0]
[9215,"Pet Gear Inc. ","Y",null,null,null,null,null,null,null,0,0,null,0,0,0,0,null,0,1,1,0,0,0,0,0,0,0,0,0,0,0,0,0,0,1,0,1,1,1,0,0,0,0,0,1,0,0,0,0,0,0,0]
[12277,"Pet Gifts USA","Y",null,null,1,null,null,null,null,0,0,null,1,0,0,0,0,null,null,null,0,0,0,0,0,0,0,0,0,0,0,0,0,0,0,0,0,0,0,0,0,0,0,0,0,0,0,0,0,0,0,0]
[13156,"Pet Health Solutions","Y",null,null,null,null,null,null,null,null,null,null,null,null,null,null,null,null,1,1,null,null,null,null,null,null,1,null,null,null,null,null,null,null,null,null,null,null,null,null,null,1,1,null,null,1,1,1]
[3201,"Pet Industry Joint Advisory Council (PIJAC)","Y",null,null,null,1,null,null,null,1,0,null,0,0,0,0,0,0,0,0,0,0,0,0,0,0,0,0,0,0,0,0,0,0,0,0,0,0,0,0,0,0,0,0,0,0,0,0,0,0,0,0]
[13083,"Pet Kelp","Y",null,null,null,null,null,null,null,0,0,null,0,0,0,0,0,0,1,1,0,0,0,0,0,0,1,0,0,0,0,0,0,0,0,0,0,0,0,0,0,0,1,0,0,0,0,0,0,0,0,0]
[7245,"Pet King Brands, Inc./Zymox","Y",null,null,null,null,null,null,null,null,null,null,null,null,null,null,null,1,1,1,null,null,null,null,null,null,null,null,null,null,null,null,null,null,null,null,null,null,null,null,null,1,1,null,null,1]
[10009,"Pet Kiss Inc.","Y",null,1,null,null,null,null,null,null,null,null,null,null,null,null,null,null,1,1,null,null,null,null,null,null,1,null,null,null,null,null,null,null,null,null,null,null,null,null,null,1,1]
[13308,"Pet Life LLC","Y",null,null,1,null,null,null,null,null,null,null,null,null,null,null,null,null,1,1,null,1,null,null,null,null,null,null,1,null,null,null,null,null,1,null,1,null,1,null,null,null,1]
[10198,"Pet Matrix LLC","Y",null,null,null,null,null,null,null,0,0,null,0,0,0,0,0,0,0,1,0,0,0,0,0,0,1,0,0,0,0,0,0,0,0,0,0,0,0,0,0,0,0,0,0,0,0,0,0,0,0,0]
[11256,"Pet 'n Shape/Pet Ventures ","Y",null,null,null,null,null,null,null,0,0,null,0,0,0,0,0,0,1,1,0,0,0,0,0,0,1,0,0,0,0,0,0,0,0,0,0,0,0,0,0,0,0,0,0,0,0,0,0,0,0,0]
[2198,"Pet Pal Distribution Inc","Y",null,null,null,1,null,null,null,null,null,1,null,null,null,1,1]
[9159,"Pet Palette LLC ","Y",null,null,null,null,null,null,null,0,1,null,0,0,0,0,0,0,1,1,0,1,1,1,0,1,0,0,1,0,0,0,1,0,1,0,1,0,0,0,0,0,1,0,1,0,0,0,0,0,0,0]
[13300,"Pet Party Printz","Y",null,null,1,null,null,null,null,null,null,null,1,null,null,null,null,null,null,1]
[13281,"Pet Perennials c/o Cherishedones LLC","Y",null,null,1,null,null,null,null,null,null,null,1]
[3015,"Pet Product Innovations  ","Y",null,1,null,null,null,null,null,0,0,null,0,0,0,0,0,0,1,1,0,0,1,0,0,1,1,0,1,0,0,0,0,0,1,0,0,0,0,0,1,0,0,0,1,0,0,0,0,1,0,0]
[11221,"Pet Product News LLC","Y",null,null,null,null,null,null,null,1]
[12261,"Pet Qwerks","Y",null,null,null,null,null,null,null,null,null,null,null,null,null,null,null,null,null,1,null,null,null,null,null,null,1,null,1]
[2188,"Pet Ready","Y",null,null,null,null,null,null,null,null,null,null,1,null,null,null,null,null,1,1,null,null,null,null,null,null,null,null,null,null,null,null,null,null,null,null,null,null,null,null,null,null,1]
[4174,"Pet Store Pro (PIDA)","Y",null,null,null,null,null,null,null,1,null,1]
[2244,"Pet Stores USA","Y",null,null,null,null,null,null,null,0,1,null,0,1,1,1,1,1,1,1,null,1,1,1,1,1,1,1,1,1,1,1,1,1,1,1,1,1,1,1,1,1,1,1,1,1,1,1,1,1,1,1]
[1241,"Pet Top Products LLC","Y",null,null,null,null,null,null,null,null,null,null,null,null,null,null,null,null,null,1,null,null,null,null,null,1]
[13303,"Pet Walker Plus","Y",null,null,1,null,null,null,null,null,null,null,null,null,null,null,null,null,null,1,null,null,1]
[7268,"Pet Wellness LLC","Y",null,null,null,null,null,null,null,null,null,null,null,null,null,1,1,null,1,1,null,null,null,null,null,null,null,null,null,null,null,null,null,null,null,null,null,null,null,null,null,null,1]
[2241,"Pet&Me","Y",null,null,null,null,null,null,null,null,null,null,null,null,null,null,null,null,null,1,null,null,null,null,null,null,null,null,null,null,null,null,null,null,null,null,1]
[9127,"Pet-Ag, Inc.","Y",null,null,null,null,null,null,null,null,null,null,null,null,null,1,1,1,1,1,null,null,null,null,1,1,1,1,null,null,null,null,null,null,null,null,null,null,null,null,null,null,1,1,1,1,1]
[11038,"PetBizinsurance.com","Y",null,null,null,null,1,null,null,null,null,1]
[1252,"PetCakes by Lucky Paws, LLC","Y",null,null,null,null,null,null,null,null,null,null,null,null,null,null,null,null,1,1,null,null,null,null,null,null,1]
[13203,"Petcube","Y",null,null,null,null,null,null,null,null,null,null,null,null,null,null,null,null,1,1,null,null,null,null,null,null,null,null,null,null,null,null,null,null,null,null,null,null,null,null,null,null,null,null,null,null,null,null,null,null,1,1]
[8055,"Petcurean Pet Nutrition","Y",null,1,null,null,null,null,null,0,0,null,0,0,0,0,0,0,1,1,0,0,0,0,1,0,1,0,0,0,0,0,0,0,0,0,0,0,0,0,0,0,1,0,0,0,0,0,0,0,0,0]
[4176,"PetDNA Labs","Y",null,null,null,null,null,null,null,null,null,null,null,null,null,null,null,null,null,1,null,null,null,null,null,null,null,null,null,null,null,null,null,null,null,null,null,null,null,null,null,1,1]
[10231,"PetEdge Dealer Services","Y",null,null,null,null,null,null,null,null,1,null,1,null,null,null,null,null,1,1,null,1,1,1,null,1,1,1,1,null,1,1,1,null,1,1,1,1,1,null,1,1,1,1,1,1,1,1,1,1,1]
[12173,"PetEgo EGR LLC","Y",null,null,null,null,null,null,null,null,null,null,null,null,null,null,null,null,1,1,null,1,1,null,null,1,null,null,1,null,null,null,null,null,1,null,1,1,1,null,1,null,null,null,null,null,null,null,null,1]
[2048,"PetGuard, Inc.","Y",null,1,null,null,null,null,null,null,null,null,null,null,null,null,null,null,1,1,null,null,null,null,1,null,1,null,null,null,null,null,null,null,null,null,null,null,null,null,null,null,1,null,null,1]
[5277,"PetHealthLocker","Y",null,null,1,null,null,null,null,null,null,null,null,null,null,null,null,null,1,1,null,null,null,1,null,null,null,null,null,null,null,null,null,null,null,null,null,null,null,null,null,null,null,null,null,null,null,null,null,null,null,1]
[13256,"Petincare Limited","Y",null,null,null,null,null,null,null,null,null,null,null,1,1,1,1,null,1,1,null,null,null,null,null,1,null,null,1,1,null,1,1,null,null,null,null,null,1,null,1,1]
[3103,"PetIQ","Y",null,null,null,null,null,null,null,null,null,null,null,null,null,null,null,null,null,1,null,null,null,null,null,null,1,null,null,null,null,null,null,null,null,null,null,null,null,null,null,1,null,1,null,1]
[10015,"PetKind Pet Products","Y",null,1,null,null,null,null,null,null,null,null,null,null,null,null,null,null,null,1,null,null,null,null,1,null,1]
[3031,"Petlife Americas Pet Care","Y",null,1,null,null,null,null,null,null,null,null,null,null,null,null,null,null,null,1,null,null,null,null,null,null,1,null,null,null,null,null,null,null,null,null,null,null,null,null,null,1]
[9151,"Petlinks","Y",null,null,null,null,null,null,null,null,null,null,null,null,null,null,null,null,1,1,null,null,null,null,null,null,null,null,1,null,1,1,1,null,1,null,null,null,null,null,1,null,null,null,null,null,1]
[7113,"Petloo","Y",null,null,null,null,null,null,null,null,null,null,null,null,null,null,null,null,1,1,null,null,null,null,null,null,null,null,null,null,null,null,null,null,null,null,null,null,null,null,null,null,null,null,null,null,1,null,null,1]
[11159,"Petlou","Y",null,null,null,null,null,null,null,0,0,null,0,0,0,0,0,0,1,1,0,0,0,0,0,0,0,0,1,0,0,0,1,0,0,0,0,0,0,0,0,0,0,0,0,0,0,0,0,0,0,0]
[6083,"Petmate ","Y",null,null,null,null,null,null,null,0,0,null,0,0,0,1,0,0,1,1,0,0,1,0,0,1,1,0,1,0,0,1,1,1,1,1,1,1,1,0,1,1,0,0,1,0,0,0,0,1,0,0]
[11287,"Petote Group","Y",null,null,1,null,null,null,null,0,0,null,0,0,0,0,0,0,0,1,0,0,0,0,0,0,0,0,0,0,0,0,0,0,0,0,1,0,0,0,0,0,0,0,0,0,0,0,0,0,0,0]
[7189,"PetPals Group ","Y",null,null,null,null,null,null,null,0,0,null,0,0,0,null,null,0,1,1,0,0,0,0,0,1,0,0,1,0,0,1,1,0,1,0,1,0,0,0,1,0,0,0,0,0,0,0,0,0,0,0]
[3238,"Petproducts.com","Y",null,null,null,null,null,null,null,null,null,1,null,null,null,null,null,null,null,null,null,null,null,null,null,null,null,null,null,null,null,null,null,null,null,null,null,null,null,null,null,null,null,null,null,0,0,0,0,0,0,0]
[13183,"Petprojekt","Y",null,null,null,null,null,null,null,null,null,null,null,null,null,null,null,null,null,1,0,0,1,0,0,1,0,0,1,0,0,0,0,0,null,0]
[11151,"PetRageous Designs Ltd.","Y",null,null,null,null,null,null,null,0,0,null,1,0,0,0,1,0,1,1,0,1,0,0,0,1,0,0,1,0,0,1,1,0,0,0,0,0,0,0,0,0,0,0,0,0,0,0,0,1,0,0]
[6260,"Pets First","Y",null,null,null,null,null,null,null,0,0,0,0,1,0,0,0,0,1,1,0,1,1,0,0,0,0,0,1,0,0,0,0,0,1,0,0,1,0,0,0,0,0,0,1,0,0,0,1,0,0,0]
[4049,"Pets Global Inc","Y",null,1,null,null,null,null,null,0,0,null,0,0,0,0,0,0,1,1,0,0,0,0,1,0,0,0,0,0,0,0,0,0,0,0,0,0,0,0,0,0,0,0,0,0,0,0,0,0,0,0]
[14261,"Pets Stop","Y",null,null,null,null,null,null,null,0,0,null,0,0,0,0,0,0,null,1,0,0,0,0,0,1,0,0,0,0,0,0,0,0,null,1,0,0,0,0,0,0,0,0,0,0,0,0,0,0,0,0]
[7113,"PetSafe","Y",null,null,null,null,null,null,null,0,0,null,1,0,0,0,0,0,1,1,null,1,1,1,0,1,1,0,1,0,0,0,0,1,1,1,0,0,null,1,1,1,1,0,0,0,1,0,0,1,1,1]
[3146,"Petsmile","Y",null,null,null,null,null,null,1,null,null,null,null,null,null,null,null,null,1,1,null,null,null,null,null,null,null,null,null,null,null,null,null,null,null,null,null,null,null,null,null,1]
[9270,"Petsport, Inc.","Y",null,null,null,null,null,null,null,0,0,null,1,0,0,0,null,0,1,1,0,0,null,0,0,1,null,0,1,0,null,0,0,0,0,0,0,0,0,0,0,0,0,0,0,0,0,0,0,0,0,0]
[2179,"Pettura","Y",null,null,null,null,null,null,null,null,null,null,null,null,null,null,null,null,null,1,null,null,null,null,null,null,null,null,null,null,null,null,null,null,null,null,null,null,null,null,null,1,1]
[3016,"PetzLife Products Inc. ","Y",null,1,null,null,null,null,null,0,0,null,0,0,0,0,0,0,1,1,0,0,null,0,0,0,1,0,0,0,0,0,0,0,0,0,0,0,0,0,0,1,1,1,null,1,1,0,0,0,0,0]
[6158,"Pharma Supply","Y",null,null,null,null,null,null,1,null,null,null,null,null,null,null,null,null,1,1,null,null,null,null,null,null,null,null,null,null,null,null,null,null,null,null,null,null,null,null,null,null,1,null,null,null,null,null,1]
[10097,"Phillips Pet Food & Supplies ","Y",null,null,null,null,null,null,null,null,1,null,null,1,1,1,1,1,1,1,null,1,1,1,1,1,1,1,1,1,1,1,1,1,1,1,1,1,1,1,1,1,1,1,1,1,1,1,1,1,1]
[4174,"PIDA (Pet Store Pro)","Y",null,null,null,null,null,null,null,1,null,1,0,0,0,0,0,0,0,0,0,0,0,0,0,0,0,0,0,0,0,0,0,0,0,0,0,0,0,0,0,0,0,0,0,0,0,0,0,0,0,0]
[10077,"Pioneer Pet Products","Y",null,1,null,null,null,null,null,0,0,null,null,null,0,0,0,0,1,null,0,0,0,0,0,1,0,0,1,0,null,1,1,0,null,0,null,0,0,1,1,0,0,0,0,0,0,0,0,0,0,0]
[12291,"Pipsqueak Productions","Y",null,null,1,null,null,null,null,null,null,null,1]
[4195,"Pisces Laboratories","Y",null,null,null,1,null,null,null,null,null,null,null,1,1]
[2217,"Piscine Energetics ","Y",null,null,null,1,null,null,null,0,0,null,0,1,0,0,0,0,0,0,0,0,0,0,0,0,0,0,0,0,0,0,0,0,0,0,0,0,0,0,0,0,0,0,0,0,0,0,0,0,0,0]
[6153,"Pitch-A-Poo DogPro LLC","Y",null,null,null,null,null,null,1,null,null,null,null,null,null,null,null,null,null,1,null,null,null,null,null,null,null,null,null,null,null,null,null,null,null,null,null,null,null,null,null,null,null,null,null,null,null,null,null,1]
[5036,"PL360","Y",null,1,null,null,null,null,null,null,null,null,null,null,null,null,null,null,null,1,null,null,null,null,null,null,null,null,null,null,null,null,null,null,null,null,null,null,null,null,null,null,1,null,null,1,1,1]
[12188,"Planet Dog ","Y",null,null,null,null,null,null,null,0,0,null,1,0,0,0,0,0,0,1,0,0,1,0,0,1,1,0,1,0,0,0,0,0,0,0,0,0,0,0,0,0,0,0,0,null,0,0,0,0,0,0]
[10070,"Plato Pet Treats ","Y",null,1,null,null,null,null,null,0,0,null,0,0,0,0,0,0,0,1,0,0,0,0,0,0,1,0,0,0,0,0,0,0,0,0,0,0,0,0,0,0,1,0,0,0,0,0,0,0,0,0]
[8251,"PlayaPup (Plangea Inc.)","Y",null,null,null,null,null,null,null,null,null,null,null,null,null,null,null,null,null,1,null,1,null,null,null,null,null,null,null,null,null,null,null,null,1,null,null,null,null,null,null,null,null,null,null,null,null,null,1]
[3168,"Playful Pets LLC","Y",null,null,null,null,null,null,1,null,null,null,null,null,null,null,null,null,null,1,null,null,null,null,null,null,null,null,1]
[13201,"Pod Trackers","Y",null,null,null,null,null,null,null,null,null,null,null,null,null,null,null,null,1,1,null,null,1,null,null,null,null,null,null,null,null,null,null,null,null,null,null,null,null,null,null,null,null,null,null,null,null,null,null,null,1,1]
[4036,"Polkadog Bakery","Y",null,1,null,null,null,null,null,null,null,null,1,null,null,null,null,null,null,1,null,null,null,null,null,1,1]
[1236,"Polyfirst Packaging Inc.","Y",null,null,null,null,null,null,null,null,null,1]
[11283,"Pooch Outfitters","Y",null,null,1,null,null,null,null,0,0,null,0,0,0,0,0,0,0,1,0,1,1,0,0,0,0,0,0,0,0,0,0,0,0,0,0,0,0,0,0,0,0,0,0,0,0,0,0,0,0,0]
[3161,"PoochieBoots","Y",null,null,null,null,null,null,1,null,null,null,null,null,null,null,null,null,null,1,null,1]
[9286,"Poochie-Pets/Bells","Y",null,null,1,null,null,null,null,0,0,null,1,0,0,0,0,0,0,1,0,0,1,0,0,1,0,0,0,0,0,0,0,1,0,0,0,0,0,0,0,0,null,0,1,null,null,1,0,1,0,0]
[14298,"PoochPad Products","Y",null,null,1,null,null,null,null,null,null,null,null,null,null,null,null,null,null,1,null,null,null,null,null,null,null,null,null,null,null,null,null,null,1,null,null,null,null,null,null,null,null,null,null,null,1,null,1,1]
[2189,"PoopBags.com","Y",null,null,null,1,null,null,null,null,null,null,null,null,null,null,null,null,null,1,null,null,null,null,null,null,null,null,null,null,null,null,null,null,null,null,null,null,null,null,null,null,null,null,null,null,null,null,null,1]
[3102,"Poppy's Naturally Clean For Pets","Y",null,null,null,null,null,null,null,null,null,null,null,null,null,null,null,null,null,1,null,null,null,null,null,null,null,null,null,null,null,null,null,null,null,null,null,null,null,null,null,null,null,null,null,null,1,1,null,1]
[5149,"PortablePET","Y",null,null,null,null,null,null,1,null,null,null,null,null,null,null,null,null,null,1,null,1,null,null,null,1,null,null,null,null,null,null,null,null,null,null,null,1,1]
[3021,"Portland Pet Food Company","Y",null,1,null,null,null,null,null,null,null,null,null,null,null,null,null,null,null,1,null,null,null,null,1,null,1]
[4209,"Poseidon Aquatics (4208)","Y",null,null,null,1,null,null,null,null,1,null,null,1,1,null,1]
[6000,"Power Pet Co. Inc.","Y",null,1,null,null,null,null,null,null,null,null,null,null,null,null,null,null,null,1,null,null,null,null,null,null,1]
[7231,"Prairie Dog Pet Products","Y",null,null,null,null,null,null,null,0,0,null,0,0,0,0,0,0,0,1,0,0,null,0,0,0,1,0,0,0,0,0,0,0,0,0,0,0,0,0,0,0,0,0,0,0,0,0,0,0,0,0]
[5289,"Precious Companions","Y",null,null,1,null,null,null,null,null,null,null,1]
[4021,"Precise Pet Products ","Y",null,1,null,null,null,null,null,0,0,null,0,0,0,0,0,0,1,1,0,0,0,0,1,0,1,0,0,0,0,0,0,0,0,0,0,0,0,0,0,0,0,0,0,0,0,0,0,0,0,0]
[2054,"Precision Color Graphics","Y",null,1,null,null,null,null,null,null,null,1]
[7097,"Precision Pet Products","Y",null,null,null,null,null,null,null,0,0,null,0,0,0,null,1,0,1,1,0,0,0,0,0,0,0,0,0,0,0,0,0,1,1,0,1,1,1,0,0,0,0,0,1,0,null,0,1,1,null,0]
[11211,"Prefer Pets ","Y",null,null,null,null,null,null,null,null,null,null,null,null,null,null,null,null,null,1,null,null,null,null,null,null,null,null,null,null,null,null,null,null,null,null,1]
[12288,"Preppy Puppy Bakery ","Y",null,null,1,null,null,null,null,0,0,null,0,0,0,0,0,0,0,1,0,0,0,0,0,0,1,0,0,0,0,0,0,0,0,0,0,0,0,0,0,0,0,0,0,0,0,0,0,0,0,0]
[13267,"Prestolabels.com","Y",null,null,null,null,null,null,null,null,null,1]
[9284,"Preston","Y",null,null,1,null,null,null,null,0,0,null,1,0,0,0,0,0,1,1,0,0,1,0,0,0,0,0,0,0,0,0,0,0,0,0,0,0,0,0,0,0,0,0,0,0,0,0,0,0,0,0]
[4266,"Pretty Yoko Ltd","Y",null,null,1,null,null,null,null,null,null,null,1,null,null,null,null,null,null,1,null,1,1,null,null,1,null,null,1,null,null,null,null,null,1,null,1,1]
[7257,"Prevue Pet Products","Y",null,null,null,null,null,null,null,0,0,null,0,0,1,1,1,0,1,1,0,0,null,0,0,null,0,0,1,0,0,1,1,1,0,0,1,null,0,0,0,0,0,0,0,0,0,0,0,1,null,0]
[5049,"Primal Pet Foods","Y",null,1,null,null,null,null,null,0,0,null,0,0,0,0,0,0,1,1,0,0,0,0,1,0,1,0,0,0,0,0,0,0,0,0,0,0,0,0,0,0,0,0,0,0,0,0,0,0,0,0]
[12169,"Primetime Petz ","Y",null,null,null,null,null,null,null,0,0,null,0,0,0,0,0,0,1,1,0,0,0,0,0,0,0,0,0,0,0,0,1,0,null,1,0,0,1,0,0,0,0,0,0,0,0,0,0,0,0,0]
[14295,"Prismatix","Y",null,null,1,null,null,null,null,null,null,null,1]
[2200,"Pro Clear Aquatic Systems","Y",null,null,null,1,null,null,null,null,null,1,null,1]
[2157,"Promika, LLC","Y",null,null,null,null,null,null,null,null,null,null,null,null,null,null,null,null,1,1,null,null,null,null,null,null,null,null,null,null,null,null,null,null,null,null,null,null,null,null,null,null,1,1,null,1]
[7167,"Pro-Mohs Pet Products","Y",null,null,null,null,null,null,null,null,null,null,null,null,null,null,null,null,null,1,null,null,1]
[3196,"Protective Pet Solutions, LLC","Y",null,null,null,1,null,null,null,null,null,null,null,null,null,null,null,1,null,1,null,null,null,null,null,null,null,null,null,null,null,null,null,null,null,null,null,null,null,null,null,null,1]
[3159,"Pup IQ","Y",null,null,null,null,null,null,1,null,null,null,null,null,null,null,null,null,null,1,null,null,null,null,null,null,null,null,null,null,null,null,null,null,1]
[8277,"Puppia International Inc. (Petglobiz)","Y",null,null,1,null,null,null,null,0,0,null,0,0,0,0,0,0,1,1,0,1,1,0,0,0,0,0,1,0,0,0,1,0,1,0,1,1,0,0,0,0,0,0,0,0,0,0,0,0,0,0]
[5076,"Puppy Cake","Y",null,1,null,null,null,null,null,0,0,0,0,0,0,0,0,0,0,1,0,0,0,0,0,0,1,0,0,0,0,0,0,0,0,0,0,0,0,0,0,0,0,0,0]
[8284,"Puppy Kisses","Y",null,null,1,null,null,null,null,null,null,null,1,null,null,null,null,null,null,1,0,1,1,1,0,1,1,0,1,0,0,0,0,0,1,0,1,0,0,0,0,1,1,1,1,1,null,null,null,1]
[4152,"Puppy Paws Jewelry","Y",null,null,null,null,null,null,1,null,null,null,1]
[14048,"Puppy PlayGround.com","Y",null,null,null,null,1,null,null,null,null,null,null,null,null,null,null,null,null,1,null,null,null,null,null,null,null,null,1,1,null,null,null,null,1,null,null,null,null,null,null,null,null,null,1]
[2169,"Pupsaver","Y",null,null,null,null,null,null,null,null,null,null,null,null,null,null,null,null,null,1,null,null,null,null,null,null,null,null,null,null,null,null,null,null,null,null,1,1]
[2089,"Pura Naturals Pet","Y",null,null,null,null,null,null,null,null,null,null,null,null,null,null,null,null,1,1,null,null,null,null,null,1,null,null,null,null,null,null,null,null,1,null,null,null,null,null,null,1,1,null,1,1]
[2052,"Pure + Good","Y",null,1,null,null,null,null,null,null,null,null,null,null,null,null,null,null,null,1,null,null,null,null,null,null,null,null,null,null,null,null,null,null,null,null,null,null,null,null,null,null,1,1,null,1]
[7063,"Pure Treats Inc. ","Y",null,1,null,null,null,null,null,0,0,null,0,0,0,0,0,0,1,1,0,0,0,0,1,0,1,0,0,0,0,0,0,0,0,0,0,0,0,0,0,0,0,0,0,0,0,0,0,0,0,0]
[14264,"Purr-ifier","Y",null,null,null,null,null,null,null,null,null,null,null,null,null,null,null,null,1,null,null,null,null,null,null,null,null,null,null,null,null,null,null,null,null,null,null,null,null,null,1,null,null,null,null,null,1]
[3237,"Pyranha","Y",null,null,null,null,null,null,null,null,null,null,null,null,null,null,null,1,1,1,null,null,null,null,null,null,null,null,null,null,null,null,null,null,null,null,null,null,null,null,null,null,null,1,null,1,1]
[2208,"Python Products","Y",null,null,null,1,null,null,null,0,0,null,0,1,null,0,null,0,0,0,0,0,0,0,0,0,0,0,0,0,0,0,0,0,0,0,0,0,0,0,0,0,0,0,0,0,0,0,0,0,0,0]
[2283,"QINGDAO AGRIHEALTH BIOTECH CO.,LTD","Y",null,null,null,null,null,null,null,null,null,null,null,null,1,1,1]
[12008,"Qingdao Beauty Naigai Fashion Co.","Y",null,null,null,null,1,null,null,null,null,null,null,null,null,null,null,null,null,1,null,null,null,null,null,null,null,null,null,null,null,null,null,null,null,null,null,null,null,null,null,null,null,null,1]
[9026,"QT Dog","Y",null,1,null,null,null,null,null,0,0,null,null,0,0,1,null,0,1,1,0,0,null,0,0,1,1,0,0,0,0,0,0,0,null,0,0,0,0,0,0,null,0,0,0,0,0,0,0,0,0,0]
[4213,"Quality Marine/Aquatropic (4212)","Y",null,null,null,1,null,null,null,null,1,null,null,1]
[3097,"Quick-Tag ","Y",null,null,null,null,null,null,null,null,null,null,null,null,null,null,null,null,1,1,null,null,null,1]
[5173,"R2P Pet Ltd.","Y",null,null,null,null,null,null,null,0,0,null,0,0,0,0,0,0,1,1,0,null,0,0,0,null,null,1,1,0,null,null,null,0,1,0,0,0,0,0,null,0,0,0,null,0,0,0,0,null,1,1]
[4028,"Rad Cat Raw Diet","Y",null,1,null,null,null,null,null,0,0,0,0,0,0,0,0,0,1,0,0,0,0,0,1,0,0,0,0,0,0,0,0,0,0,0,0,0,0,0,0,0,0,0,0]
[10300,"Rainbow Card Company","Y",null,null,1,null,null,null,null,null,null,null,1]
[8022,"Raw Bistro Pet Fare","Y",null,1,null,null,null,null,null,null,null,null,null,null,null,null,null,null,null,1,null,null,null,null,1,null,1]
[5007,"RAWZ Natural Pet Food","Y",null,1,null,null,null,null,null,null,null,null,null,null,null,null,null,null,1,1,null,null,null,null,1]
[1248,"Razorline","Y",null,null,null,null,null,null,null,null,null,1,null,null,null,null,null,null,null,1,null,null,null,null,null,null,null,null,null,null,null,null,null,null,null,null,null,null,null,null,null,null,null,null,1]
[6231,"RC Pet Products ","Y",null,null,null,null,null,null,null,0,0,null,0,0,0,0,0,0,1,1,0,1,1,0,0,1,0,0,0,0,0,0,0,0,null,0,0,1,0,0,0,0,null,0,0,0,0,0,0,0,0,0]
[11257,"Red Dingo","Y",null,null,null,null,null,null,null,null,null,null,null,null,null,null,null,null,1,1,null,1,1,1,null,1,null,null,1,null,null,null,null,null,1]
[7083,"Redbarn Pet Products ","Y",null,null,null,null,null,null,null,0,0,null,0,0,0,0,0,0,1,1,0,0,0,0,1,0,1,1,0,0,0,0,0,0,0,0,0,0,0,0,0,0,0,0,0,0,0,0,0,0,0,0]
[6205,"Redmond Equine","Y",null,null,null,null,null,null,null,null,null,null,null,null,null,null,null,1]
[2281,"Reed's Doghouses","Y",null,null,null,null,null,null,null,null,null,null,null,null,null,null,null,null,null,1,null,null,null,null,null,null,null,null,null,null,null,null,null,null,null,null,null,null,1]
[10000,"Reilly's HempVet, LLC","Y",null,1,null,null,null,null,null,null,null,null,null,null,null,null,null,null,null,1,null,null,null,null,null,null,null,null,null,null,null,null,null,null,null,null,null,null,null,null,null,null,1]
[7021,"Reliq Pet LLC","Y",null,1,null,null,null,null,null,0,0,0,0,0,0,0,0,0,0,1,0,0,0,0,0,0,0,0,0,0,0,0,0,0,0,0,0,0,0,0,0,0,0,0,0,1,1]
[1196,"Renew Gold Products","Y",null,null,null,null,null,null,null,null,null,null,null,null,null,null,null,1,null,1,null,null,null,null,1]
[9071,"Replenish Pet, Inc. ","Y",null,1,null,null,null,null,null,null,null,null,null,null,null,null,null,null,1,1,null,null,null,null,1]
[7281,"Rescued Wine Candles","Y",null,null,1,null,null,null,null,null,null,null,1]
[4150,"RescuePetFoods, LLC","Y",null,null,null,null,null,null,1,null,null,null,null,null,null,null,null,null,1,1,null,null,null,null,null,null,1,null,null,null,null,null,null,null,null,null,null,null,null,null,null,null,1]
[6181,"Response Products/Cetyl M","Y",null,null,null,null,null,null,null,null,null,null,null,null,null,null,null,1,null,1,null,null,null,null,null,null,null,null,null,null,null,null,null,null,null,null,null,null,null,null,null,null,1]
[12022,"Retro Stylist Wear","Y",null,null,null,null,1,null,null,null,null,1,null,null,null,null,null,null,null,null,null,null,null,null,null,null,null,null,null,null,null,null,null,null,null,null,null,null,null,null,null,null,null,null,1]
[3194,"Revive Dog Spot Treatment","Y",null,null,null,1,null,null,null,null,null,null,null,null,null,null,null,null,null,1,null,null,null,null,null,null,null,null,null,null,null,null,null,null,null,null,null,null,null,null,null,null,null,null,null,null,1]
[5288,"Rex Specs","Y",null,null,1,null,null,null,null,null,null,null,null,null,null,null,null,null,null,1,null,1]
[3011,"Rhya Pet CBD","Y",null,1,null,null,null,null,null,null,null,null,null,null,null,null,null,null,1,1,null,null,null,null,null,null,null,null,null,null,null,null,null,null,null,null,null,null,null,null,null,null,1]
[12061,"Richell USA Inc. ","Y",null,null,null,null,null,null,null,0,0,null,0,0,0,0,1,0,1,1,0,0,0,0,0,1,0,0,0,0,0,0,1,null,1,1,1,0,1,0,0,0,0,0,0,0,0,0,1,0,0,0]
[5164,"RinseKit","Y",null,null,null,null,null,null,1,null,null,null,null,null,null,null,null,null,null,1,null,null,null,null,null,null,null,null,null,null,null,null,null,null,null,null,null,null,null,null,null,null,null,null,1]
[8178,"Rio Grande Service Center","Y",null,null,null,null,null,null,null,null,1,null,null,null,null,1,1,1,1,1,null,1,1,1,1,1,1,1,1,1,1,1,1,1,1,1,1,1,1,1,1,1,1,1,1,1,1,1,1,1,1]
[2092,"Rizone Group USA LLC","Y",null,null,null,null,null,null,null,null,null,1]
[8282,"RN Design","Y",null,null,1,null,null,null,null,null,null,null,null,null,null,null,null,null,1,1,null,null,1]
[1210,"Roastar","Y",null,null,null,null,null,null,null,null,null,1]
[11097,"Rolf C. Hagen (USA) Corp. ","Y",null,null,null,null,null,null,null,0,0,null,0,1,1,1,1,0,1,1,0,1,1,1,null,1,1,1,1,0,1,1,1,1,1,0,1,1,null,0,1,1,0,1,1,1,1,0,1,1,0,0]
[5170,"Rosie's™ Dog Company, LLC","Y",null,null,null,null,null,null,1,null,null,null,null,null,null,null,null,null,null,1,null,null,null,null,null,null,1]
[9101,"Royal Canin","Y",null,null,null,null,null,null,null,null,null,null,null,null,null,null,null,null,1,1,null,null,null,null,1]
[13101,"Royal Pet Inc. ","Y",null,null,null,null,null,null,null,0,0,null,0,0,1,0,0,0,1,1,0,1,null,0,0,1,1,1,null,0,0,1,0,0,null,0,0,0,1,0,1,0,0,0,1,0,1,0,1,1,0,0]
[12001,"Royal Ramps","Y",null,null,null,null,1,null,null,null,null,null,null,null,null,null,null,null,null,1,null,null,null,null,null,null,null,null,null,null,null,null,1]
[4165,"Royal Rooster","Y",null,null,null,null,null,null,1,null,null,null,null,null,null,1]
[2060,"RSB Animal Health / Nose-It! Pet & Equine","Y",null,1,null,null,null,null,null,null,null,null,null,null,null,null,null,1,null,1,null,null,null,null,null,null,null,null,1]
[9283,"Rubies Costume Co","Y",null,null,1,null,null,null,null,0,0,null,0,0,0,0,0,0,1,1,0,1,null,0,0,0,0,0,0,0,0,0,0,0,0,0,0,0,0,0,0,0,0,0,0,0,0,0,0,0,0,0]
[12265,"Ruff Dawg","Y",null,null,null,null,null,null,null,0,0,null,0,0,0,0,0,0,0,1,0,0,0,0,0,0,0,0,1,0,0,0,0,0,0,0,0,0,0,0,0,0,0,0,0,0,0,0,0,0,0,0]
[8290,"Ruff Puppies Collars","Y",null,null,1,null,null,null,null,null,null,null,null,null,null,null,null,null,null,1,null,null,1]
[11197,"RuffWear","Y",null,null,null,null,null,null,null,0,0,null,0,0,0,0,0,0,0,1,0,1,1,0,0,1,1,0,1,0,0,0,0,0,1,0,0,1,0,0,0,0,null,0,0,0,0,0,0,0,0,0]
[8158,"Rufus & Coco","Y",null,null,null,null,null,null,null,null,null,null,null,null,1,1,1,null,1,1,null,null,1,1,null,1,null,null,1,null,null,null,null,null,1,null,null,1,null,1,1,null,1,1,1,1,1]
[9089,"Rush Direct","Y",null,null,null,null,null,null,null,0,0,null,0,0,0,0,0,null,1,1,0,0,0,0,null,1,1,1,0,0,0,0,0,0,0,0,0,0,0,0,0,0,0,0,0,0,0,0,0,0,0,0]
[11027,"Ryan's Pet Supplies","Y",null,null,null,null,1,null,null,null,1,null,1,null,null,null,null,null,1,1,1,1,1,1,1,1,1,1,1,1,1,1,1,1,1,1,1,1,1,1,1,1,1,1,1,1,1,1,1,1,1]
[10031,"Safcol Petcare","Y",null,1,null,null,null,null,null,null,null,null,null,null,null,null,null,null,1,null,null,null,null,null,1,null,null,null,null,null,null,null,null,null,null,null,null,null,null,1]
[5151,"Safety International/PetRescue","Y",null,null,null,null,null,null,1,null,null,null,1,null,1,1,1,null,1,1]
[6150,"Saltsox","Y",null,null,null,null,null,null,1,null,null,null,null,null,null,null,null,null,null,1,null,1]
[5163,"Sam's Pet","Y",null,null,null,null,null,null,1,null,1,null,null,null,null,null,null,null,1,1,null,null,null,null,null,1,null,null,1]
[2218,"San Francisco Bay Brand","Y",null,null,null,1,null,null,null,0,0,null,0,1,1,1,0,0,0,0,0,0,0,0,0,0,0,0,0,0,0,0,0,0,0,0,0,0,0,0,0,0,0,0,0,0,0,0,0,0,0,0]
[6097,"Sauder","Y",null,null,null,null,null,null,null,null,null,null,null,1,null,null,null,null,1,1,null,null,null,null,null,null,null,null,null,null,null,null,1]
[3169,"Savage Cat Food","Y",null,null,null,null,null,null,1,null,null,null,null,null,null,null,null,null,1,null,null,null,null,null,1]
[8173,"Savic USA","Y",null,null,null,null,null,null,null,null,null,null,null,1,1,1,1,null,1,1,null,null,null,null,null,1,null,null,null,null,null,null,null,null,1,1,1,null,1,null,1,null,null,null,null,null,null,null,1]
[7239,"Savory Prime Pet Treats","Y",null,null,null,null,null,null,null,null,null,null,null,null,null,null,null,null,null,1,null,null,null,null,null,null,1,1]
[13299,"Scandical","Y",null,null,1,null,null,null,null,null,null,null,1]
[10045,"Scaredy Cut","Y",null,1,null,null,null,null,null,null,null,null,null,null,null,null,null,null,1,1,null,null,null,null,null,null,null,null,null,null,null,null,null,null,null,null,null,null,null,null,null,null,null,null,1]
[5214,"Scarlett","Y",null,null,null,1,null,null,null,null,null,null,null,null,null,1,1]
[6289,"Scent USA","Y",null,null,1,null,null,null,null,null,null,null,null,null,null,null,null,null,1,1,null,null,null,null,null,null,null,null,null,null,null,null,null,null,null,null,null,1,null,null,null,null,null,null,null,null,1]
[6183,"Scoochie Pet Products","Y",null,null,null,null,null,null,null,null,null,null,1,null,null,null,null,null,1,1,null,null,null,null,null,null,null,1,1,null,null,null,null,null,1,null,1,null,null,null,null,null,null,null,null,0,1,0,0,0,0,0]
[7113,"Scoopfree","Y",null,null,null,null,null,null,null,null,null,null,null,null,null,null,null,null,1,null,null,null,null,null,null,null,null,null,null,null,null,null,null,null,null,null,null,null,null,1,1]
[13127,"Scott Pet","Y",null,null,null,null,null,null,null,null,null,null,null,null,null,1,null,null,null,1,null,null,1,null,null,1,1,null,1,null,null,null,null,1,null,null,null,null,null,null,null,null,null,null,1]
[2068,"Sea Value Public Company Limited","Y",null,1,null,null,null,null,null,null,null,null,null,null,null,null,null,null,1,null,null,null,null,null,1]
[4203,"Seachem Laboratories Inc. ","Y",null,null,null,1,null,null,null,0,0,null,0,1,1,0,0,0,0,0,0,0,0,0,0,0,0,0,0,0,0,0,0,0,0,0,0,0,0,0,0,0,0,0,0,0,0,0,0,0,0,0]
[2270,"Seawell","Y",null,null,null,null,null,null,null,null,null,null,null,null,null,null,null,null,1,1,null,null,null,null,1,null,1]
[4194,"Segrest Farms","Y",null,null,null,1,null,null,null,null,null,null,null,1,1]
[5160,"Seiba","Y",null,null,null,null,null,null,1,null,null,null,null,null,null,null,null,null,null,1,null,null,1]
[14279,"Select-A-Vision","Y",null,null,1,null,null,null,null,0,0,0,1,0,0,0,0,0,0,0,0,0,0,0,0,0,0,0,0,0,0,0,0,0,0,0,0,0,0,0,0,0,0,0,0]
[12007,"Sensei Shear Systems","Y",null,null,null,null,1,null,null,null,null,1,null,null,null,null,null,null,null,1,null,null,null,null,null,null,null,null,null,null,null,null,null,null,null,null,null,null,null,null,null,null,null,null,1]
[12197,"Sentiments","Y",null,null,null,null,null,null,null,null,null,null,null,null,null,null,null,null,1,1,0,0,0,0,0,0,0,0,0,0,0,0,0,0,1]
[3202,"Sera","Y",null,null,null,1,null,null,null,null,null,null,null,1,1,null,null,null,null,null,null,null,null,null,null,null,null,null,null,null,null,null,null,null,null,null,null,null,null,null,null,null,null,null,null,0,0,0,0,0,0,0]
[4199,"Sevenports Inc","Y",null,null,null,1,null,null,null,0,0,null,0,1,0,0,0,0,0,0,0,0,0,0,0,0,0,0,0,0,0,0,0,0,0,0,0,0,0,0,0,0,0,0,0,0,0,0,0,0,0,0]
[6200,"Shade Grafix","Y",null,null,null,null,null,null,null,null,null,1,1]
[8242,"ShadyPaws","Y",null,null,null,null,null,null,null,null,null,null,null,null,null,null,null,null,1,1,null,null,null,null,null,null,null,null,null,null,null,null,1]
[2201,"Shandong Jingxin Non-Woven Prod. Co., Ltd.","Y",null,null,null,1,null,null,null,null,null,null,null,null,null,null,null,null,1,1,null,null,null,null,null,null,null,null,null,null,null,null,null,null,null,null,null,null,null,1,null,null,null,null,null,null,null,1,1]
[12157,"Shanghai Polar Bear Netwrok Technology Co., Ltd","Y",null,null,null,null,null,null,null,null,null,null,null,null,null,null,null,null,1,1,null,1,1,null,null,1,null,null,1,null,null,null,null,null,1,null,1,null,null,null,1,null,null,null,1,null,null,null,1,1,1,1]
[13260,"Shanghai Yume International Trading","Y",null,null,null,null,null,null,null,null,null,null,null,null,null,null,null,null,1,1,null,1,1,null,null,1,null,null,1,null,null,null,1,null,1,null,1,null,null,null,1,null,null,null,1,null,null,null,1,1]
[3172,"Shawshank Ledz Inc.","Y",null,null,null,null,null,null,null,null,null,null,null,null,null,null,null,null,1,1,null,null,1,null,null,null,null,null,1]
[11007,"Shernbao Pet Products Mfg. Co., Ltd.","Y",null,null,null,null,1,null,null,null,null,1,null,null,null,null,null,null,null,null,null,null,null,null,null,null,null,null,null,null,null,null,null,null,null,null,null,null,null,null,null,null,null,null,1]
[9151,"SHERPA","Y",null,null,null,null,null,null,null,null,null,null,null,null,null,null,null,null,1,1,null,null,null,null,null,null,null,null,null,null,null,null,null,null,null,null,1,1]
[3030,"Sherwood Pet Health","Y",null,1,null,null,null,null,null,null,null,null,null,null,null,null,1]
[11021,"Shor-Line","Y",null,null,null,null,1,null,null,null,null,1,null,null,null,null,null,null,1,1,null,null,null,null,null,1,null,null,null,null,null,null,null,null,null,null,1,null,1,null,null,null,null,null,1]
[3019,"Sierra Packaging and Converting","Y",null,1,null,null,null,null,null,null,null,1]
[2250,"Sievers Pet Care/Sievers Cool Creations","Y",null,null,null,null,null,null,null,null,null,null,null,null,null,null,null,null,null,1,null,null,null,null,null,null,null,null,null,1]
[2077,"Signature Pet Products Inc","Y",null,1,null,null,null,null,null,null,null,null,null,null,null,null,null,null,null,1,null,null,null,null,1,null,1]
[1281,"Sikka Software","Y",null,null,null,null,null,null,null,null,null,1]
[8238,"SiliDog - The Silent Pet Tag","Y",null,null,null,null,null,null,null,null,null,null,null,null,null,null,null,null,null,1,null,null,1,1]
[11305,"Silverfoot","Y",null,null,1,null,null,null,null,null,null,null,null,null,null,null,null,null,1,1,null,null,1,1,null,1,null,null,null,null,null,null,null,null,null,null,null,null,null,null,null,null,null,null,null,null,null,null,null,1]
[4278,"Silverpaw ","Y",null,null,1,null,null,null,null,null,null,null,null,null,null,null,null,null,null,1,null,1,1,null,null,null,null,null,null,null,null,null,null,null,1,null,null,null,null,null,null,null,null,null,null,null,null,1]
[12282,"Simply Fido LLC ","Y",null,null,1,null,null,null,null,0,0,null,0,0,0,0,0,0,1,1,0,0,0,0,0,null,0,0,1,0,0,0,0,0,1,0,0,null,1,0,0,0,0,0,0,0,0,0,0,0,0,0]
[3263,"Skoubee North America","Y",null,null,null,null,null,null,null,null,null,null,null,null,null,null,null,null,1,1,null,null,null,1,null,null,null,null,null,null,null,null,null,null,null,null,null,null,null,null,null,null,null,null,null,null,null,null,null,null,null,1]
[4256,"Skout's Honor","Y",null,null,null,null,null,null,null,null,null,null,null,null,null,null,null,null,1,1,null,null,null,null,null,null,null,null,null,null,null,null,null,null,null,null,null,null,null,null,null,null,null,null,null,null,1]
[9296,"Sleepypod ","Y",null,null,1,null,null,null,null,null,null,null,null,null,null,null,1,null,1,1,null,null,1,null,null,1,null,null,null,null,null,null,null,null,1,null,1,1]
[6167,"Smart Alex Products","Y",null,null,null,null,null,null,1,null,null,null,null,null,null,null,null,null,null,1,null,null,null,null,null,null,1]
[12005,"Smartcatcher Mats","Y",null,null,null,null,1,null,null,null,null,null,1,null,null,null,null,null,1,1,null,null,null,null,null,null,null,null,null,null,null,null,null,null,1]
[1222,"SmartPetLove","Y",null,null,null,null,null,null,null,null,null,null,1,null,null,null,null,null,1,1,null,null,1,null,null,null,null,null,1,null,null,null,null,null,1,null,null,null,null,null,null,1]
[5223,"Smokehouse Pet Products ","Y",null,null,null,null,null,null,null,0,0,null,0,0,0,0,0,0,0,1,0,0,null,null,0,0,1,0,0,0,0,0,0,0,0,0,0,0,0,0,0,null,null,0,null,null,0,null,0,0,0,0]
[14287,"Smoochy Poochy, Inc.","Y",null,null,1,null,null,null,null,null,null,null,null,null,null,null,null,null,null,1,null,null,1,null,null,null,null,null,null,null,null,null,null,null,null,null,null,null,null,null,null,null,null,null,null,0,0,0,0,0,0,0]
[5182,"Snap Lock Chicken Coops","Y",null,null,null,null,null,null,null,null,null,null,null,null,null,1]
[4267,"Snappy Snoozers Pet Beds","Y",null,null,null,null,null,null,null,null,null,null,null,null,null,null,null,null,1,1,null,null,null,null,null,null,null,null,null,null,null,null,null,null,1]
[4045,"Snook's Pet Products LLC","Y",null,1,null,null,null,null,null,null,null,null,null,null,null,null,null,null,null,1,null,null,null,null,null,null,1,null,null,null,null,null,null,null,null,null,null,null,null,null,null,null,1]
[11297,"Snoozer Pet Products","Y",null,null,1,null,null,null,null,null,null,null,null,null,null,null,null,null,null,1,null,1,null,null,null,null,null,null,null,null,null,null,1,null,1,null,1,1,null,null,null,null,null,null,null,null,1]
[3100,"Snow Leopard Trust","Y",null,null,null,null,null,null,null,1,null,null,1]
[2020,"So Bright, LLC","Y",null,1,null,null,null,null,null,0,0,0,0,0,0,0,0,0,null,1,0,0,0,0,null,0,1,0,0,0,0,0,0,0,0,0,0,0,0,0,0,0,0,0,0,0,0,0,0,0,0,0]
[8162,"Soda Pup (True Dogs, LLC)","Y",null,null,null,null,null,null,null,null,null,null,null,null,null,null,null,null,null,1,null,null,null,null,null,null,null,null,1]
[6258,"Soft Intelligence","Y",null,null,null,null,null,null,null,null,null,1]
[3085,"Soggy Doggy Productions","Y",null,null,null,null,null,null,null,0,0,0,0,0,0,0,0,0,0,1,0,0,0,0,0,null,0,0,0,0,0,0,0,0,1,0,0,0,0,0,0,0,0,0,0]
[5070,"Sojos","Y",null,1,null,null,null,null,null,0,0,null,0,0,0,0,0,0,1,1,0,0,0,0,1,0,1,0,0,0,1,0,0,0,0,0,0,0,0,0,0,0,0,0,0,0,0,0,0,0,0,0]
[5027,"Solid Gold Pet","Y",null,1,null,null,null,null,null,null,null,null,null,null,null,null,null,null,1,1,null,null,null,null,1,null,1,null,null,null,null,null,null,null,null,null,null,null,null,null,null,null,1]
[4230,"Solvit Products","Y",null,null,null,null,null,null,null,0,0,0,0,0,0,0,0,0,1,1,0,0,1,0,0,0,0,0,0,0,0,0,1,0,1,0,1,1,1,0,1,0,1,0,0]
[2248,"Songs for Dogs and the People Who Love Them","Y",null,null,null,null,null,null,null,null,null,null,1]
[2030,"Sorghum Checkoff","Y",null,1,null,null,null,null,null,1]
[6257,"Spectrum Brands PHG","Y",null,null,null,null,null,null,null,null,null,null,null,1,null,1,1,1,1,1,null,null,1,null,1,null,1,1,null,null,1,1,1,null,1,null,1,null,1,1,1,1,1,1,1,1,1,1,1,1]
[3276,"Speedy Sweep","Y",null,null,null,null,null,null,null,null,null,1]
[11296,"Spoiled Rotten Dogz","Y",null,null,1,null,null,null,null,null,null,null,1]
[7113,"SportDOG","Y",null,null,null,null,null,null,null,null,null,null,1,null,null,null,null,null,null,1,null,null,1,null,null,null,null,null,null,null,null,null,null,1,null,null,null,null,null,null,null,null,null,null,null,null,null,null,null,null,1,1]
[5268,"Spunky Pup","Y",null,null,null,null,null,null,null,null,null,null,null,null,null,null,null,null,null,1,null,null,1,null,null,null,null,null,1]
[1253,"Spurrs Big Fix","Y",null,null,null,null,null,null,null,null,null,null,null,null,null,null,null,1,null,1,null,null,null,null,null,null,null,null,null,null,null,null,null,null,null,null,null,null,null,null,null,null,1]
[2273,"Square","Y",null,null,null,null,null,null,null,null,null,1]
[6074,"St. Gabriel Organics ","Y",null,1,null,null,null,null,null,0,0,null,0,0,0,0,0,0,1,1,0,0,0,0,0,0,0,0,0,0,0,0,0,0,0,0,0,0,0,0,0,0,1,1,0,0,0,0,0,0,0,0]
[5117,"Starmark Pet Products","Y",null,null,null,null,null,null,null,0,0,null,0,0,0,0,0,0,0,1,0,0,1,0,0,0,1,0,1,0,0,0,0,0,1,0,0,0,0,0,0,0,0,0,0,0,0,0,0,0,0,0]
[6041,"Stella & Chewy's ","Y",null,1,null,null,null,null,null,0,0,null,0,0,0,0,0,0,1,1,0,0,0,0,1,0,1,0,0,0,0,0,0,0,0,0,0,0,0,0,0,0,1,0,0,0,0,0,0,0,0,0]
[4042,"Steve's Real Food","Y",null,1,null,null,null,null,null,0,0,null,0,0,0,0,0,0,1,1,0,0,0,0,1,0,1,0,0,0,0,0,0,0,0,0,0,0,0,0,0,0,0,0,0,0,0,0,0,0,0,0]
[7248,"Stink Free Inc","Y",null,null,null,null,null,null,null,null,null,null,null,null,null,null,null,null,1,1,null,null,null,null,null,null,null,null,null,null,null,null,null,null,null,null,null,null,null,null,1,null,null,null,null,null,1]
[3234,"Sturdi Products, Inc","Y",null,null,null,null,null,null,null,null,null,null,null,null,null,null,null,null,1,1,null,null,null,null,null,1,null,null,null,null,null,null,null,null,1,null,1,1,1]
[13065,"Stylist Wear","Y",null,null,null,null,null,null,null,null,null,1,null,null,null,null,null,null,null,null,null,null,null,null,null,null,null,null,null,null,null,null,null,null,null,null,null,null,null,null,null,null,null,null,1]
[7203,"Suitical International B.V.","Y",null,null,null,null,null,null,null,null,null,null,null,null,null,null,null,null,1,1,null,1,null,null,null,null,null,null,null,null,null,null,null,null,null,null,null,null,null,null,null,null,1]
[6164,"Summit Dog Company","Y",null,null,null,null,null,null,1,null,null,null,null,null,null,null,null,null,null,1,null,null,null,null,null,null,1]
[3214,"Sun Pet Ltd. (3215)","Y",null,null,null,1,null,null,null,null,1,null,null,1,1,1,1]
[12141,"Sunshine Mills","Y",null,null,null,null,null,null,null,null,null,null,null,null,null,null,null,null,1,1,null,null,null,null,1,null,1]
[5009,"Superior Farms Pet","Y",null,1,null,null,null,null,null,null,null,null,null,null,null,null,null,null,1,1,null,null,null,null,null,null,1,null,null,null,null,null,null,null,null,null,null,null,null,null,null,null,1]
[9141,"SuperZoo","Y",null,null,null,null,null,null,null,1]
[12053,"Suzhou Vacs Electrical Co., Ltd.","Y",null,null,null,null,1,null,null,null,null,null,null,null,null,null,null,null,null,1,null,null,null,null,null,null,null,null,null,null,null,null,null,null,null,null,null,null,null,null,null,null,null,null,1]
[10191,"Swedencare USA","Y",null,null,null,null,null,null,null,null,null,null,null,null,null,null,null,null,1,1,null,null,null,null,null,null,1,null,null,null,null,null,null,null,null,null,null,null,null,null,null,1,1]
[7270,"Sweet Feet & Beak","Y",null,null,null,null,null,null,null,0,0,0,0,0,0,1,0,0,0,0,0,0,0,0,0,0,0,0,0,0,0,0,0,0,0,0,0,0,0,0,0,0,0,0,0]
[5021,"sWheat Scoop","Y",null,1,null,null,null,null,null,0,0,null,0,0,0,0,0,0,1,0,0,0,0,0,0,0,0,0,0,0,0,0,0,0,0,0,0,0,0,1,null,0,0,0,0,0,0,0,0,0,0,0]
[3251,"SynergyLabs, Inc.","Y",null,null,null,null,null,null,null,0,0,1,0,0,0,null,null,null,1,1,0,0,0,0,0,0,1,0,0,0,1,0,0,0,0,0,0,0,0,0,0,1,1,1,0,1,1,null,0,0,0,0]
[11284,"Tail Trends","Y",null,null,1,null,null,null,null,null,null,null,null,null,null,null,null,null,null,1,null,1,1]
[13295,"TailBangers","Y",null,null,1,null,null,null,null,null,null,null,null,null,null,null,null,null,null,1,null,null,null,null,null,null,1]
[14286,"Tailored Tails","Y",null,null,1,null,null,null,null,null,null,null,1,null,null,null,null,null,null,1]
[11141,"Tall Tails ","Y",null,null,null,null,null,null,null,0,0,null,0,0,0,0,0,0,0,1,0,0,1,0,0,1,0,0,1,0,0,0,0,0,1,0,0,0,0,0,0,0,0,0,1,0,0,0,0,0,0,0]
[7013,"Taplow Ventures/FirstMate Pet Foods","Y",null,1,null,null,null,null,null,null,null,null,null,null,null,null,null,null,1,1,null,null,null,null,1,null,1]
[5178,"TarHong","Y",null,null,null,null,null,null,null,null,null,null,null,null,null,null,null,null,1,1,null,null,null,null,null,1]
[2235,"TC Transcontinental Packaging","Y",null,null,null,null,null,null,null,null,null,1]
[3244,"Teckelklub Marketing Ltd.","Y",null,null,null,null,null,null,null,null,null,null,null,null,null,null,null,null,null,1,null,1,null,null,null,null,null,null,null,null,null,null,null,null,1,null,null,null,null,null,null,null,null,null,null,1]
[13269,"Teddy the Dog","Y",null,null,null,null,null,null,null,0,0,null,1,0,0,0,0,0,0,1,0,null,1,0,0,0,0,0,0,0,0,0,0,0,0,0,0,0,0,0,0,0,0,0,0,0,0,0,0,0,0,0]
[4178,"Tend Insights, Inc.","Y",null,null,null,null,null,null,null,null,null,null,null,null,null,null,null,null,1,1,null,null,null,null,null,null,null,null,null,null,null,null,null,null,null,null,null,null,null,null,null,null,null,null,null,null,null,null,null,null,1,1]
[14284,"Tender Tummy's Dog Biscuit Company, LLC","Y",null,null,1,null,null,null,null,null,null,null,null,null,null,null,null,null,null,1,null,null,null,null,null,null,1]
[6250,"Tenka Flexible Packaging Inc.","Y",null,null,null,null,null,null,null,null,null,1]
[2277,"Tether Tug","Y",null,null,null,null,null,null,null,null,null,null,null,null,null,null,null,null,null,1,null,null,null,null,null,null,null,null,1]
[6257,"Tetra","Y",null,null,null,null,null,null,null,null,null,null,null,1]
[7267,"Tevra Brands","Y",null,null,null,null,null,null,null,null,null,null,null,null,null,null,null,1,1,1,null,null,null,null,null,null,1,null,null,null,null,null,null,null,null,null,null,null,null,null,null,null,1,null,null,null,null,null,1]
[9173,"TFH / Nylabone","Y",null,null,null,null,null,null,null,null,null,null,null,null,null,null,null,null,null,1,1,null,null,null,null,null,1,null,1,null,null,null,null,null,null,null,null,null,null,null,null,1]
[5040,"The Bear & The Rat: Cool Treats for Dogs","Y",null,1,null,null,null,null,null,0,0,null,0,0,0,0,0,0,0,1,0,0,0,0,0,0,1,0,0,0,0,0,0,0,0,0,0,0,0,0,0,0,0,0,0,0,0,0,0,0,0,0]
[2027,"The Blissful Dog, Inc.","Y",null,1,null,null,null,null,null,null,null,null,null,null,null,null,null,null,null,1,null,null,null,null,null,null,null,null,null,null,null,null,null,null,null,null,null,null,null,null,null,null,1]
[5169,"The Bog Tag, LLC","Y",null,null,null,null,null,null,1,null,null,null,null,null,null,null,null,null,null,1,null,null,null,1]
[1217,"The Bug Company","Y",null,null,null,null,null,null,null,null,null,null,null,null,1,1]
[14271,"The Crump Group","Y",null,null,null,null,null,null,null,0,0,null,0,0,0,0,0,0,0,1,0,0,0,0,0,0,1,0,0,0,0,0,0,0,0,0,0,0,0,0,0,0,0,0,0,0,0,0,0,0,0,0]
[13279,"The Dog Squad","Y",null,null,1,null,null,null,null,0,0,null,0,0,0,0,0,0,0,1,0,1,1,0,0,0,0,0,0,0,0,0,0,0,1,0,1,0,0,0,0,0,0,0,0,0,0,0,0,0,0,0]
[7160,"The Easy-Clean Auto-Fill Water Bowl, LLC","Y",null,null,null,null,null,null,null,null,null,null,null,null,null,null,null,null,null,1,null,null,null,null,null,1]
[3156,"The Finch Farm Co","Y",null,null,null,null,null,null,1,null,1,null,null,null,null,1]
[4037,"The Green Pet Shop","Y",null,1,null,null,null,null,null,0,0,null,0,0,0,0,0,0,1,1,0,0,0,0,0,1,0,0,0,0,0,0,0,0,1,0,0,0,0,0,1,0,1,0,1,1,null,1,1,1,0,0]
[5213,"The Higgins Group Corp","Y",null,null,null,null,null,null,null,0,0,null,0,0,0,1,1,0,0,0,0,0,0,0,0,0,0,0,0,0,0,0,0,0,0,0,0,0,0,0,0,0,0,0,0,0,0,0,0,0,0,0]
[3055,"The Honest Kitchen","Y",null,1,null,null,null,null,null,0,0,null,1,0,0,0,0,0,1,1,0,0,0,0,1,0,1,0,0,0,0,0,0,0,0,0,0,0,0,0,0,0,1,0,0,1,0,0,0,0,0,0]
[2161,"The Hydro Pet","Y",null,null,null,null,null,null,null,null,null,null,null,null,null,null,null,null,null,1,null,null,null,null,null,1]
[13283,"The Lazy Dog Cookie Co Inc","Y",null,null,1,null,null,null,null,null,null,null,null,null,null,null,null,null,null,1,null,null,null,null,null,null,1]
[5259,"The Lennox Intl. Incs.","Y",null,null,null,null,null,null,null,null,null,null,null,null,null,null,null,null,null,1,null,null,null,null,null,null,1,1]
[11054,"The Mountain","Y",null,null,null,null,1,null,null,null,null,null,1]
[9003,"The Natural Dog Company, Inc. ","Y",null,1,null,null,null,null,null,null,null,null,null,null,null,null,null,null,null,1,null,null,null,null,null,null,1]
[6238,"The Pet Team","Y",null,null,null,null,null,null,null,null,1,null,1,null,null,null,null,null,1,1,null,1,1,null,null,1,1,null,1,null,null,null,null,null,1,null,1]
[6004,"The Scoular Company","Y",null,1,null,null,null,null,null,null,null,1,null,null,null,null,null,null,null,null,null,null,null,null,1]
[4113,"The Sporn Company","Y",null,null,null,null,null,null,null,null,null,null,1,1,1,null,null,null,1,1,null,null,1,null,null,null,1,null,1]
[8291,"The Worthy Dog","Y",null,null,1,null,null,null,null,null,null,null,null,null,null,null,null,null,1,1,null,1,1,null,null,1,null,null,null,null,null,null,null,null,1]
[9062,"Therabis","Y",null,1,null,null,null,null,null,null,null,null,null,null,null,null,null,null,null,1,null,null,null,null,null,null,null,null,null,null,null,null,null,null,null,null,null,null,null,null,null,null,1]
[12010,"Thera-Clean Inc","Y",null,null,null,null,1,null,null,null,null,1,null,null,null,null,null,null,null,1,null,null,null,null,null,null,null,null,null,null,null,null,null,null,null,null,null,null,null,null,null,null,null,null,1,1]
[9077,"This and That Canine Company Inc.","Y",null,1,null,null,null,null,null,null,null,null,null,null,null,null,null,null,null,1,null,null,null,null,null,null,1]
[4121,"Thomas Labs LLC","Y",null,null,null,null,null,null,null,null,null,null,null,1,null,1,null,1,1,1,null,null,null,null,null,null,null,null,null,null,null,null,null,null,null,null,null,null,null,null,null,null,1]
[2040,"Three Dog Bakery","Y",null,1,null,null,null,null,null,null,null,null,null,null,null,null,null,null,1,1,null,null,null,null,1,null,1]
[2044,"Threshold Pet","Y",null,1,null,null,null,null,null,null,null,null,null,null,null,null,null,null,1,1,null,null,null,null,null,null,null,null,null,null,null,null,null,null,null,null,null,null,null,null,null,null,1]
[5112,"ThunderWorks","Y",null,null,null,null,null,null,null,0,0,null,0,0,0,0,0,0,1,1,0,1,1,0,0,0,null,0,null,0,0,0,0,0,0,0,0,0,0,0,0,0,1,0,0,0,0,0,0,0,0,0]
[14269,"Tick Key Products LLC","Y",null,null,null,null,null,null,null,null,null,null,null,null,null,null,null,null,1,1,null,null,null,null,null,null,null,null,null,null,null,null,null,null,null,null,null,null,null,null,null,null,null,1]
[2195,"Tidewater Tails","Y",null,null,null,1,null,null,null,null,null,null,null,null,null,null,1]
[7201,"Tightpac America Inc.","Y",null,null,null,null,null,null,null,null,null,null,null,null,null,1,1,null,1,1,null,null,null,null,null,1]
[4166,"TIKR","Y",null,null,null,null,null,null,1,null,null,null,null,null,null,null,null,null,null,1,null,null,null,null,null,null,1,null,1]
[5209,"Timberline Live Pet Food","Y",null,null,null,null,null,null,null,0,0,null,0,1,1,1,1,0,0,0,0,0,0,0,0,0,0,0,0,0,0,0,0,0,0,0,0,0,0,0,0,0,0,0,0,0,0,0,0,0,0,0]
[11300,"Timberwolf Pet Products","Y",null,null,1,null,null,null,null,null,null,null,null,null,null,null,null,null,1,1,null,null,1,null,null,null,null,null,1,null,null,null,null,null,null,null,null,null,null,null,null,null,null,null,1]
[2271,"Tolsa S.A.","Y",null,null,null,null,null,null,null,null,null,null,null,null,null,1,1,null,1,1,null,null,null,null,null,null,null,null,null,null,null,null,null,null,null,null,null,null,null,1,null,null,1,null,null,null,1,1]
[4097,"Tomlyn Products ","Y",null,null,null,null,null,null,null,0,0,null,0,0,0,0,1,1,1,1,0,0,0,0,0,0,1,0,0,0,0,0,0,0,0,0,0,0,0,0,0,0,1,0,0,0,1,0,0,0,0,0]
[12165,"Tongcheng Detached Non-Woven Packing Co., Ltd.","Y",null,null,null,null,null,null,null,null,null,1,1]
[13291,"Top Dog Brand Inc. (J.C. ENT. C.C.)","Y",null,null,1,null,null,null,null,null,null,null,1,null,null,null,null,null,null,1]
[4269,"TopZoo","Y",null,null,null,null,null,null,null,null,null,null,null,null,null,null,null,null,1,1,null,null,null,null,null,1,null,null,1,null,null,1,null,null,1,null,1]
[6006,"Toreros Stuffed Bullysticks","Y",null,1,null,null,null,null,null,null,null,null,null,null,null,null,null,null,null,1,null,null,null,null,null,null,1]
[11303,"Trans-Ocean Import Co.","Y",null,null,1,null,null,null,null,null,null,null,1]
[3189,"Transworld Aquatic/JBJ Aquarium Products","Y",null,null,null,1,null,null,null,null,null,null,null,1]
[5257,"Tre Ponti","Y",null,null,null,null,null,null,null,null,null,null,null,null,null,null,null,null,null,1,null,null,1]
[4055,"Treat Planet ","Y",null,1,null,null,null,null,null,null,null,null,null,null,null,null,null,null,1,1,null,null,null,null,null,null,1]
[1238,"T-Rex Products","Y",null,null,null,null,null,null,null,null,null,null,null,null,1]
[2098,"Trixie Pet Products","Y",null,null,null,null,null,null,null,0,0,null,0,0,0,1,1,0,1,1,0,0,0,0,0,0,0,0,1,0,0,1,1,0,1,1,1,0,1,0,1,0,0,0,0,0,0,0,0,0,0,0]
[4198,"Tropica Aquarium Plants Ltd.","Y",null,null,null,1,null,null,null,null,null,null,null,1]
[1221,"Tropical Fish International","Y",null,null,null,null,null,null,null,null,null,null,null,1,1]
[9035,"TropiClean","Y",null,1,null,null,null,null,null,0,0,null,0,0,0,0,0,0,1,1,0,0,0,0,0,0,1,0,0,0,0,0,0,0,0,0,0,0,0,0,0,1,1,1,null,1,1,1,0,0,0,0]
[11121,"Trouw Nutrition USA","Y",null,null,null,null,null,null,null,null,null,1,null,null,null,1,1,null,1,1,null,null,null,null,1,null,null,null,null,null,null,null,null,null,null,null,null,null,null,null,null,null,1]
[10055,"True Leaf Pet","Y",null,1,null,null,null,null,null,null,null,null,null,null,null,null,null,null,null,1,null,null,null,null,null,null,1,null,null,null,null,null,null,null,null,null,null,null,null,null,null,null,1]
[3266,"True Pet Care","Y",null,null,null,null,null,null,null,null,null,null,null,null,null,null,null,null,1,1,null,null,null,null,null,null,null,null,null,null,null,null,null,null,null,null,null,null,null,null,null,null,null,null,1,1,1,1]
[6168,"Truebite, Inc","Y",null,null,null,null,null,null,1,null,null,1,1,null,null,null,null,null,null,1,null,null,null,null,null,null,null,null,null,null,null,null,null,null,null,null,null,null,null,null,null,null,null,null,1]
[7068,"TrueBlue Pet Products","Y",null,1,null,null,null,null,null,null,null,null,null,null,null,null,null,null,null,1,null,null,null,null,null,null,null,null,null,null,null,null,null,null,null,null,null,null,null,null,null,null,1,null,null,1,null,1]
[9064,"TruPet, LLC","Y",null,1,null,null,null,null,null,null,null,null,null,null,null,null,null,null,null,1,null,null,null,null,1,null,1,null,null,null,null,null,null,null,null,null,null,null,null,null,null,1,1,null,null,null,0,0,0,0,0,0]
[4068,"Tucker's Raw Frozen & Treats ","Y",null,1,null,null,null,null,null,null,null,null,null,null,null,null,null,null,null,1,null,null,null,null,1,null,1]
[8011,"Tuffy's Pet Foods ","Y",null,1,null,null,null,null,null,0,0,null,0,0,0,0,0,0,1,1,0,0,0,0,1,0,1,0,0,0,0,0,0,0,0,0,0,0,0,0,0,0,0,0,0,0,0,0,0,0,0,0]
[13173,"Tuggo Dog Toys LLC ","Y",null,null,null,null,null,null,null,0,0,null,0,0,0,0,0,0,0,1,0,0,0,0,0,0,0,0,1,0,0,0,0,0,0,0,0,0,0,0,0,0,0,0,0,0,0,0,0,0,0,0]
[4284,"Turtle Dog","Y",null,null,1,null,null,null,null,null,null,null,1,null,null,null,null,null,null,1,null,null,null,null,null,null,null,null,null,null,null,null,null,null,1]
[5008,"Tuscan Natural","Y",null,1,null,null,null,null,null,0,0,0,0,0,0,0,0,0,1,1,0,0,0,0,1,0,0,0,0,0,0,0,0,0,0,0,0,0,0,0,0,0,0,0,0,0,0,0,0,0,0,0]
[4173,"Twigo LLC","Y",null,null,null,null,null,null,null,null,null,null,null,null,null,null,null,null,1,1,null,null,null,1]
[3049,"Tyson Pet Products","Y",null,1,null,null,null,null,null,0,0,null,0,0,0,0,0,0,0,1,0,0,0,0,0,0,1,0,0,0,0,0,0,0,0,0,0,0,0,0,0,0,0,0,0,0,0,0,0,0,0,0]
[6249,"U.S. Display Group","Y",null,null,null,null,null,null,null,null,null,1]
[13150,"Uckele Health and Nutrition","Y",null,null,null,null,null,null,null,0,0,null,0,0,0,0,0,1,0,1,0,0,0,0,0,0,0,0,0,0,0,0,0,0,0,0,0,0,0,0,0,0,1,0,0,0,0,0,0,0,0,0]
[12000,"Ultra Lift Inc.","Y",null,null,null,null,1,null,null,null,null,1,null,null,null,null,null,null,null,1,null,null,null,null,null,null,null,null,null,null,null,null,null,null,null,null,null,null,null,null,null,null,null,null,1]
[4277,"Ultra Paws LLC ","Y",null,null,1,null,null,null,null,0,0,null,0,0,0,0,0,0,0,1,0,1,1,0,0,null,0,0,null,0,0,0,0,0,null,0,0,0,0,0,0,0,null,null,0,0,0,0,0,0,0,0]
[10264,"Ultra Pet Company","Y",null,null,null,null,null,null,null,0,0,null,0,0,0,0,0,0,1,null,0,0,0,0,0,0,0,0,0,0,0,0,0,0,0,0,0,0,0,1,null,0,1,0,0,0,0,0,0,0,0,0]
[4221,"Uncle Sam's Discus (4220)","Y",null,null,null,1,null,null,null,null,1,null,null,1]
[2203,"Underwater Treasures","Y",null,null,null,1,null,null,null,null,null,null,null,1]
[10004,"Unique Natural Products","Y",null,1,null,null,null,null,null,null,null,null,null,null,null,null,null,null,1,1,null,null,null,null,null,null,null,null,null,null,null,null,null,null,null,null,null,null,null,null,null,null,null,null,null,null,1]
[6173,"Unique Petz","Y",null,null,null,null,null,null,null,0,0,null,0,0,0,0,0,0,1,1,0,1,1,0,0,0,0,0,1,0,0,0,0,0,0,0,1,1,1,0,0,0,0,0,0,0,0,0,0,0,0,0]
[8087,"United Pacific Pet","Y",null,null,null,null,null,null,null,null,1,null,null,null,null,1,1,1,1,1,null,null,1,null,1,1,1,1,null,null,null,1,1,null,1,1,1,1,1,1,1,1,1,1,null,1,1,null,1,null,1,1]
[13177,"United States Postal Service","Y",null,null,null,null,null,null,null,null,null,1]
[10301,"Unleashed Life","Y",null,null,1,null,null,null,null,null,null,null,null,null,null,null,null,null,1,1,null,1,null,null,null,1,null,null,null,null,null,null,null,null,1]
[1250,"UNO","Y",null,null,null,null,null,null,null,null,null,null,1]
[9297,"Up Country Inc. ","Y",null,null,1,null,null,null,null,0,0,null,1,0,0,0,0,0,1,1,0,1,1,0,0,1,1,0,1,0,null,0,0,0,1,0,0,0,0,0,0,0,0,0,0,0,0,0,0,0,0,0]
[7271,"Uptown Pups","Y",null,null,null,null,null,null,null,null,1,null,1,null,null,null,null,null,1,1,null,1,1,null,1,null,1,null,1,null,null,null,null,null,null,null,1,1,null,null,null,1,1,null,1,1,1,1,null,1]
[7208,"Urine Off By Bio-Pro Research ","Y",null,null,null,null,null,null,null,0,0,null,0,0,0,0,1,1,1,1,0,0,0,0,0,0,0,0,0,0,0,0,0,0,0,0,0,0,0,0,0,0,0,0,0,0,1,null,0,0,0,0]
[12287,"Ursula Dodge Design Studio","Y",null,null,1,null,null,null,null,null,null,null,1]
[12037,"Utsumi America dba/B.W. Boyd Shears","Y",null,null,null,null,1,null,null,null,null,1,null,null,null,null,null,null,null,1,null,null,null,null,null,null,null,null,null,null,null,null,null,null,null,null,null,null,null,null,null,null,null,null,1]
[8167,"Van Ness Plastic Molding Co.","Y",null,null,null,null,null,null,null,0,0,null,0,0,0,0,1,0,1,1,0,0,0,0,0,1,0,0,0,0,1,1,0,0,1,0,0,0,0,0,1,0,0,0,0,0,0,0,0,null,0,0]
[13298,"Vee Enterprises","Y",null,null,1,null,null,null,null,null,null,null,null,null,null,null,null,null,1,1,null,null,1,null,null,null,null,null,1,null,1,null,null,null,null,null,null,null,null,null,1]
[1251,"Vermont's Original","Y",null,null,null,null,null,null,null,null,null,null,null,null,null,null,null,null,null,1,null,null,null,null,null,null,null,null,null,null,null,null,null,null,null,null,null,null,null,null,null,null,1]
[5004,"Versele-Laga/Goldenfeast","Y",null,1,null,null,null,null,null,0,0,0,0,null,null,1,1,1,null,null,0,0,0,0,1,0,0,0,0,0,0,0,0,0,0,0,0,0,0,0,0,0,0,0,0]
[8034,"VerusPet Foods","Y",null,1,null,null,null,null,null,0,0,null,0,0,0,0,0,0,1,1,0,0,0,0,1,0,0,0,0,0,0,0,0,0,0,0,0,0,0,0,0,0,1,0,0,0,0,0,0,0,0,0]
[2034,"Vestia Products","Y",null,1,null,null,null,null,null,null,null,null,null,null,null,null,null,null,1,1,null,null,null,null,null,1]
[6029,"Vetalogica USA, Inc.","Y",null,1,null,null,null,null,null,null,null,null,null,null,null,null,null,null,1,1,null,null,null,null,null,null,1,null,null,null,null,null,null,null,null,null,null,null,null,null,null,null,1]
[6208,"Vetericyn","Y",null,null,null,null,null,null,null,null,null,null,null,null,null,1,null,1,1,1,null,null,null,null,null,null,null,null,null,null,null,null,null,null,null,null,null,null,null,null,null,null,1]
[6218,"Veterinary Service Inc (VSI) (6211, 6212)","Y",null,null,null,null,null,null,null,null,1,null,null,null,null,1,1,1,1,1,null,1,1,1,1,1,1,1,1,1,1,1,1,1,1,1,1,1,1,1,1,1,1,1,1,1,1,1,1,1,1]
[7183,"Vets Plus ","Y",null,null,null,null,null,null,null,null,null,1,null,null,null,1,1,1,1,1,null,null,null,null,null,null,null,null,null,null,null,null,null,null,null,null,null,null,null,null,null,null,1]
[2037,"Vibrant Companions","Y",null,1,null,null,null,null,null,null,null,null,null,null,null,null,null,null,1,1,null,null,null,null,null,null,null,null,null,null,null,null,null,null,null,null,null,null,null,null,null,null,1]
[9009,"Victor Super Premium Pet Foods","Y",null,1,null,null,null,null,null,null,null,null,null,null,null,null,null,1,1,1,null,null,null,null,1]
[13153,"Viking Masek Global Packaging Technologies","Y",null,null,null,null,null,null,null,null,null,null,1,null,null,null,null,null,1,1,null,null,null,null,1,null,1]
[1208,"VIP PetCare","Y",null,null,null,null,null,null,null,null,null,1,null,null,null,null,null,null,1,1,null,null,1,null,1,null,1,1,null,null,null,null,null,null,null,null,null,null,null,null,null,1,1,1,1,1,null,1]
[10197,"VIP Products ","Y",null,null,null,null,null,null,null,0,0,null,0,0,0,0,0,0,0,1,0,0,0,0,0,0,0,0,1,0,0,0,0,0,1,0,0,0,0,0,0,0,0,0,0,0,0,0,0,0,0,0]
[2269,"VirChewLy Indestructible Leash","Y",null,null,null,null,null,null,null,null,null,null,null,null,null,null,null,null,null,1,null,null,1]
[3222,"Vista Pet Supply (3223)","Y",null,null,null,1,null,null,null,null,1,null,null,null,1]
[12115,"Vitakraft Sun Seed Inc. ","Y",null,null,null,null,null,null,null,0,0,null,0,null,null,1,1,1,1,1,0,0,null,0,null,0,1,0,1,0,0,0,0,0,0,0,0,0,0,null,0,0,0,0,0,0,0,0,0,0,0,0]
[3052,"Vital Essentials","Y",null,1,null,null,null,null,null,0,0,null,0,0,0,0,0,0,1,1,0,0,0,0,1,0,1,0,0,0,0,0,0,0,0,0,0,0,0,0,0,0,0,0,0,0,0,0,0,0,0,0]
[9199,"Volkman Seed Factory ","Y",null,null,null,null,null,null,null,0,0,null,0,0,0,1,1,0,0,0,0,0,0,0,0,0,0,0,0,0,0,0,0,0,0,0,0,0,0,0,0,0,0,0,0,0,0,0,0,0,0,0]
[4163,"Wagging Tailz","Y",null,null,null,null,null,null,1,null,null,null,null,null,null,null,null,null,null,1,null,null,1,1]
[13000,"Wag'n Tails Mobile Conversions","Y",null,null,null,null,1,null,null,null,null,1,null,null,null,null,null,null,null,null,null,null,null,null,null,null,null,null,null,null,null,null,null,null,null,null,null,null,null,null,null,null,null,null,1]
[12041,"Wahl Clipper Corporation","Y",null,null,null,null,1,null,null,0,0,1,0,0,0,0,1,1,1,1,1,0,0,0,0,0,0,0,0,0,0,0,0,0,0,0,0,0,0,0,0,0,0,0,1,1,0,1,0,0,0,0]
[4072,"Walk About Pet Products/The Wee Away Co.","Y",null,1,null,null,null,null,null,null,null,null,null,null,null,1,1,null,1,1,null,null,null,null,1,null,1,null,null,null,null,null,null,null,null,null,null,null,null,null,null,null,null,null,null,null,1]
[4236,"Walking Palm Pet Beds and Accessories","Y",null,null,null,null,null,null,null,null,null,null,null,null,null,null,null,null,1,1,null,1,null,null,null,null,null,null,null,null,null,null,null,null,1]
[2026,"Wall-Walkers","Y",null,1,null,null,null,null,null,null,null,null,null,null,null,null,null,null,1,null,null,null,null,null,null,1,null,null,null,null,null,1,1,null,1]
[10257,"Ware Manufacturing ","Y",null,null,null,null,null,null,null,0,0,null,0,0,null,1,1,0,1,1,0,0,0,0,0,0,0,0,1,null,0,1,1,0,null,null,1,1,1,0,0,0,0,0,0,0,0,0,0,0,0,0]
[6287,"Ware of the Dog","Y",null,null,1,null,null,null,null,null,null,null,1,null,null,null,null,null,null,1,null,1,1,null,null,1,null,null,1]
[12042,"Warren London ","Y",null,null,null,null,1,null,null,0,0,null,1,0,0,0,0,0,null,1,0,null,0,0,0,0,0,0,0,0,0,0,0,0,0,0,0,0,0,0,0,0,0,0,1,1,1,null,0,0,0,0]
[5291,"Water Rover by G4 Ventures","Y",null,null,1,null,null,null,null,0,0,null,0,0,0,0,0,0,0,1,0,0,0,0,0,1,0,0,0,0,0,0,0,0,0,0,0,0,0,0,0,0,0,0,0,0,0,0,0,0,0,0]
[3208,"WaterScapes Aquatic Plant Nursery (3209)","Y",null,null,null,1,null,null,null,null,1,null,null,1]
[1240,"Web Talent Marketing","Y",null,null,null,null,null,null,null,null,null,1]
[4160,"Wellness PetMats","Y",null,null,null,null,null,null,1,null,null,null,null,null,null,null,null,null,null,1,null,null,null,null,null,null,null,null,null,null,null,null,null,null,1]
[6189,"WellPet LLC","Y",null,null,null,null,null,null,null,0,0,null,0,0,0,0,null,0,1,1,0,0,0,0,1,0,1,0,0,0,0,0,0,0,0,0,0,0,0,0,0,0,0,0,0,0,0,0,0,0,0,0]
[10060,"WellyTails.com","Y",null,1,null,null,null,null,null,0,0,null,0,0,0,0,0,null,1,1,0,0,0,0,null,0,null,0,0,0,0,0,0,0,0,0,0,0,0,0,0,0,1,0,0,0,0,0,0,0,0,0]
[7031,"Weruva","Y",null,1,null,null,null,null,null,null,null,null,null,null,null,null,null,null,1,1,null,null,null,null,1,null,1,null,null,null,null,null,null,null,null,null,null,null,null,1]
[8183,"West Paw Design ","Y",null,null,null,null,null,null,null,0,0,null,0,0,0,0,0,0,1,1,0,null,0,0,0,0,null,0,1,0,1,0,0,0,1,0,0,0,0,0,0,0,0,0,0,0,0,0,0,0,0,0]
[13016,"Westcoast Animal Groomers Supply","Y",null,null,null,null,1,null,null,null,1,null,1,null,null,null,null,1,1,1,1,null,1,null,null,null,null,null,null,null,null,null,null,null,null,null,null,null,null,null,null,1,1,1,1,1,1]
[12109,"Westminster Pet Products ","Y",null,null,null,null,null,null,null,0,0,null,null,0,0,0,0,0,1,1,0,null,1,0,0,0,1,1,1,0,1,1,0,1,null,0,0,1,0,0,1,0,0,0,1,0,0,0,0,1,0,0]
[2029,"Wet Noses ","Y",null,1,null,null,null,null,null,0,0,null,0,0,0,0,0,0,0,1,0,0,0,0,0,0,1,0,0,0,0,0,0,0,0,0,0,0,0,0,0,0,0,0,0,0,0,0,0,0,0,0]
[13083,"WF Young, Inc","Y",null,null,null,null,null,null,null,null,null,null,null,null,null,null,null,1,1,1,null,null,null,null,null,null,1,null,null,null,null,null,null,null,null,null,null,null,null,null,null,null,1,1,1,1]
[7277,"Wheel House Designs","Y",null,null,1,null,null,null,null,0,0,null,1,0,null,null,null,null,null,null,0,0,0,0,0,0,0,0,0,0,0,0,0,0,0,0,0,0,0,0,0,0,0,0,0,0,0,0,0,0,0,0]
[1231,"whiskerDocs","Y",null,null,null,null,null,null,null,null,null,1,null,null,null,null,null,null,1,1]
[8039,"Whitebridge Pet Brands LLC","Y",null,1,null,null,null,null,null,null,null,null,null,null,null,null,null,null,1,1,null,null,null,null,1,null,1]
[7060,"Whole Life Pet","Y",null,1,null,null,null,null,null,null,null,null,null,null,null,null,null,null,1,1,null,null,null,null,1,null,1,null,null,null,null,null,null,null,null,null,null,null,null,null,null,null,1]
[11280,"WholesalePet.com","Y",null,null,1,null,null,null,null,0,1,null,0,1,1,1,1,1,1,1,0,1,1,1,1,1,1,1,1,1,1,1,1,1,1,1,1,1,1,1,1,1,1,1,1,1,1,1,1,1,1,0]
[7163,"Wholesome Hide Inc","Y",null,null,null,null,null,null,null,null,null,null,null,null,null,null,null,null,null,1,null,null,null,null,null,null,null,1]
[4071,"Wholesome Pride Pet Treats","Y",null,1,null,null,null,null,null,null,null,null,null,null,null,null,null,null,null,1,null,null,null,null,null,null,1,null,null,null,null,null,null,null,null,null,null,null,null,null,null,null,null,null,null,0,0,0,0,0,0,0]
[5061,"Wholistic Pet Organics","Y",null,1,null,null,null,null,null,0,0,null,0,0,0,null,0,1,1,1,0,0,0,0,null,0,0,0,0,0,0,0,0,0,0,0,0,0,0,0,0,0,1,0,0,1,0,0,0,0,0,0]
[12166,"Wigzi LLC","Y",null,null,null,null,null,null,null,0,0,null,0,0,0,0,0,0,0,1,0,0,1,0,null,0,null,0,null,0,0,0,0,0,0,0,0,0,0,0,0,0,0,0,0,0,0,0,0,0,0,0]
[5015,"Wild Calling Pet Foods","Y",null,1,null,null,null,null,null,0,0,null,0,0,0,0,0,0,1,1,0,0,0,0,1,0,0,0,0,0,0,0,0,0,0,0,0,0,0,0,0,0,0,0,0,0,0,0,0,0,0,0]
[6049,"Wild Meadow Farms","Y",null,1,null,null,null,null,null,0,0,null,0,0,0,0,0,0,0,1,0,0,0,0,0,0,1,0,0,0,0,0,0,0,0,0,0,0,0,0,0,0,0,0,0,0,0,0,0,0,0,0]
[13302,"Willis for President","Y",null,null,1,null,null,null,null,null,null,null,null,null,null,null,null,null,null,1,null,null,null,null,null,null,null,null,null,null,null,null,null,null,1]
[4164,"Winston Manner","Y",null,null,null,null,null,null,1,null,null,null,null,null,null,null,null,null,null,1,null,null,1]
[5152,"With A Purpose Products","Y",null,null,null,null,null,null,1,null,null,null,null,null,null,1,1,null,1,1,null,null,1,null,null,1,null,null,1,1,null,1,1,null,1,null,null,null,null,null,null,null,null,null,1]
[14255,"Wolfgang Man & Beast","Y",null,null,null,null,null,null,null,null,null,null,1,null,null,null,null,null,null,1,null,null,1,null,null,1]
[4001,"Wondercide Natural Products","Y",null,1,null,null,null,null,null,null,null,null,null,null,null,null,null,null,1,1,null,null,null,null,null,null,1,null,1,null,null,null,null,null,null,null,null,null,null,null,null,null,1,1,null,1,1]
[6293,"Woofwear by World Critter, Inc.","Y",null,null,1,null,null,null,null,0,0,0,0,0,0,0,0,0,1,1,0,1,1,0,0,null,0,0,0,0,0,0,0,0,0,0,0,0,0,0,0,0,null,0,0,null,0,0,0,0,0,0]
[9141,"World Pet Association Inc","Y",null,null,null,null,null,null,null,1]
[9151,"Worldwise","Y",null,null,null,null,null,null,null,0,0,null,1,null,null,null,null,0,1,1,null,0,1,0,0,1,1,0,1,0,1,1,1,0,1,0,1,1,0,0,1,1,0,null,1,0,1,0,0,0,0,0]
[2173,"Wyld's Wingdom ","Y",null,null,null,null,null,null,null,0,0,null,0,0,0,1,0,0,0,0,0,0,0,0,0,0,0,0,0,0,0,0,0,0,0,0,0,0,0,0,0,0,0,0,0,0,0,0,0,0,0,0]
[2015,"Wyoming Sunmade LLC","Y",null,1,null,null,null,null,null,null,null,null,null,null,null,null,null,null,1,null,null,null,null,null,null,null,null,null,null,null,null,null,null,null,null,null,null,null,null,1]
[1235,"Xiamen Goodming Plastic Co., Ltd","Y",null,null,null,null,null,null,null,null,null,null,null,null,null,null,null,null,null,1,null,null,null,null,null,null,null,null,null,null,null,null,null,null,null,null,null,null,null,null,null,null,null,null,null,null,null,null,null,1]
[6163,"XI'AN BOON BIO-TECHNOLOGY CO., LTD.","Y",null,null,null,null,null,null,1,null,null,null,null,null,null,null,null,null,1,null,null,null,null,null,null,null,null,null,null,null,null,null,null,null,null,null,null,null,null,1,1]
[11055,"XPOWER Manufacture","Y",null,null,null,null,1,null,null,null,null,1,null,null,null,null,null,null,null,1,null,null,null,null,null,null,null,null,null,null,null,null,null,null,null,null,null,null,null,null,null,null,null,null,1]
[7272,"Yap USA","Y",null,null,null,null,null,null,null,null,null,null,null,null,null,null,null,null,null,1,null,1,1,null,null,1,null,null,1,null,null,null,null,null,1,null,1,1,null,null,null,1,1,null,1,1]
[2259,"Yaxin Flexible Packaging","Y",null,null,null,null,null,null,null,null,null,1,null,null,null,null,null,null,1,1,null,null,null,null,1]
[12303,"Yellow Dog Design ","Y",null,null,1,null,null,null,null,0,0,null,0,0,0,0,0,1,1,1,0,0,1,1,0,0,0,0,0,0,0,0,0,0,0,0,0,0,0,0,0,0,0,0,0,0,0,0,0,0,0,0]
[6076,"Yeti Corporation ","Y",null,1,null,null,null,null,null,0,0,null,0,0,0,0,0,0,0,1,0,0,0,0,0,0,1,0,1,0,0,0,0,0,1,0,0,0,0,0,0,0,0,0,0,0,0,0,0,0,0,0]
[1223,"Yiu Fung Aquarium","Y",null,null,null,null,null,null,null,null,null,1,null,1]
[12163,"Yiwu Senye Import & Export Co. Ltd.","Y",null,null,null,null,null,null,null,null,null,null,null,null,null,1,1,null,1,1,null,1,1,null,null,1,null,null,1,null,null,1,1,1,1,1,1,1,null,null,null,null,null,null,1,null,null,null,1,1,1,1]
[1191,"Yota Enterprise","Y",null,null,null,null,null,null,null,null,null,1]
[1215,"Yota Enterprise","Y",null,null,null,null,null,null,null,null,null,1]
[5280,"Your Perfect Puppy, LLC","Y",null,null,1,null,null,null,null,null,null,null,1,null,null,null,null,null,null,1,null,null,1]
[13309,"YUMMYNATOR GmbH","Y",null,null,null,null,null,null,null,null,null,null,null,null,null,null,null,null,1,1,null,null,null,null,null,1]
[3153,"ZBT Enterprises Inc","Y",null,null,null,null,null,null,1,null,null,null,null,null,null,null,null,null,1,1,null,null,null,null,null,null,null,null,null,null,null,null,null,null,null,null,null,null,null,null,null,null,null,null,null,null,1]
[8027,"ZenPet","Y",null,1,null,null,null,null,null,null,null,null,null,null,null,null,null,null,1,1,null,1,1,null,null,null,null,null,null,null,null,null,null,null,null,null,null,null,null,null,null,null,1,1]
[5221,"Zhongpet Biotech Corporation","Y",null,null,null,null,null,null,null,null,null,null,null,null,null,null,null,null,1,1,null,null,null,null,null,null,1,null,null,null,null,null,null,null,null,null,null,null,null,null,null,1,1,null,null,1,null,1]
[4049,"Zignature","Y",null,1,null,null,null,null,null,null,null,null,null,null,null,null,null,null,null,1,null,null,null,null,1]
[9173,"Zilla","Y",null,null,null,null,null,null,null,null,null,null,null,null,1]
[10239,"ZippyPaws ","Y",null,null,null,null,null,null,null,0,0,null,0,0,0,0,0,0,0,1,0,1,1,0,0,1,0,0,1,0,0,0,0,0,null,0,0,0,0,0,0,0,0,0,0,0,0,0,0,1,0,0]
[6008,"ZiwiPeak USA Inc. ","Y",null,1,null,null,null,null,null,0,0,null,0,0,0,0,0,0,1,1,0,0,0,0,1,0,1,0,0,0,0,0,0,0,0,0,0,0,0,0,0,0,null,0,0,0,0,0,0,0,0,0]
[4237,"Zoo Med Laboratories","Y",null,null,null,null,null,null,null,0,0,null,null,1,1,1,0,0,0,0,0,0,0,0,0,0,0,0,0,0,0,0,0,0,0,0,0,0,0,0,0,0,0,0,0,0,0,0,0,0,0,0]
[6149,"ZuGo Pet","Y",null,null,null,null,null,null,1,null,null,null,null,null,null,null,null,null,null,1,null,null,1,null,null,null,null,null,null,null,null,null,null,null,1,null,1]
[6053,"Zuke's","Y",null,1,null,null,null,null,null,0,0,null,0,0,0,0,0,0,1,1,0,0,0,0,0,0,1,0,0,0,0,0,0,0,0,0,0,0,0,0,0,0,0,0,0,0,0,0,0,0,0,0]
[5097,"ZuPreem ","Y",null,null,null,null,null,null,null,0,0,null,0,0,null,1,1,0,0,0,0,0,0,0,0,0,0,0,0,0,0,0,0,0,0,0,0,0,0,0,0,0,0,0,0,0,0,0,0,0,0,0]
[null,"BLANK Search Field","N",null,null,null,null,null,null,null,null,null,null,null,null,null,null,null,null,null,null,null,null,null,null,null,null,null,null,null,null,null,null,null,null,null,null,null,null,null,null,null,null,null,null,null,null,null,null,null,null,null,null,null,{"$f":"SUM(E1213:BA1213)","v":0}]
[null,"Total >",{"$f":"SUMPRODUCT(- -(ISNUMBER(SEARCH(\"Y\",$C$10:$C$1213))),SUBTOTAL(3,OFFSET($C$10,ROW($C$10:$C$1213)-ROW($C$10),0)))","v":1203},{"$f":"SUBTOTAL(109,D10:D1213)","v":0},250,163,59,79,0,78,20,30,128,139,80,57,100,101,96,541,939,10,129,237,38,134,162,304,39,205,16,38,51,66,36,{"$f":"SUBTOTAL(109,AJ10:AJ1213)","v":172},37,112,64,57,52,67,62,234,55,141,111,98,49,55,85,33,20]

{"sheet":"Sheet1","index":1,"n_rows":0,"n_cols":0,"rows_kept":0,"cut":false,"hidden":false,"merged":[]}